{"text_format":"1","workbook":"xlsx","n_sheets":4,"sheets":["Sverigeranking","Regler","Miniorranking","Seriespelsranking"],"not_rendered":{"charts":0,"images":0,"macros":1,"external_links":0,"defined_names":5,"comments":0,"pivot_tables":0},"unopened":[],"bounds":{"document_bytes":16777216,"sheet_cells":100000,"rows_first":2000,"rows_last":500,"rows_between":2000,"halvings":0,"cell_chars":16384,"cell_head_chars":4096},"cells_cut":0,"cells_raw":0,"read":"whole","date_system":"1900"}

{"sheet":"Sverigeranking","index":0,"n_rows":491,"n_cols":147,"rows_kept":491,"cut":false,"hidden":false,"merged":[]}
[null,"Svenska Hästskokastarförbundets Sverigeranking",null,null,null,null,null,null,null,null,null,null,null,null,null,null,null,null,null,null,null,null,"Antal kastare som deltagit i samtliga tävlingar senaste 12 månaderna:",{"$f":"COUNTIF(F5:F199,15)","v":3},null,null,null,null,null,null,"Antal starter senaste 12 månaderna föruton DM:",{"$f":"SUM(I2:Z2)+(AH1)-(O2+P2+W2+X2)","v":902},null,{"$f":"Miniorranking!$AC$1","v":8}]
[null,"2020-03-08",null,null,null,null,null,null,{"$f":"COUNT(I5:I220)","v":46},{"$f":"COUNT(J5:J220)","v":68},81,90,82,48,30,33,78,60,56,68,61,{"$f":"COUNT(V5:V220)","v":34},31,45,64,58]
[null,"Säsong 2019 / 2020",null,null,null,null,null,null,{"$f":"IF(SUM(I5:I400)>100,1,\"\")","v":1},1,1,1,1,{"$f":"IF(SUM(N5:N400)>-1,1,\"\")","v":1},1,1,1,1,1,1,1,{"$f":"IF(SUM(V5:V400)>100,1,\"\")","v":1},1,1,1,1,null,null,null,null,"Snitt / tävling förutom DM :",{"$f":"SUM(AF1/12)","v":75.166666666666671}]
["Plac.","Kastare ","Klubb","Rankingpoäng",null,"Antal tävlingar","Snitt per serie",null,"Moheda Open","Jämjö Open","Björkenäs Open","Utomhus-SM Dag 1","Utomhus-SM Dag 2","Vaxholm Open","Utomhus Smålandsmästaren","Blekinge-DM Ute","Dynapac Open","Åseda Open","Höstskon Nybro","Carlskrona Cup","Sibbamåla Open","Stockholms-DM","Inomhus Smålandsmästaren ","Blekinge DM inne","Inomhus-SM","Tingsryds Open","Antal arrangerade tävlingar","Ej medräknat resultat","Ej medräknat resultat","Ej medräknat resultat",null,null,null,null,null,null,null,null,null,null,null,null,null,null,null,null,null,null,null,null,null,null,null,null,null,null,null,null,null,1,2,3,4,5,6,7,8,9,10,11,12,13,14,15,16,"ej medräknad",null,null,"missade tävlingar"]
[{"$f":"IF(BE5>1,AF5&\" (\"&AE5&\")\",AF5&\" (\"&AG5&\")\")","v":"1 (1)"},"Sandor Bodi","Växjö",{"$f":"SUM(BH5:BS5)","v":4802},null,{"$f":"COUNT(I5:Z5)","v":13},{"$f":"SUM((CC5)/(F5*2))","v":193.88461538461539},null,424,425,415,443,511,239,391,null,371,289,424,383,null,null,446,null,280,null,{"$f":"SUM($I$3:$Z$3)","v":18},{"$f":"BX5","v":239},{"$f":"BY5","v":"-"},{"$f":"BZ5","v":"-"},1,{"$f":"IF(D5<D4,AH5,AF4)","v":1},{"$f":"IF(F5>1,ROW(1:1),\"-\")","v":1},1,null,null,{"$f":"COUNT($I$3,I5,H5)","v":2},{"$f":"COUNT($J$3,J5,I5)","v":3},{"$f":"COUNT($K$3,K5,J5)","v":3},{"$f":"COUNT($L$3,L5,K5)","v":3},{"$f":"COUNT($M$3,M5,L5)","v":3},{"$f":"COUNT($N$3,N5,M5)","v":3},{"$f":"COUNT($O$3,O5,N5)","v":3},{"$f":"COUNT($P$3,P5,O5)","v":2},{"$f":"COUNT($Q$3,Q5,P5)","v":2},{"$f":"COUNT($R$3,R5,Q5)","v":3},{"$f":"COUNT($S$3,S5,R5)","v":3},{"$f":"COUNT($T$3,T5,S5)","v":3},{"$f":"COUNT($U$3,U5,T5)","v":2},{"$f":"COUNT($V$3,V5,U5)","v":1},{"$f":"COUNT($W$3,W5,V5)","v":2},{"$f":"COUNT($X$3,X5,W5)","v":2},{"$f":"COUNT($Y$3,Y5,X5)","v":2},{"$f":"COUNT($Z$3,Z5,Y5)","v":2},null,null,{"$f":"IF(H5=\"x\",1,2)","v":2},null,null,{"$f":"IF($F5>0,LARGE($I5:$Z5,1),\"\")","v":511},{"$f":"IF($F5>1,LARGE($I5:$Z5,2),\"\")","v":446},{"$f":"IF($F5>2,LARGE($I5:$Z5,3),\"\")","v":443},{"$f":"IF($F5>3,LARGE($I5:$Z5,4),\"\")","v":425},{"$f":"IF($F5>4,LARGE($I5:$Z5,5),\"\")","v":424},{"$f":"IF($F5>5,LARGE($I5:$Z5,6),\"\")","v":424},{"$f":"IF($F5>6,LARGE($I5:$Z5,7),\"\")","v":415},{"$f":"IF($F5>7,LARGE($I5:$Z5,8),\"\")","v":391},{"$f":"IF($F5>8,LARGE($I5:$Z5,9),\"\")","v":383},{"$f":"IF($F5>9,LARGE($I5:$Z5,10),\"\")","v":371},{"$f":"IF($F5>10,LARGE($I5:$Z5,11),\"\")","v":289},{"$f":"IF($F5>11,LARGE($I5:$Z5,12),\"\")","v":280},{"$f":"IF($F5>12,LARGE($I5:$Z5,13),\"\")","v":239},{"$f":"IF($F5>13,LARGE($I5:$Z5,14),\"\")","v":""},{"$f":"IF($F5>14,LARGE($I5:$Z5,15),\"\")","v":""},{"$f":"IF($F5>15,LARGE($I5:$Z5,16),\"\")","v":""},{"$f":"IF($F5>12,LARGE($I5:$Z5,13),\"-\")","v":239},{"$f":"IF($F5>13,LARGE($I5:$Z5,14),\"-\")","v":"-"},{"$f":"IF($F5>14,LARGE($I5:$Z5,15),\"-\")","v":"-"},{"$f":"SUM(AA5-F5)-2","v":3},null,{"$f":"SUM(BH5:BW5)","v":5041},null,null,null,null,null,null,null,null,null,null,null,null,null,null,null,null,null,null,null,null,null,null,null,null,null,null,null,null,null,null,null,null,null,null,null,null,null,null,null,null,null,null,null,null,null,null,null,null,null,null,null,null,null,null,null,null,null,null,null,null,null,null,1,null,{"$f":"IF(BE5>=1,AF5,\"\")","v":1},{"$f":"IF(BE5>1,\"(\"&AE5&\")\",\"(\"&AG5&\")\")","v":"(1)"}]
["2 (2)","Matz Karlsson","Korpen Åseda",4650,null,14,184.57142857142858,null,397,517,374,398,423,null,398,null,360,266,472,403,252,null,342,null,268,298,18,266,252,"-",2,2,2,2,null,null,{"$f":"COUNT($I$3,I6,H6)","v":2},{"$f":"COUNT($J$3,J6,I6)","v":3},{"$f":"COUNT($K$3,K6,J6)","v":3},{"$f":"COUNT($L$3,L6,K6)","v":3},{"$f":"COUNT($M$3,M6,L6)","v":3},{"$f":"COUNT($N$3,N6,M6)","v":2},{"$f":"COUNT($O$3,O6,N6)","v":2},{"$f":"COUNT($P$3,P6,O6)","v":2},{"$f":"COUNT($Q$3,Q6,P6)","v":2},{"$f":"COUNT($R$3,R6,Q6)","v":3},{"$f":"COUNT($S$3,S6,R6)","v":3},{"$f":"COUNT($T$3,T6,S6)","v":3},{"$f":"COUNT($U$3,U6,T6)","v":3},{"$f":"COUNT($V$3,V6,U6)","v":2},{"$f":"COUNT($W$3,W6,V6)","v":2},{"$f":"COUNT($X$3,X6,W6)","v":2},{"$f":"COUNT($Y$3,Y6,X6)","v":2},{"$f":"COUNT($Z$3,Z6,Y6)","v":3},null,null,2,null,null,517,472,423,403,398,398,397,374,360,342,298,268,266,252,"","",266,252,"-",2,null,5168,null,null,null,null,null,null,null,null,null,null,null,null,null,null,null,null,null,null,null,null,null,null,null,null,null,null,null,null,null,null,null,null,null,null,null,null,null,null,null,null,null,null,null,null,null,null,null,null,null,null,null,null,null,null,null,null,null,null,null,null,null,null,2,null,2,"(2)"]
["3 (3)","Peter Olsson","Dynapac ",4253,null,15,164.36666666666667,null,449,540,347,334,130,313,null,282,302,349,283,367,267,null,null,336,351,281,18,281,267,130,3,3,3,3,null,null,2,3,3,3,3,3,2,2,3,3,3,3,3,2,1,2,3,3,null,null,2,null,null,540,449,367,351,349,347,336,334,313,302,283,282,281,267,130,"",281,267,130,1,null,4931,null,null,null,null,null,null,null,null,null,null,null,null,null,null,null,null,null,null,null,null,null,null,null,null,null,null,null,null,null,null,null,null,null,null,null,null,null,null,null,null,null,null,null,null,null,null,null,null,null,null,null,null,null,null,null,null,null,null,null,null,null,null,3,null,3,"(3)"]
["4 (4)","Kent Sundahl","Carlskrona",4212,null,12,175.5,null,485,391,377,329,426,null,null,283,252,398,null,373,null,null,null,346,298,254,18,"-","-","-",4,4,4,4,null,null,2,3,3,3,3,2,1,2,3,3,2,2,2,1,1,2,3,3,null,null,2,null,null,485,426,398,391,377,373,346,329,298,283,254,252,"","","","","-","-","-",4,null,4212,null,null,null,null,null,null,null,null,null,null,null,null,null,null,null,null,null,null,null,null,null,null,null,null,null,null,null,null,null,null,null,null,null,null,null,null,null,null,null,null,null,null,null,null,null,null,null,null,null,null,null,null,null,null,null,null,null,null,null,null,null,null,4,null,4,"(4)"]
["5 (5)","Gert Karlsson","Korpen Åseda",4042,null,15,160.66666666666666,null,349,399,326,326,370,265,305,null,316,420,325,280,264,null,335,null,249,291,18,265,264,249,5,5,5,5,null,null,2,3,3,3,3,3,3,2,2,3,3,3,3,2,2,2,2,3,null,null,2,null,null,420,399,370,349,335,326,326,325,316,305,291,280,265,264,249,"",265,264,249,1,null,4820,null,null,null,null,null,null,null,null,null,null,null,null,null,null,null,null,null,null,null,null,null,null,null,null,null,null,null,null,null,null,null,null,null,null,null,null,null,null,null,null,null,null,null,null,null,null,null,null,null,null,null,null,null,null,null,null,null,null,null,null,null,null,5,null,5,"(5)"]
["6 (6)","Joel Sundahl","Carlskrona",3978,null,12,165.75,null,495,255,396,282,335,null,null,207,330,358,null,293,null,null,null,424,270,333,18,"-","-","-",6,6,6,6,null,null,2,3,3,3,3,2,1,2,3,3,2,2,2,1,1,2,3,3,null,null,2,null,null,495,424,396,358,335,333,330,293,282,270,255,207,"","","","","-","-","-",4,null,3978,null,null,null,null,null,null,null,null,null,null,null,null,null,null,null,null,null,null,null,null,null,null,null,null,null,null,null,null,null,null,null,null,null,null,null,null,null,null,null,null,null,null,null,null,null,null,null,null,null,null,null,null,null,null,null,null,null,null,null,null,null,null,6,null,6,"(6)"]
["7 (7)","Ingvar Eriksson","Carlskrona",3961,null,14,157.60714285714286,null,353,332,328,378,328,null,null,232,312,220,323,353,355,null,null,302,273,324,18,232,220,"-",7,7,7,7,null,null,2,3,3,3,3,2,1,2,3,3,3,3,3,2,1,2,3,3,null,null,2,null,null,378,355,353,353,332,328,328,324,323,312,302,273,232,220,"","",232,220,"-",2,null,4413,null,null,null,null,null,null,null,null,null,null,null,null,null,null,null,null,null,null,null,null,null,null,null,null,null,null,null,null,null,null,null,null,null,null,null,null,null,null,null,null,null,null,null,null,null,null,null,null,null,null,null,null,null,null,null,null,null,null,null,null,null,null,7,null,7,"(7)"]
["8 (8)","Leo Andersson","Carlskrona",3738,null,14,149.5,null,423,298,282,295,386,null,null,292,312,287,269,264,268,null,null,362,204,244,18,244,204,"-",8,8,8,8,null,null,2,3,3,3,3,2,1,2,3,3,3,3,3,2,1,2,3,3,null,null,2,null,null,423,386,362,312,298,295,292,287,282,269,268,264,244,204,"","",244,204,"-",2,null,4186,null,null,null,null,null,null,null,null,null,null,null,null,null,null,null,null,null,null,null,null,null,null,null,null,null,null,null,null,null,null,null,null,null,null,null,null,null,null,null,null,null,null,null,null,null,null,null,null,null,null,null,null,null,null,null,null,null,null,null,null,null,null,8,null,8,"(8)"]
["9 (9)","Anita Fabbeke","Dynapac ",3704,null,13,149.61538461538461,null,277,401,359,353,345,186,null,321,null,261,333,null,242,null,null,339,283,190,18,186,"-","-",9,9,9,9,null,null,2,3,3,3,3,3,2,2,2,2,3,2,2,2,1,2,3,3,null,null,2,null,null,401,359,353,345,339,333,321,283,277,261,242,190,186,"","","",186,"-","-",3,null,3890,null,null,null,null,null,null,null,null,null,null,null,null,null,null,null,null,null,null,null,null,null,null,null,null,null,null,null,null,null,null,null,null,null,null,null,null,null,null,null,null,null,null,null,null,null,null,null,null,null,null,null,null,null,null,null,null,null,null,null,null,null,null,9,null,9,"(9)"]
["10 (10)","Mattias Gneupel","Sibbamåla",3502,null,13,144.26923076923077,null,436,null,256,289,303,263,null,276,319,292,289,null,249,null,null,257,273,249,18,249,"-","-",10,10,10,10,null,null,2,2,2,3,3,3,2,2,3,3,3,2,2,2,1,2,3,3,null,null,2,null,null,436,319,303,292,289,289,276,273,263,257,256,249,249,"","","",249,"-","-",3,null,3751,null,null,null,null,null,null,null,null,null,null,null,null,null,null,null,null,null,null,null,null,null,null,null,null,null,null,null,null,null,null,null,null,null,null,null,null,null,null,null,null,null,null,null,null,null,null,null,null,null,null,null,null,null,null,null,null,null,null,null,null,null,null,10,null,10,"(10)"]
["11 (11)","Gebriela Kostantinos","Korpen Åseda",3472,null,11,157.81818181818181,null,369,null,384,200,314,null,258,null,373,313,276,null,349,null,339,null,null,297,18,"-","-","-",11,11,11,11,null,null,2,2,2,3,3,2,2,2,2,3,3,2,2,2,2,2,1,2,null,null,2,null,null,384,373,369,349,339,314,313,297,276,258,200,"","","","","","-","-","-",5,null,3472,null,null,null,null,null,null,null,null,null,null,null,null,null,null,null,null,null,null,null,null,null,null,null,null,null,null,null,null,null,null,null,null,null,null,null,null,null,null,null,null,null,null,null,null,null,null,null,null,null,null,null,null,null,null,null,null,null,null,null,null,null,null,11,null,11,"(11)"]
["12 (12)","Magnus Israelsson","Sibbamåla",3401,null,13,135.73076923076923,null,371,295,302,235,291,null,null,198,288,151,128,321,343,null,null,null,291,315,18,128,"-","-",12,12,12,12,null,null,2,3,3,3,3,2,1,2,3,3,3,3,3,2,1,1,2,3,null,null,2,null,null,371,343,321,315,302,295,291,291,288,235,198,151,128,"","","",128,"-","-",3,null,3529,null,null,null,null,null,null,null,null,null,null,null,null,null,null,null,null,null,null,null,null,null,null,null,null,null,null,null,null,null,null,null,null,null,null,null,null,null,null,null,null,null,null,null,null,null,null,null,null,null,null,null,null,null,null,null,null,null,null,null,null,null,null,12,null,12,"(12)"]
["13 (13)","Sandra Widlund","Växjö Hsk",3396,null,11,154.36363636363637,null,null,303,277,316,415,null,276,null,253,350,289,299,326,null,null,null,292,null,18,"-","-","-",13,13,13,13,null,null,1,2,3,3,3,2,2,2,2,3,3,3,3,2,1,1,2,2,null,null,2,null,null,415,350,326,316,303,299,292,289,277,276,253,"","","","","","-","-","-",5,null,3396,null,null,null,null,null,null,null,null,null,null,null,null,null,null,null,null,null,null,null,null,null,null,null,null,null,null,null,null,null,null,null,null,null,null,null,null,null,null,null,null,null,null,null,null,null,null,null,null,null,null,null,null,null,null,null,null,null,null,null,null,null,null,13,null,13,"(13)"]
["14 (14)","Hathaichonlanee Phaengphui","Växjö Hsk",3133,null,11,142.40909090909091,null,null,271,387,270,391,null,301,null,256,270,300,245,183,null,null,null,259,null,18,"-","-","-",14,14,14,14,null,null,1,2,3,3,3,2,2,2,2,3,3,3,3,2,1,1,2,2,null,null,2,null,null,391,387,301,300,271,270,270,259,256,245,183,"","","","","","-","-","-",5,null,3133,null,null,null,null,null,null,null,null,null,null,null,null,null,null,null,null,null,null,null,null,null,null,null,null,null,null,null,null,null,null,null,null,null,null,null,null,null,null,null,null,null,null,null,null,null,null,null,null,null,null,null,null,null,null,null,null,null,null,null,null,null,null,14,null,14,"(14)"]
["15 (15)","Stefan Tollstam","Dynapac ",2991,null,13,121.11538461538461,null,158,276,227,288,218,238,null,258,245,221,240,332,194,null,null,254,null,null,18,158,"-","-",15,15,15,15,null,null,2,3,3,3,3,3,2,2,3,3,3,3,3,2,1,2,2,1,null,null,2,null,null,332,288,276,258,254,245,240,238,227,221,218,194,158,"","","",158,"-","-",3,null,3149,null,null,null,null,null,null,null,null,null,null,null,null,null,null,null,null,null,null,null,null,null,null,null,null,null,null,null,null,null,null,null,null,null,null,null,null,null,null,null,null,null,null,null,null,null,null,null,null,null,null,null,null,null,null,null,null,null,null,null,null,null,null,15,null,15,"(15)"]
["16 (16)","Nathalie Sundahl","Carlskrona",2963,null,14,116.96428571428571,null,331,219,193,254,307,null,null,204,283,188,244,244,246,null,null,223,124,215,18,188,124,"-",16,16,16,16,null,null,2,3,3,3,3,2,1,2,3,3,3,3,3,2,1,2,3,3,null,null,2,null,null,331,307,283,254,246,244,244,223,219,215,204,193,188,124,"","",188,124,"-",2,null,3275,null,null,null,null,null,null,null,null,null,null,null,null,null,null,null,null,null,null,null,null,null,null,null,null,null,null,null,null,null,null,null,null,null,null,null,null,null,null,null,null,null,null,null,null,null,null,null,null,null,null,null,null,null,null,null,null,null,null,null,null,null,null,16,null,16,"(16)"]
["17 (17)","Berndt Pettersson","Lanternan",2898,null,12,120.75,null,null,217,249,232,257,null,null,null,224,177,221,274,291,null,null,247,227,282,18,"-","-","-",17,17,17,17,null,null,1,2,3,3,3,2,1,1,2,3,3,3,3,2,1,2,3,3,null,null,2,null,null,291,282,274,257,249,247,232,227,224,221,217,177,"","","","","-","-","-",4,null,2898,null,null,null,null,null,null,null,null,null,null,null,null,null,null,null,null,null,null,null,null,null,null,null,null,null,null,null,null,null,null,null,null,null,null,null,null,null,null,null,null,null,null,null,null,null,null,null,null,null,null,null,null,null,null,null,null,null,null,null,null,null,null,17,null,17,"(17)"]
["18 (18)","Bo Petersson","Korpen Nybro",2863,null,12,119.29166666666667,null,249,null,202,393,235,null,228,null,243,248,243,228,163,null,236,null,195,null,18,"-","-","-",18,18,18,18,null,null,2,2,2,3,3,2,2,2,2,3,3,3,3,2,2,2,2,2,null,null,2,null,null,393,249,248,243,243,236,235,228,228,202,195,163,"","","","","-","-","-",4,null,2863,null,null,null,null,null,null,null,null,null,null,null,null,null,null,null,null,null,null,null,null,null,null,null,null,null,null,null,null,null,null,null,null,null,null,null,null,null,null,null,null,null,null,null,null,null,null,null,null,null,null,null,null,null,null,null,null,null,null,null,null,null,null,18,null,18,"(18)"]
["19 (19)","Yamolada Damnoegam","Växjö Hsk",2797,null,11,127.13636363636364,null,null,154,299,270,225,null,192,null,223,235,350,261,316,null,null,null,272,null,18,"-","-","-",19,19,19,19,null,null,1,2,3,3,3,2,2,2,2,3,3,3,3,2,1,1,2,2,null,null,2,null,null,350,316,299,272,270,261,235,225,223,192,154,"","","","","","-","-","-",5,null,2797,null,null,null,null,null,null,null,null,null,null,null,null,null,null,null,null,null,null,null,null,null,null,null,null,null,null,null,null,null,null,null,null,null,null,null,null,null,null,null,null,null,null,null,null,null,null,null,null,null,null,null,null,null,null,null,null,null,null,null,null,null,null,19,null,19,"(19)"]
["20 (20)","Olle Ottosson","Dynapac ",2775,null,9,154.16666666666666,null,null,null,null,355,378,null,null,260,196,245,213,498,259,null,null,371,null,null,18,"-","-","-",20,20,20,20,null,null,1,1,1,2,3,2,1,2,3,3,3,3,3,2,1,2,2,1,null,null,2,null,null,498,378,371,355,260,259,245,213,196,"","","","","","","","-","-","-",7,null,2775,null,null,null,null,null,null,null,null,null,null,null,null,null,null,null,null,null,null,null,null,null,null,null,null,null,null,null,null,null,null,null,null,null,null,null,null,null,null,null,null,null,null,null,null,null,null,null,null,null,null,null,null,null,null,null,null,null,null,null,null,null,null,20,null,20,"(20)"]
["21 (21)","Göran Olofsson","Korpen Nybro",2740,null,14,110.5,null,238,174,214,216,276,null,236,null,228,180,238,227,234,null,187,null,215,231,18,180,174,"-",21,21,21,21,null,null,2,3,3,3,3,2,2,2,2,3,3,3,3,2,2,2,2,3,null,null,2,null,null,276,238,238,236,234,231,228,227,216,215,214,187,180,174,"","",180,174,"-",2,null,3094,null,null,null,null,null,null,null,null,null,null,null,null,null,null,null,null,null,null,null,null,null,null,null,null,null,null,null,null,null,null,null,null,null,null,null,null,null,null,null,null,null,null,null,null,null,null,null,null,null,null,null,null,null,null,null,null,null,null,null,null,null,null,21,null,21,"(21)"]
["21 (21)","Lisbeth Nygaard-Karlsson","Tingsryd",2740,null,10,137,null,null,313,null,316,259,195,null,null,341,null,263,254,null,null,339,null,241,219,18,"-","-","-",21,21,22,22,null,null,1,2,2,2,3,3,2,1,2,2,2,3,2,1,2,2,2,3,null,null,2,null,null,341,339,316,313,263,259,254,241,219,195,"","","","","","","-","-","-",6,null,2740,null,null,null,null,null,null,null,null,null,null,null,null,null,null,null,null,null,null,null,null,null,null,null,null,null,null,null,null,null,null,null,null,null,null,null,null,null,null,null,null,null,null,null,null,null,null,null,null,null,null,null,null,null,null,null,null,null,null,null,null,null,null,22,null,21,"(21)"]
["23 (23)","Bengt Fabbeke","Dynapac ",2731,null,12,113.79166666666667,null,335,null,257,175,285,196,null,261,null,175,140,null,230,null,null,168,221,288,18,"-","-","-",23,23,23,23,null,null,2,2,2,3,3,3,2,2,2,2,3,2,2,2,1,2,3,3,null,null,2,null,null,335,288,285,261,257,230,221,196,175,175,168,140,"","","","","-","-","-",4,null,2731,null,null,null,null,null,null,null,null,null,null,null,null,null,null,null,null,null,null,null,null,null,null,null,null,null,null,null,null,null,null,null,null,null,null,null,null,null,null,null,null,null,null,null,null,null,null,null,null,null,null,null,null,null,null,null,null,null,null,null,null,null,null,23,null,23,"(23)"]
["24 (24)","Tobias Gneupel","Sibbamåla",2712,null,7,193.71428571428572,null,null,null,null,340,null,null,null,337,390,381,null,403,440,null,null,421,null,null,18,"-","-","-",24,24,24,24,null,null,1,1,1,2,2,1,1,2,3,3,2,2,3,2,1,2,2,1,null,null,2,null,null,440,421,403,390,381,340,337,"","","","","","","","","","-","-","-",9,null,2712,null,null,null,null,null,null,null,null,null,null,null,null,null,null,null,null,null,null,null,null,null,null,null,null,null,null,null,null,null,null,null,null,null,null,null,null,null,null,null,null,null,null,null,null,null,null,null,null,null,null,null,null,null,null,null,null,null,null,null,null,null,null,24,null,24,"(24)"]
["25 (25)","Christer Blomgren","Lanternan",2690,null,13,109.19230769230769,null,null,243,239,241,223,149,null,190,199,224,150,226,276,null,null,227,252,null,18,149,"-","-",25,25,25,25,null,null,1,2,3,3,3,3,2,2,3,3,3,3,3,2,1,2,3,2,null,null,2,null,null,276,252,243,241,239,227,226,224,223,199,190,150,149,"","","",149,"-","-",3,null,2839,null,null,null,null,null,null,null,null,null,null,null,null,null,null,null,null,null,null,null,null,null,null,null,null,null,null,null,null,null,null,null,null,null,null,null,null,null,null,null,null,null,null,null,null,null,null,null,null,null,null,null,null,null,null,null,null,null,null,null,null,null,null,25,null,25,"(25)"]
["26 (26)","Kerstin Svensson","Växjö Hsk",2685,null,14,104.60714285714286,null,225,250,220,236,306,197,153,null,254,176,null,242,120,null,264,null,162,124,18,124,120,"-",26,26,26,26,null,null,2,3,3,3,3,3,3,2,2,3,2,2,3,2,2,2,2,3,null,null,2,null,null,306,264,254,250,242,236,225,220,197,176,162,153,124,120,"","",124,120,"-",2,null,2929,null,null,null,null,null,null,null,null,null,null,null,null,null,null,null,null,null,null,null,null,null,null,null,null,null,null,null,null,null,null,null,null,null,null,null,null,null,null,null,null,null,null,null,null,null,null,null,null,null,null,null,null,null,null,null,null,null,null,null,null,null,null,26,null,26,"(26)"]
["27 (27)","Dan Hallstan","Växjö",2680,null,15,104.76666666666667,null,248,246,176,137,225,158,252,null,178,177,239,253,260,null,204,null,222,168,18,168,158,137,27,27,27,27,null,null,2,3,3,3,3,3,3,2,2,3,3,3,3,2,2,2,2,3,null,null,2,null,null,260,253,252,248,246,239,225,222,204,178,177,176,168,158,137,"",168,158,137,1,null,3143,null,null,null,null,null,null,null,null,null,null,null,null,null,null,null,null,null,null,null,null,null,null,null,null,null,null,null,null,null,null,null,null,null,null,null,null,null,null,null,null,null,null,null,null,null,null,null,null,null,null,null,null,null,null,null,null,null,null,null,null,null,null,27,null,27,"(27)"]
["28 (28)","Johan Johansson","Tingsryd",2638,null,8,164.875,null,null,null,332,329,409,310,null,null,null,291,null,null,null,null,355,null,320,292,18,"-","-","-",28,28,28,28,null,null,1,1,2,3,3,3,2,1,1,2,2,1,1,1,2,2,2,3,null,null,2,null,null,409,355,332,329,320,310,292,291,"","","","","","","","","-","-","-",8,null,2638,null,null,null,null,null,null,null,null,null,null,null,null,null,null,null,null,null,null,null,null,null,null,null,null,null,null,null,null,null,null,null,null,null,null,null,null,null,null,null,null,null,null,null,null,null,null,null,null,null,null,null,null,null,null,null,null,null,null,null,null,null,null,28,null,28,"(28)"]
["29 (29)","Ingegerd Pettersson","Lanternan",2629,null,12,109.54166666666667,null,null,null,212,163,199,null,null,367,204,246,189,235,217,null,null,198,180,219,18,"-","-","-",29,29,29,29,null,null,1,1,2,3,3,2,1,2,3,3,3,3,3,2,1,2,3,3,null,null,2,null,null,367,246,235,219,217,212,204,199,198,189,180,163,"","","","","-","-","-",4,null,2629,null,null,null,null,null,null,null,null,null,null,null,null,null,null,null,null,null,null,null,null,null,null,null,null,null,null,null,null,null,null,null,null,null,null,null,null,null,null,null,null,null,null,null,null,null,null,null,null,null,null,null,null,null,null,null,null,null,null,null,null,null,null,29,null,29,"(29)"]
["30 (30)","Carina Gneupel","Sibbamåla",2622,null,11,119.18181818181819,null,273,null,196,217,270,189,null,209,247,null,248,null,253,null,null,303,217,null,18,"-","-","-",30,30,30,30,null,null,2,2,2,3,3,3,2,2,3,2,2,2,2,2,1,2,3,2,null,null,2,null,null,303,273,270,253,248,247,217,217,209,196,189,"","","","","","-","-","-",5,null,2622,null,null,null,null,null,null,null,null,null,null,null,null,null,null,null,null,null,null,null,null,null,null,null,null,null,null,null,null,null,null,null,null,null,null,null,null,null,null,null,null,null,null,null,null,null,null,null,null,null,null,null,null,null,null,null,null,null,null,null,null,null,null,30,null,30,"(30)"]
["31 (31)","Lasse Brincner","Värends Hsk",2601,null,12,108.375,null,220,167,147,191,112,251,240,null,null,302,310,235,269,null,157,null,null,null,18,"-","-","-",31,31,31,31,null,null,2,3,3,3,3,3,3,2,1,2,3,3,3,2,2,2,1,1,null,null,2,null,null,310,302,269,251,240,235,220,191,167,157,147,112,"","","","","-","-","-",4,null,2601,null,null,null,null,null,null,null,null,null,null,null,null,null,null,null,null,null,null,null,null,null,null,null,null,null,null,null,null,null,null,null,null,null,null,null,null,null,null,null,null,null,null,null,null,null,null,null,null,null,null,null,null,null,null,null,null,null,null,null,null,null,null,31,null,31,"(31)"]
["32 (32)","Roy Dahlén","Dynapac ",2591,null,13,104.61538461538461,null,null,298,254,182,211,243,null,255,179,174,null,230,174,null,null,155,236,129,18,129,"-","-",32,32,32,32,null,null,1,2,3,3,3,3,2,2,3,3,2,2,3,2,1,2,3,3,null,null,2,null,null,298,255,254,243,236,230,211,182,179,174,174,155,129,"","","",129,"-","-",3,null,2720,null,null,null,null,null,null,null,null,null,null,null,null,null,null,null,null,null,null,null,null,null,null,null,null,null,null,null,null,null,null,null,null,null,null,null,null,null,null,null,null,null,null,null,null,null,null,null,null,null,null,null,null,null,null,null,null,null,null,null,null,null,null,32,null,32,"(32)"]
["33 (33)","Bengt Andersson","Växjö Hsk",2564,null,11,116.54545454545455,null,298,264,270,258,233,null,232,null,null,255,null,190,202,null,193,null,169,null,18,"-","-","-",33,33,33,33,null,null,2,3,3,3,3,2,2,2,1,2,2,2,3,2,2,2,2,2,null,null,{"$f":"IF(H37=\"x\",1,2)","v":2},null,null,{"$f":"IF($F37>0,LARGE($I37:$Z37,1),\"\")","v":298},{"$f":"IF($F37>1,LARGE($I37:$Z37,2),\"\")","v":270},{"$f":"IF($F37>2,LARGE($I37:$Z37,3),\"\")","v":264},{"$f":"IF($F37>3,LARGE($I37:$Z37,4),\"\")","v":258},{"$f":"IF($F37>4,LARGE($I37:$Z37,5),\"\")","v":255},{"$f":"IF($F37>5,LARGE($I37:$Z37,6),\"\")","v":233},{"$f":"IF($F37>6,LARGE($I37:$Z37,7),\"\")","v":232},{"$f":"IF($F37>7,LARGE($I37:$Z37,8),\"\")","v":202},{"$f":"IF($F37>8,LARGE($I37:$Z37,9),\"\")","v":193},{"$f":"IF($F37>9,LARGE($I37:$Z37,10),\"\")","v":190},{"$f":"IF($F37>10,LARGE($I37:$Z37,11),\"\")","v":169},{"$f":"IF($F37>11,LARGE($I37:$Z37,12),\"\")","v":""},{"$f":"IF($F37>12,LARGE($I37:$Z37,13),\"\")","v":""},{"$f":"IF($F37>13,LARGE($I37:$Z37,14),\"\")","v":""},{"$f":"IF($F37>14,LARGE($I37:$Z37,15),\"\")","v":""},{"$f":"IF($F37>15,LARGE($I37:$Z37,16),\"\")","v":""},{"$f":"IF($F37>12,LARGE($I37:$Z37,13),\"-\")","v":"-"},{"$f":"IF($F37>13,LARGE($I37:$Z37,14),\"-\")","v":"-"},{"$f":"IF($F37>14,LARGE($I37:$Z37,15),\"-\")","v":"-"},{"$f":"SUM(AA37-F37)-2","v":5},null,2564,null,null,null,null,null,null,null,null,null,null,null,null,null,null,null,null,null,null,null,null,null,null,null,null,null,null,null,null,null,null,null,null,null,null,null,null,null,null,null,null,null,null,null,null,null,null,null,null,null,null,null,null,null,null,null,null,null,null,null,null,null,null,33,null,{"$f":"IF(BE37>=1,AF37,\"\")","v":33},"(33)"]
["34 (34)","Martin Antic","Värends Hsk",2525,null,12,105.20833333333333,null,288,223,220,215,207,171,143,null,null,220,196,239,null,null,224,null,null,179,18,"-","-","-",34,34,34,34,null,null,2,3,3,3,3,3,3,2,1,2,3,3,2,1,2,2,1,2,null,null,2,null,null,288,239,224,223,220,220,215,207,196,179,171,143,"","","","","-","-","-",4,null,2525,null,null,null,null,null,null,null,null,null,null,null,null,null,null,null,null,null,null,null,null,null,null,null,null,null,null,null,null,null,null,null,null,null,null,null,null,null,null,null,null,null,null,null,null,null,null,null,null,null,null,null,null,null,null,null,null,null,null,null,null,null,null,34,null,34,"(34)"]
["35 (35)","Ewa Malmqvist","Jämjö Hsk",2517,null,10,125.85,null,null,333,290,233,331,null,null,278,248,null,null,null,213,null,null,179,152,260,18,"-","-","-",35,35,35,35,null,null,1,2,3,3,3,2,1,2,3,2,1,1,2,2,1,2,3,3,null,null,2,null,null,333,331,290,278,260,248,233,213,179,152,"","","","","","","-","-","-",6,null,2517,null,null,null,null,null,null,null,null,null,null,null,null,null,null,null,null,null,null,null,null,null,null,null,null,null,null,null,null,null,null,null,null,null,null,null,null,null,null,null,null,null,null,null,null,null,null,null,null,null,null,null,null,null,null,null,null,null,null,null,null,null,null,35,null,35,"(35)"]
["36 (36)","Klara Larsson","Värends Hsk",2502,null,13,102,null,191,285,187,256,150,null,182,null,null,168,238,224,187,null,204,null,171,209,18,150,"-","-",36,36,36,36,null,null,2,3,3,3,3,2,2,2,1,2,3,3,3,2,2,2,2,3,null,null,2,null,null,285,256,238,224,209,204,191,187,187,182,171,168,150,"","","",150,"-","-",3,null,2652,null,null,null,null,null,null,null,null,null,null,null,null,null,null,null,null,null,null,null,null,null,null,null,null,null,null,null,null,null,null,null,null,null,null,null,null,null,null,null,null,null,null,null,null,null,null,null,null,null,null,null,null,null,null,null,null,null,null,null,null,null,null,36,null,36,"(36)"]
["37 (37)","Maire Johansson","Växjö",2469,null,10,123.45,null,268,332,null,286,229,null,259,null,null,258,null,null,227,null,199,null,189,222,18,"-","-","-",37,37,37,37,null,null,2,3,2,2,3,2,2,2,1,2,2,1,2,2,2,2,2,3,null,null,2,null,null,332,286,268,259,258,229,227,222,199,189,"","","","","","","-","-","-",6,null,2469,null,null,null,null,null,null,null,null,null,null,null,null,null,null,null,null,null,null,null,null,null,null,null,null,null,null,null,null,null,null,null,null,null,null,null,null,null,null,null,null,null,null,null,null,null,null,null,null,null,null,null,null,null,null,null,null,null,null,null,null,null,null,37,null,37,"(37)"]
["38 (38)","Jan Petersson","Lanternan",2448,null,12,102,null,null,null,279,187,181,null,null,195,108,234,205,171,274,null,null,272,196,146,18,"-","-","-",38,38,38,38,null,null,1,1,2,3,3,2,1,2,3,3,3,3,3,2,1,2,3,3,null,null,2,null,null,279,274,272,234,205,196,195,187,181,171,146,108,"","","","","-","-","-",4,null,2448,null,null,null,null,null,null,null,null,null,null,null,null,null,null,null,null,null,null,null,null,null,null,null,null,null,null,null,null,null,null,null,null,null,null,null,null,null,null,null,null,null,null,null,null,null,null,null,null,null,null,null,null,null,null,null,null,null,null,null,null,null,null,38,null,38,"(38)"]
["39 (39)","Bela Bodi","Växjö",2397,null,12,99.875,null,268,203,206,173,156,null,276,null,196,182,163,246,null,null,150,null,178,null,18,"-","-","-",39,39,39,39,null,null,2,3,3,3,3,2,2,2,2,3,3,3,2,1,2,2,2,2,null,null,2,null,null,276,268,246,206,203,196,182,178,173,163,156,150,"","","","","-","-","-",4,null,2397,null,null,null,null,null,null,null,null,null,null,null,null,null,null,null,null,null,null,null,null,null,null,null,null,null,null,null,null,null,null,null,null,null,null,null,null,null,null,null,null,null,null,null,null,null,null,null,null,null,null,null,null,null,null,null,null,null,null,null,null,null,null,39,null,39,"(39)"]
["40 (40)","Lennart Karlsson","Tingsryd",2388,null,9,132.66666666666666,null,null,367,null,287,null,205,null,null,228,null,284,243,null,null,346,null,190,238,18,"-","-","-",40,40,40,40,null,null,1,2,2,2,2,2,2,1,2,2,2,3,2,1,2,2,2,3,null,null,2,null,null,367,346,287,284,243,238,228,205,190,"","","","","","","","-","-","-",7,null,2388,null,null,null,null,null,null,null,null,null,null,null,null,null,null,null,null,null,null,null,null,null,null,null,null,null,null,null,null,null,null,null,null,null,null,null,null,null,null,null,null,null,null,null,null,null,null,null,null,null,null,null,null,null,null,null,null,null,null,null,null,null,null,40,null,40,"(40)"]
["41 (41)","Tomas Lindahl","Korpen Åseda",2374,null,11,107.90909090909091,null,268,null,170,244,244,null,217,null,144,210,194,231,null,null,274,null,null,178,18,"-","-","-",41,41,41,41,null,null,2,2,2,3,3,2,2,2,2,3,3,3,2,1,2,2,1,2,null,null,2,null,null,274,268,244,244,231,217,210,194,178,170,144,"","","","","","-","-","-",5,null,2374,null,null,null,null,null,null,null,null,null,null,null,null,null,null,null,null,null,null,null,null,null,null,null,null,null,null,null,null,null,null,null,null,null,null,null,null,null,null,null,null,null,null,null,null,null,null,null,null,null,null,null,null,null,null,null,null,null,null,null,null,null,null,41,null,41,"(41)"]
["42 (42)","Göran Mårtensson","Jämjö Hsk",2357,null,10,117.85,null,null,240,234,303,215,null,null,224,172,null,null,null,244,null,null,251,226,248,18,"-","-","-",42,42,42,42,null,null,1,2,3,3,3,2,1,2,3,2,1,1,2,2,1,2,3,3,null,null,2,null,null,303,251,248,244,240,234,226,224,215,172,"","","","","","","-","-","-",6,null,2357,null,null,null,null,null,null,null,null,null,null,null,null,null,null,null,null,null,null,null,null,null,null,null,null,null,null,null,null,null,null,null,null,null,null,null,null,null,null,null,null,null,null,null,null,null,null,null,null,null,null,null,null,null,null,null,null,null,null,null,null,null,null,42,null,42,"(42)"]
["43 (43)","Lukas Bern","Dynapac ",2317,null,10,115.85,null,null,220,null,249,206,null,null,200,217,308,195,227,260,null,null,235,null,null,18,"-","-","-",43,43,43,43,null,null,1,2,2,2,3,2,1,2,3,3,3,3,3,2,1,2,2,1,null,null,2,null,null,308,260,249,235,227,220,217,206,200,195,"","","","","","","-","-","-",6,null,2317,null,null,null,null,null,null,null,null,null,null,null,null,null,null,null,null,null,null,null,null,null,null,null,null,null,null,null,null,null,null,null,null,null,null,null,null,null,null,null,null,null,null,null,null,null,null,null,null,null,null,null,null,null,null,null,null,null,null,null,null,null,null,43,null,43,"(43)"]
["44 (44)","Peter Edlund","Dynapac ",2277,null,11,103.5,null,null,213,278,265,215,null,null,null,206,205,142,null,133,null,null,191,270,159,18,"-","-","-",44,44,44,44,null,null,1,2,3,3,3,2,1,1,2,3,3,2,2,2,1,2,3,3,null,null,2,null,null,278,270,265,215,213,206,205,191,159,142,133,"","","","","","-","-","-",5,null,2277,null,null,null,null,null,null,null,null,null,null,null,null,null,null,null,null,null,null,null,null,null,null,null,null,null,null,null,null,null,null,null,null,null,null,null,null,null,null,null,null,null,null,null,null,null,null,null,null,null,null,null,null,null,null,null,null,null,null,null,null,null,null,44,null,44,"(44)"]
["45 (45)","Alf Svensson","Korpen Åseda",2171,null,14,83.75,null,184,172,212,179,202,null,127,null,148,140,197,77,210,null,97,null,177,223,18,97,77,"-",45,45,45,45,null,null,2,3,3,3,3,2,2,2,2,3,3,3,3,2,2,2,2,3,null,null,2,null,null,223,212,210,202,197,184,179,177,172,148,140,127,97,77,"","",97,77,"-",2,null,2345,null,null,null,null,null,null,null,null,null,null,null,null,null,null,null,null,null,null,null,null,null,null,null,null,null,null,null,null,null,null,null,null,null,null,null,null,null,null,null,null,null,null,null,null,null,null,null,null,null,null,null,null,null,null,null,null,null,null,null,null,null,null,45,null,45,"(45)"]
["46 (46)","Thomas Dahl","Växjö",2144,null,12,89.333333333333329,null,null,171,274,171,137,null,202,null,198,141,209,220,171,null,121,null,129,null,18,"-","-","-",46,46,46,46,null,null,1,2,3,3,3,2,2,2,2,3,3,3,3,2,2,2,2,2,null,null,2,null,null,274,220,209,202,198,171,171,171,141,137,129,121,"","","","","-","-","-",4,null,2144,null,null,null,null,null,null,null,null,null,null,null,null,null,null,null,null,null,null,null,null,null,null,null,null,null,null,null,null,null,null,null,null,null,null,null,null,null,null,null,null,null,null,null,null,null,null,null,null,null,null,null,null,null,null,null,null,null,null,null,null,null,null,46,null,46,"(46)"]
["47 (47)","Ronny Lundberg","Lanternan",2071,null,10,103.55,null,null,240,237,154,259,null,null,null,130,176,186,146,282,null,null,null,null,261,18,"-","-","-",47,47,47,47,null,null,1,2,3,3,3,2,1,1,2,3,3,3,3,2,1,1,1,2,null,null,2,null,null,282,261,259,240,237,186,176,154,146,130,"","","","","","","-","-","-",6,null,2071,null,null,null,null,null,null,null,null,null,null,null,null,null,null,null,null,null,null,null,null,null,null,null,null,null,null,null,null,null,null,null,null,null,null,null,null,null,null,null,null,null,null,null,null,null,null,null,null,null,null,null,null,null,null,null,null,null,null,null,null,null,null,47,null,47,"(47)"]
["48 (48)","Bernt Olsson","Jämjö Hsk",2031,null,10,101.55,null,null,156,255,284,211,null,null,209,215,null,null,null,121,null,null,282,135,163,18,"-","-","-",48,48,48,48,null,null,1,2,3,3,3,2,1,2,3,2,1,1,2,2,1,2,3,3,null,null,2,null,null,284,282,255,215,211,209,163,156,135,121,"","","","","","","-","-","-",6,null,2031,null,null,null,null,null,null,null,null,null,null,null,null,null,null,null,null,null,null,null,null,null,null,null,null,null,null,null,null,null,null,null,null,null,null,null,null,null,null,null,null,null,null,null,null,null,null,null,null,null,null,null,null,null,null,null,null,null,null,null,null,null,null,48,null,48,"(48)"]
["49 (49)","Marianne Karlsson","Jämjö Hsk",2010,null,9,111.66666666666667,null,null,123,254,252,209,null,null,250,162,null,null,null,215,null,null,302,null,243,18,"-","-","-",49,49,49,49,null,null,1,2,3,3,3,2,1,2,3,2,1,1,2,2,1,2,2,2,null,null,2,null,null,302,254,252,250,243,215,209,162,123,"","","","","","","","-","-","-",7,null,2010,null,null,null,null,null,null,null,null,null,null,null,null,null,null,null,null,null,null,null,null,null,null,null,null,null,null,null,null,null,null,null,null,null,null,null,null,null,null,null,null,null,null,null,null,null,null,null,null,null,null,null,null,null,null,null,null,null,null,null,null,null,null,49,null,49,"(49)"]
["50 (50)","Sune Olsson","Korpen Nybro",1988,null,9,110.44444444444444,null,null,252,251,null,157,null,null,null,null,226,178,228,null,null,221,null,245,230,18,"-","-","-",50,50,50,50,null,null,1,2,3,2,2,2,1,1,1,2,3,3,2,1,2,2,2,3,null,null,2,null,null,252,251,245,230,228,226,221,178,157,"","","","","","","","-","-","-",7,null,1988,null,null,null,null,null,null,null,null,null,null,null,null,null,null,null,null,null,null,null,null,null,null,null,null,null,null,null,null,null,null,null,null,null,null,null,null,null,null,null,null,null,null,null,null,null,null,null,null,null,null,null,null,null,null,null,null,null,null,null,null,null,null,50,null,50,"(50)"]
["51 (51)","Elin Olsson","Dynapac ",1917,null,10,95.85,null,null,142,181,128,234,null,null,235,184,null,230,244,null,null,null,169,170,null,18,"-","-","-",51,51,51,51,null,null,1,2,3,3,3,2,1,2,3,2,2,3,2,1,1,2,3,2,null,null,2,null,null,244,235,234,230,184,181,170,169,142,128,"","","","","","","-","-","-",6,null,1917,null,null,null,null,null,null,null,null,null,null,null,null,null,null,null,null,null,null,null,null,null,null,null,null,null,null,null,null,null,null,null,null,null,null,null,null,null,null,null,null,null,null,null,null,null,null,null,null,null,null,null,null,null,null,null,null,null,null,null,null,null,null,51,null,51,"(51)"]
["52 (52)","Daniel Mårtensson","Jämjö Hsk",1905,null,10,95.25,null,null,158,254,135,115,null,null,173,null,null,null,210,236,null,null,302,158,164,18,"-","-","-",52,52,52,52,null,null,1,2,3,3,3,2,1,2,2,1,1,2,3,2,1,2,3,3,null,null,2,null,null,302,254,236,210,173,164,158,158,135,115,"","","","","","","-","-","-",6,null,1905,null,null,null,null,null,null,null,null,null,null,null,null,null,null,null,null,null,null,null,null,null,null,null,null,null,null,null,null,null,null,null,null,null,null,null,null,null,null,null,null,null,null,null,null,null,null,null,null,null,null,null,null,null,null,null,null,null,null,null,null,null,null,52,null,52,"(52)"]
["53 (53)","Anders Johansson","Dynapac ",1887,null,9,104.83333333333333,null,null,169,133,295,248,166,null,248,172,null,null,null,null,null,null,null,230,226,18,"-","-","-",53,53,53,53,null,null,1,2,3,3,3,3,2,2,3,2,1,1,1,1,1,1,2,3,null,null,2,null,null,295,248,248,230,226,172,169,166,133,"","","","","","","","-","-","-",7,null,1887,null,null,null,null,null,null,null,null,null,null,null,null,null,null,null,null,null,null,null,null,null,null,null,null,null,null,null,null,null,null,null,null,null,null,null,null,null,null,null,null,null,null,null,null,null,null,null,null,null,null,null,null,null,null,null,null,null,null,null,null,null,null,53,null,53,"(53)"]
["54 (54)","Bertil Westergren","Växjö Hsk",1868,null,10,93.4,null,198,null,null,220,198,185,166,null,176,129,186,179,null,null,null,null,null,231,18,"-","-","-",54,54,54,54,null,null,2,2,1,2,3,3,3,2,2,3,3,3,2,1,1,1,1,2,null,null,2,null,null,231,220,198,198,186,185,179,176,166,129,"","","","","","","-","-","-",6,null,1868,null,null,null,null,null,null,null,null,null,null,null,null,null,null,null,null,null,null,null,null,null,null,null,null,null,null,null,null,null,null,null,null,null,null,null,null,null,null,null,null,null,null,null,null,null,null,null,null,null,null,null,null,null,null,null,null,null,null,null,null,null,null,54,null,54,"(54)"]
["55 (55)","Åke Bergqvist","Tingsryd",1831,null,11,83.227272727272734,null,156,193,118,188,168,null,null,null,null,164,162,136,null,null,175,null,181,190,18,"-","-","-",55,55,55,55,null,null,2,3,3,3,3,2,1,1,1,2,3,3,2,1,2,2,2,3,null,null,2,null,null,193,190,188,181,175,168,164,162,156,136,118,"","","","","","-","-","-",5,null,1831,null,null,null,null,null,null,null,null,null,null,null,null,null,null,null,null,null,null,null,null,null,null,null,null,null,null,null,null,null,null,null,null,null,null,null,null,null,null,null,null,null,null,null,null,null,null,null,null,null,null,null,null,null,null,null,null,null,null,null,null,null,null,55,null,55,"(55)"]
["56 (56)","Inge Skoglöv","Jämjö Hsk",1827,null,9,101.5,null,null,null,283,138,255,null,null,null,232,141,null,null,210,null,null,228,183,157,18,"-","-","-",56,56,56,56,null,null,1,1,2,3,3,2,1,1,2,3,2,1,2,2,1,2,3,3,null,null,2,null,null,283,255,232,228,210,183,157,141,138,"","","","","","","","-","-","-",7,null,1827,null,null,null,null,null,null,null,null,null,null,null,null,null,null,null,null,null,null,null,null,null,null,null,null,null,null,null,null,null,null,null,null,null,null,null,null,null,null,null,null,null,null,null,null,null,null,null,null,null,null,null,null,null,null,null,null,null,null,null,null,null,null,56,null,56,"(56)"]
["57 (57)","Leif Sundahl","Carlskrona",1738,null,9,96.555555555555557,null,259,null,221,171,242,null,null,177,null,null,156,153,187,null,null,172,null,null,18,"-","-","-",57,57,57,57,null,null,2,2,2,3,3,2,1,2,2,1,2,3,3,2,1,2,2,1,null,null,2,null,null,259,242,221,187,177,172,171,156,153,"","","","","","","","-","-","-",7,null,1738,null,null,null,null,null,null,null,null,null,null,null,null,null,null,null,null,null,null,null,null,null,null,null,null,null,null,null,null,null,null,null,null,null,null,null,null,null,null,null,null,null,null,null,null,null,null,null,null,null,null,null,null,null,null,null,null,null,null,null,null,null,null,57,null,57,"(57)"]
["58 (58)","Louise Tollstam","Dynapac ",1714,null,9,95.222222222222229,null,null,189,257,205,208,null,null,197,105,null,null,190,153,null,null,210,null,null,18,"-","-","-",58,58,58,58,null,null,1,2,3,3,3,2,1,2,3,2,1,2,3,2,1,2,2,1,null,null,2,null,null,257,210,208,205,197,190,189,153,105,"","","","","","","","-","-","-",7,null,1714,null,null,null,null,null,null,null,null,null,null,null,null,null,null,null,null,null,null,null,null,null,null,null,null,null,null,null,null,null,null,null,null,null,null,null,null,null,null,null,null,null,null,null,null,null,null,null,null,null,null,null,null,null,null,null,null,null,null,null,null,null,null,58,null,58,"(58)"]
["59 (59)","Lars-Åke Karlsson","Jämjö Hsk",1707,null,9,94.833333333333329,null,null,193,212,119,198,null,null,210,216,196,null,null,null,null,null,null,201,162,18,"-","-","-",59,59,59,59,null,null,1,2,3,3,3,2,1,2,3,3,2,1,1,1,1,1,2,3,null,null,2,null,null,216,212,210,201,198,196,193,162,119,"","","","","","","","-","-","-",7,null,1707,null,null,null,null,null,null,null,null,null,null,null,null,null,null,null,null,null,null,null,null,null,null,null,null,null,null,null,null,null,null,null,null,null,null,null,null,null,null,null,null,null,null,null,null,null,null,null,null,null,null,null,null,null,null,null,null,null,null,null,null,null,null,59,null,59,"(59)"]
["60 (60)","Nils-Åke Hansson","Korpen Nybro",1688,null,11,76.727272727272734,null,134,132,265,112,116,null,null,null,null,null,134,207,130,null,95,null,214,149,18,"-","-","-",60,60,60,60,null,null,2,3,3,3,3,2,1,1,1,1,2,3,3,2,2,2,2,3,null,null,2,null,null,265,214,207,149,134,134,132,130,116,112,95,"","","","","","-","-","-",5,null,1688,null,null,null,null,null,null,null,null,null,null,null,null,null,null,null,null,null,null,null,null,null,null,null,null,null,null,null,null,null,null,null,null,null,null,null,null,null,null,null,null,null,null,null,null,null,null,null,null,null,null,null,null,null,null,null,null,null,null,null,null,null,null,60,null,60,"(60)"]
["61 (61)","Christer Lööv","Värends Hsk",1671,null,7,119.35714285714286,null,280,null,268,229,null,null,null,null,null,null,248,null,210,null,213,null,223,null,18,"-","-","-",61,61,61,61,null,null,2,2,2,3,2,1,1,1,1,1,2,2,2,2,2,2,2,2,null,null,2,null,null,280,268,248,229,223,213,210,"","","","","","","","","","-","-","-",9,null,1671,null,null,null,null,null,null,null,null,null,null,null,null,null,null,null,null,null,null,null,null,null,null,null,null,null,null,null,null,null,null,null,null,null,null,null,null,null,null,null,null,null,null,null,null,null,null,null,null,null,null,null,null,null,null,null,null,null,null,null,null,null,null,61,null,61,"(61)"]
["62 (65)","Björn Landberg","Vaxholm Hsk",1567,null,6,130.58333333333334,null,null,null,null,322,302,259,null,null,null,null,null,null,304,158,null,null,222,null,18,"-","-","-",65,62,62,62,null,null,1,1,1,2,3,3,2,1,1,1,1,1,2,3,2,1,2,2,null,null,2,null,null,322,304,302,259,222,158,"","","","","","","","","","","-","-","-",10,null,1567,null,null,null,null,null,null,null,null,null,null,null,null,null,null,null,null,null,null,null,null,null,null,null,null,null,null,null,null,null,null,null,null,null,null,null,null,null,null,null,null,null,null,null,null,null,null,null,null,null,null,null,null,null,null,null,null,null,null,null,null,null,null,62,null,62,"(65)"]
["63 (62)","Anne-Marie Larsson","Tingsryd",1538,null,8,96.125,null,257,234,112,null,null,null,null,null,null,149,241,null,null,null,112,null,224,209,18,"-","-","-",62,63,63,63,null,null,2,3,3,2,1,1,1,1,1,2,3,2,1,1,2,2,2,3,null,null,2,null,null,257,241,234,224,209,149,112,112,"","","","","","","","","-","-","-",8,null,1538,null,null,null,null,null,null,null,null,null,null,null,null,null,null,null,null,null,null,null,null,null,null,null,null,null,null,null,null,null,null,null,null,null,null,null,null,null,null,null,null,null,null,null,null,null,null,null,null,null,null,null,null,null,null,null,null,null,null,null,null,null,null,63,null,63,"(62)"]
["64 (63)","Solveig Axelsson","Växjö Hsk",1511,null,11,68.681818181818187,null,140,141,243,50,120,139,113,null,72,150,null,null,null,null,null,null,133,210,18,"-","-","-",63,64,64,64,null,null,2,3,3,3,3,3,3,2,2,3,2,1,1,1,1,1,2,3,null,null,2,null,null,243,210,150,141,140,139,133,120,113,72,50,"","","","","","-","-","-",5,null,1511,null,null,null,null,null,null,null,null,null,null,null,null,null,null,null,null,null,null,null,null,null,null,null,null,null,null,null,null,null,null,null,null,null,null,null,null,null,null,null,null,null,null,null,null,null,null,null,null,null,null,null,null,null,null,null,null,null,null,null,null,null,null,64,null,64,"(63)"]
[{"$f":"IF(BE69>1,AF69&\" (\"&AE69&\")\",AF69&\" (\"&AG69&\")\")","v":"65 (64)"},"Mathias Karlberg","Jämjö Hsk",{"$f":"SUM(BH69:BS69)","v":1504},null,{"$f":"COUNT(I69:Z69)","v":5},{"$f":"SUM((CC69)/(F69*2))","v":150.4},null,null,325,null,null,null,null,null,null,268,null,null,251,328,null,null,332,null,null,{"$f":"SUM($I$3:$Z$3)","v":18},{"$f":"BX69","v":"-"},{"$f":"BY69","v":"-"},{"$f":"BZ69","v":"-"},64,{"$f":"IF(D69<D68,AH69,AF68)","v":65},{"$f":"IF(F69>1,ROW(65:65),\"-\")","v":65},65,null,null,1,2,2,1,1,1,1,1,2,2,1,2,3,2,1,2,2,1,null,null,{"$f":"IF(H69=\"x\",1,2)","v":2},null,null,{"$f":"IF($F69>0,LARGE($I69:$Z69,1),\"\")","v":332},{"$f":"IF($F69>1,LARGE($I69:$Z69,2),\"\")","v":328},{"$f":"IF($F69>2,LARGE($I69:$Z69,3),\"\")","v":325},{"$f":"IF($F69>3,LARGE($I69:$Z69,4),\"\")","v":268},{"$f":"IF($F69>4,LARGE($I69:$Z69,5),\"\")","v":251},{"$f":"IF($F69>5,LARGE($I69:$Z69,6),\"\")","v":""},{"$f":"IF($F69>6,LARGE($I69:$Z69,7),\"\")","v":""},{"$f":"IF($F69>7,LARGE($I69:$Z69,8),\"\")","v":""},{"$f":"IF($F69>8,LARGE($I69:$Z69,9),\"\")","v":""},{"$f":"IF($F69>9,LARGE($I69:$Z69,10),\"\")","v":""},{"$f":"IF($F69>10,LARGE($I69:$Z69,11),\"\")","v":""},{"$f":"IF($F69>11,LARGE($I69:$Z69,12),\"\")","v":""},{"$f":"IF($F69>12,LARGE($I69:$Z69,13),\"\")","v":""},{"$f":"IF($F69>13,LARGE($I69:$Z69,14),\"\")","v":""},{"$f":"IF($F69>14,LARGE($I69:$Z69,15),\"\")","v":""},{"$f":"IF($F69>15,LARGE($I69:$Z69,16),\"\")","v":""},{"$f":"IF($F69>12,LARGE($I69:$Z69,13),\"-\")","v":"-"},{"$f":"IF($F69>13,LARGE($I69:$Z69,14),\"-\")","v":"-"},{"$f":"IF($F69>14,LARGE($I69:$Z69,15),\"-\")","v":"-"},{"$f":"SUM(AA69-F69)-2","v":11},null,{"$f":"SUM(BH69:BW69)","v":1504},null,null,null,null,null,null,null,null,null,null,null,null,null,null,null,null,null,null,null,null,null,null,null,null,null,null,null,null,null,null,null,null,null,null,null,null,null,null,null,null,null,null,null,null,null,null,null,null,null,null,null,null,null,null,null,null,null,null,null,null,null,null,65,null,{"$f":"IF(BE69>=1,AF69,\"\")","v":65},{"$f":"IF(BE69>1,\"(\"&AE69&\")\",\"(\"&AG69&\")\")","v":"(64)"}]
["66 (65)","Lars Johanesson","Jämjö Hsk",1412,null,7,100.85714285714286,null,null,283,265,246,null,null,null,129,null,null,null,135,null,null,null,235,119,null,18,"-","-","-",65,66,66,66,null,null,{"$f":"COUNT($I$3,I70,H70)","v":1},{"$f":"COUNT($J$3,J70,I70)","v":2},{"$f":"COUNT($K$3,K70,J70)","v":3},{"$f":"COUNT($L$3,L70,K70)","v":3},{"$f":"COUNT($M$3,M70,L70)","v":2},{"$f":"COUNT($N$3,N70,M70)","v":1},{"$f":"COUNT($O$3,O70,N70)","v":1},{"$f":"COUNT($P$3,P70,O70)","v":2},{"$f":"COUNT($Q$3,Q70,P70)","v":2},{"$f":"COUNT($R$3,R70,Q70)","v":1},{"$f":"COUNT($S$3,S70,R70)","v":1},{"$f":"COUNT($T$3,T70,S70)","v":2},{"$f":"COUNT($U$3,U70,T70)","v":2},{"$f":"COUNT($V$3,V70,U70)","v":1},{"$f":"COUNT($W$3,W70,V70)","v":1},{"$f":"COUNT($X$3,X70,W70)","v":2},{"$f":"COUNT($Y$3,Y70,X70)","v":3},{"$f":"COUNT($Z$3,Z70,Y70)","v":2},null,null,2,null,null,283,265,246,235,135,129,119,"","","","","","","","","","-","-","-",9,null,1412,null,null,null,null,null,null,null,null,null,null,null,null,null,null,null,null,null,null,null,null,null,null,null,null,null,null,null,null,null,null,null,null,null,null,null,null,null,null,null,null,null,null,null,null,null,null,null,null,null,null,null,null,null,null,null,null,null,null,null,null,null,null,66,null,66,"(65)"]
["67 (67)","Maj-Britt Jarl","Växjö",1375,null,6,114.58333333333333,null,307,240,223,null,null,null,147,null,null,null,null,null,null,null,161,null,null,297,18,"-","-","-",67,67,67,67,null,null,2,3,3,2,1,1,2,2,1,1,1,1,1,1,2,2,1,2,null,null,2,null,null,307,297,240,223,161,147,"","","","","","","","","","","-","-","-",10,null,1375,null,null,null,null,null,null,null,null,null,null,null,null,null,null,null,null,null,null,null,null,null,null,null,null,null,null,null,null,null,null,null,null,null,null,null,null,null,null,null,null,null,null,null,null,null,null,null,null,null,null,null,null,null,null,null,null,null,null,null,null,null,null,67,null,67,"(67)"]
["68 (73)","Kristian Jältsäter","Vaxholm Hsk",1303,null,6,108.58333333333333,null,null,null,null,262,246,180,null,null,null,null,null,null,213,221,null,null,181,null,18,"-","-","-",73,68,68,68,null,null,1,1,1,2,3,3,2,1,1,1,1,1,2,3,2,1,2,2,null,null,2,null,null,262,246,221,213,181,180,"","","","","","","","","","","-","-","-",10,null,1303,null,null,null,null,null,null,null,null,null,null,null,null,null,null,null,null,null,null,null,null,null,null,null,null,null,null,null,null,null,null,null,null,null,null,null,null,null,null,null,null,null,null,null,null,null,null,null,null,null,null,null,null,null,null,null,null,null,null,null,null,null,null,68,null,68,"(73)"]
["69 (68)","Marcus Karlsson","Jämjö Hsk",1301,null,6,108.41666666666667,null,null,342,null,null,null,null,null,146,146,null,null,null,208,null,null,253,null,206,18,"-","-","-",68,69,69,69,null,null,1,2,2,1,1,1,1,2,3,2,1,1,2,2,1,2,2,2,null,null,2,null,null,342,253,208,206,146,146,"","","","","","","","","","","-","-","-",10,null,1301,null,null,null,null,null,null,null,null,null,null,null,null,null,null,null,null,null,null,null,null,null,null,null,null,null,null,null,null,null,null,null,null,null,null,null,null,null,null,null,null,null,null,null,null,null,null,null,null,null,null,null,null,null,null,null,null,null,null,null,null,null,null,69,null,69,"(68)"]
["70 (69)","Björn Gabrielsson","Vaxholm Hsk",1172,null,5,117.2,null,null,null,null,237,215,257,null,null,null,null,null,null,220,null,null,null,243,null,18,"-","-","-",69,70,70,70,null,null,1,1,1,2,3,3,2,1,1,1,1,1,2,2,1,1,2,2,null,null,2,null,null,257,243,237,220,215,"","","","","","","","","","","","-","-","-",11,null,1172,null,null,null,null,null,null,null,null,null,null,null,null,null,null,null,null,null,null,null,null,null,null,null,null,null,null,null,null,null,null,null,null,null,null,null,null,null,null,null,null,null,null,null,null,null,null,null,null,null,null,null,null,null,null,null,null,null,null,null,null,null,null,70,null,70,"(69)"]
["71 (70)","Christer Brincner","Värends Hsk",1149,null,6,95.75,null,187,null,null,236,270,127,198,null,null,131,null,null,null,null,null,null,null,null,18,"-","-","-",70,71,71,71,null,null,2,2,1,2,3,3,3,2,1,2,2,1,1,1,1,1,1,1,null,null,2,null,null,270,236,198,187,131,127,"","","","","","","","","","","-","-","-",10,null,1149,null,null,null,null,null,null,null,null,null,null,null,null,null,null,null,null,null,null,null,null,null,null,null,null,null,null,null,null,null,null,null,null,null,null,null,null,null,null,null,null,null,null,null,null,null,null,null,null,null,null,null,null,null,null,null,null,null,null,null,null,null,null,71,null,71,"(70)"]
["72 (71)","Irené Pettersson","Lanternan",1111,null,6,92.583333333333329,null,null,186,180,null,null,null,null,null,null,null,null,179,173,null,null,246,147,null,18,"-","-","-",71,72,72,72,null,null,1,2,3,2,1,1,1,1,1,1,1,2,3,2,1,2,3,2,null,null,2,null,null,246,186,180,179,173,147,"","","","","","","","","","","-","-","-",10,null,1111,null,null,null,null,null,null,null,null,null,null,null,null,null,null,null,null,null,null,null,null,null,null,null,null,null,null,null,null,null,null,null,null,null,null,null,null,null,null,null,null,null,null,null,null,null,null,null,null,null,null,null,null,null,null,null,null,null,null,null,null,null,null,72,null,72,"(71)"]
["73 (72)","Gilbert Pettersson","Lanternan",1106,null,5,110.6,null,null,null,181,null,null,null,null,null,207,null,221,242,255,null,null,null,null,null,18,"-","-","-",72,73,73,73,null,null,1,1,2,2,1,1,1,1,2,2,2,3,3,2,1,1,1,1,null,null,2,null,null,255,242,221,207,181,"","","","","","","","","","","","-","-","-",11,null,1106,null,null,null,null,null,null,null,null,null,null,null,null,null,null,null,null,null,null,null,null,null,null,null,null,null,null,null,null,null,null,null,null,null,null,null,null,null,null,null,null,null,null,null,null,null,null,null,null,null,null,null,null,null,null,null,null,null,null,null,null,null,null,73,null,73,"(72)"]
["74 (73)","Lars-Erik Ottosson","Lanternan",1098,null,5,109.8,null,null,null,null,null,null,null,null,201,188,null,null,197,188,null,null,324,null,null,18,"-","-","-",73,74,74,74,null,null,1,1,1,1,1,1,1,2,3,2,1,2,3,2,1,2,2,1,null,null,2,null,null,324,201,197,188,188,"","","","","","","","","","","","-","-","-",11,null,1098,null,null,null,null,null,null,null,null,null,null,null,null,null,null,null,null,null,null,null,null,null,null,null,null,null,null,null,null,null,null,null,null,null,null,null,null,null,null,null,null,null,null,null,null,null,null,null,null,null,null,null,null,null,null,null,null,null,null,null,null,null,null,74,null,74,"(73)"]
["75 (75)","Anders Karlsson","Värends Hsk",1055,null,6,87.916666666666671,null,147,195,null,null,247,null,120,null,null,null,null,null,187,null,null,null,159,null,18,"-","-","-",75,75,75,75,null,null,2,3,2,1,2,2,2,2,1,1,1,1,2,2,1,1,2,2,null,null,2,null,null,247,195,187,159,147,120,"","","","","","","","","","","-","-","-",10,null,1055,null,null,null,null,null,null,null,null,null,null,null,null,null,null,null,null,null,null,null,null,null,null,null,null,null,null,null,null,null,null,null,null,null,null,null,null,null,null,null,null,null,null,null,null,null,null,null,null,null,null,null,null,null,null,null,null,null,null,null,null,null,null,75,null,75,"(75)"]
["76 (76)","Morgan Atle","Dynapac ",1043,null,6,86.916666666666671,null,null,null,207,230,197,null,null,null,143,null,null,86,null,null,null,180,null,null,18,"-","-","-",76,76,76,76,null,null,1,1,2,3,3,2,1,1,2,2,1,2,2,1,1,2,2,1,null,null,2,null,null,230,207,197,180,143,86,"","","","","","","","","","","-","-","-",10,null,1043,null,null,null,null,null,null,null,null,null,null,null,null,null,null,null,null,null,null,null,null,null,null,null,null,null,null,null,null,null,null,null,null,null,null,null,null,null,null,null,null,null,null,null,null,null,null,null,null,null,null,null,null,null,null,null,null,null,null,null,null,null,null,76,null,76,"(76)"]
["77 (77)","Jonas Klarström","Team Småland Hsk",1020,null,7,72.857142857142861,null,null,200,null,188,149,null,null,null,71,null,148,null,null,null,129,null,null,135,18,"-","-","-",77,77,77,77,null,null,1,2,2,2,3,2,1,1,2,2,2,2,1,1,2,2,1,2,null,null,2,null,null,200,188,149,148,135,129,71,"","","","","","","","","","-","-","-",9,null,1020,null,null,null,null,null,null,null,null,null,null,null,null,null,null,null,null,null,null,null,null,null,null,null,null,null,null,null,null,null,null,null,null,null,null,null,null,null,null,null,null,null,null,null,null,null,null,null,null,null,null,null,null,null,null,null,null,null,null,null,null,null,null,77,null,77,"(77)"]
["78 (78)","Gunnar Lundbeck","Tingsryd",995,null,7,71.071428571428569,null,null,null,168,115,124,null,null,null,null,141,201,63,null,null,183,null,null,null,18,"-","-","-",78,78,78,78,null,null,1,1,2,3,3,2,1,1,1,2,3,3,2,1,2,2,1,1,null,null,2,null,null,201,183,168,141,124,115,63,"","","","","","","","","","-","-","-",9,null,995,null,null,null,null,null,null,null,null,null,null,null,null,null,null,null,null,null,null,null,null,null,null,null,null,null,null,null,null,null,null,null,null,null,null,null,null,null,null,null,null,null,null,null,null,null,null,null,null,null,null,null,null,null,null,null,null,null,null,null,null,null,null,78,null,78,"(78)"]
["79 (79)","Arne Blihd","Lanternan",986,null,6,82.166666666666671,null,null,208,153,null,null,null,null,null,164,null,112,162,null,null,null,187,null,null,18,"-","-","-",79,79,79,79,null,null,1,2,3,2,1,1,1,1,2,2,2,3,2,1,1,2,2,1,null,null,2,null,null,208,187,164,162,153,112,"","","","","","","","","","","-","-","-",10,null,986,null,null,null,null,null,null,null,null,null,null,null,null,null,null,null,null,null,null,null,null,null,null,null,null,null,null,null,null,null,null,null,null,null,null,null,null,null,null,null,null,null,null,null,null,null,null,null,null,null,null,null,null,null,null,null,null,null,null,null,null,null,null,79,null,79,"(79)"]
["80 (80)","Stefan Olofsson","Korpen Nybro",977,null,4,122.125,null,null,null,null,242,null,null,295,null,null,255,185,null,null,null,null,null,null,null,18,"-","-","-",80,80,80,80,null,null,1,1,1,2,2,1,2,2,1,2,3,2,1,1,1,1,1,1,null,null,2,null,null,295,255,242,185,"","","","","","","","","","","","","-","-","-",12,null,977,null,null,null,null,null,null,null,null,null,null,null,null,null,null,null,null,null,null,null,null,null,null,null,null,null,null,null,null,null,null,null,null,null,null,null,null,null,null,null,null,null,null,null,null,null,null,null,null,null,null,null,null,null,null,null,null,null,null,null,null,null,null,80,null,80,"(80)"]
["81 (81)","Lisbeth Blihd","Lanternan",963,null,6,80.25,null,null,160,130,null,null,null,null,null,143,null,153,224,null,null,null,153,null,null,18,"-","-","-",81,81,81,81,null,null,1,2,3,2,1,1,1,1,2,2,2,3,2,1,1,2,2,1,null,null,2,null,null,224,160,153,153,143,130,"","","","","","","","","","","-","-","-",10,null,963,null,null,null,null,null,null,null,null,null,null,null,null,null,null,null,null,null,null,null,null,null,null,null,null,null,null,null,null,null,null,null,null,null,null,null,null,null,null,null,null,null,null,null,null,null,null,null,null,null,null,null,null,null,null,null,null,null,null,null,null,null,null,81,null,81,"(81)"]
["82 (82)","Sebastian Israelsson","Sibbamåla",956,null,4,119.5,null,null,null,null,219,null,null,null,314,190,null,null,233,null,null,null,null,null,null,18,"-","-","-",82,82,82,82,null,null,1,1,1,2,2,1,1,2,3,2,1,2,2,1,1,1,1,1,null,null,2,null,null,314,233,219,190,"","","","","","","","","","","","","-","-","-",12,null,956,null,null,null,null,null,null,null,null,null,null,null,null,null,null,null,null,null,null,null,null,null,null,null,null,null,null,null,null,null,null,null,null,null,null,null,null,null,null,null,null,null,null,null,null,null,null,null,null,null,null,null,null,null,null,null,null,null,null,null,null,null,null,82,null,82,"(82)"]
["83 (83)","Mikael Grönskog","Sibbamåla",920,null,5,92,null,null,null,null,null,null,null,null,null,175,null,null,171,228,null,null,201,145,null,18,"-","-","-",83,83,83,83,null,null,1,1,1,1,1,1,1,1,2,2,1,2,3,2,1,2,3,2,null,null,2,null,null,228,201,175,171,145,"","","","","","","","","","","","-","-","-",11,null,920,null,null,null,null,null,null,null,null,null,null,null,null,null,null,null,null,null,null,null,null,null,null,null,null,null,null,null,null,null,null,null,null,null,null,null,null,null,null,null,null,null,null,null,null,null,null,null,null,null,null,null,null,null,null,null,null,null,null,null,null,null,null,83,null,83,"(83)"]
["84 (84)","Alf Johansson","Värends Hsk",912,null,9,50.666666666666664,null,122,118,94,116,146,null,59,null,null,104,null,null,null,null,null,null,44,109,18,"-","-","-",84,84,84,84,null,null,2,3,3,3,3,2,2,2,1,2,2,1,1,1,1,1,2,3,null,null,2,null,null,146,122,118,116,109,104,94,59,44,"","","","","","","","-","-","-",7,null,912,null,null,null,null,null,null,null,null,null,null,null,null,null,null,null,null,null,null,null,null,null,null,null,null,null,null,null,null,null,null,null,null,null,null,null,null,null,null,null,null,null,null,null,null,null,null,null,null,null,null,null,null,null,null,null,null,null,null,null,null,null,null,84,null,84,"(84)"]
["85 (85)","Hans Johansson","Tingsryd",894,null,4,111.75,null,null,null,null,215,206,null,null,null,null,null,null,null,null,null,null,null,265,208,18,"-","-","-",85,85,85,85,null,null,1,1,1,2,3,2,1,1,1,1,1,1,1,1,1,1,2,3,null,null,2,null,null,265,215,208,206,"","","","","","","","","","","","","-","-","-",12,null,894,null,null,null,null,null,null,null,null,null,null,null,null,null,null,null,null,null,null,null,null,null,null,null,null,null,null,null,null,null,null,null,null,null,null,null,null,null,null,null,null,null,null,null,null,null,null,null,null,null,null,null,null,null,null,null,null,null,null,null,null,null,null,85,null,85,"(85)"]
["86 (86)","Maria Andersson","Team Småland Hsk",867,null,5,86.7,null,null,193,null,222,163,null,null,null,104,null,null,null,null,null,null,null,null,185,18,"-","-","-",86,86,86,86,null,null,1,2,2,2,3,2,1,1,2,2,1,1,1,1,1,1,1,2,null,null,2,null,null,222,193,185,163,104,"","","","","","","","","","","","-","-","-",11,null,867,null,null,null,null,null,null,null,null,null,null,null,null,null,null,null,null,null,null,null,null,null,null,null,null,null,null,null,null,null,null,null,null,null,null,null,null,null,null,null,null,null,null,null,null,null,null,null,null,null,null,null,null,null,null,null,null,null,null,null,null,null,null,86,null,86,"(86)"]
["87 (87)","Janne Johansson","Tingsryd",753,null,3,125.5,null,null,null,null,null,290,null,null,null,null,null,null,178,null,null,285,null,null,null,18,"-","-","-",87,87,87,87,null,null,1,1,1,1,2,2,1,1,1,1,1,2,2,1,2,2,1,1,null,null,2,null,null,290,285,178,"","","","","","","","","","","","","","-","-","-",13,null,753,null,null,null,null,null,null,null,null,null,null,null,null,null,null,null,null,null,null,null,null,null,null,null,null,null,null,null,null,null,null,null,null,null,null,null,null,null,null,null,null,null,null,null,null,null,null,null,null,null,null,null,null,null,null,null,null,null,null,null,null,null,null,87,null,87,"(87)"]
["88 (88)","Mattias Olsson","Dynapac ",727,null,3,121.16666666666667,null,null,null,null,null,null,null,null,null,238,null,null,null,230,null,null,259,null,null,18,"-","-","-",88,88,88,88,null,null,1,1,1,1,1,1,1,1,2,2,1,1,2,2,1,2,2,1,null,null,2,null,null,259,238,230,"","","","","","","","","","","","","","-","-","-",13,null,727,null,null,null,null,null,null,null,null,null,null,null,null,null,null,null,null,null,null,null,null,null,null,null,null,null,null,null,null,null,null,null,null,null,null,null,null,null,null,null,null,null,null,null,null,null,null,null,null,null,null,null,null,null,null,null,null,null,null,null,null,null,null,88,null,88,"(88)"]
["89 (89)","Tommy Svensson","Värends Hsk",679,null,5,67.900000000000006,null,229,127,null,null,89,null,null,null,null,130,null,104,null,null,null,null,null,null,18,"-","-","-",89,89,89,89,null,null,2,3,2,1,2,2,1,1,1,2,2,2,2,1,1,1,1,1,null,null,2,null,null,229,130,127,104,89,"","","","","","","","","","","","-","-","-",11,null,679,null,null,null,null,null,null,null,null,null,null,null,null,null,null,null,null,null,null,null,null,null,null,null,null,null,null,null,null,null,null,null,null,null,null,null,null,null,null,null,null,null,null,null,null,null,null,null,null,null,null,null,null,null,null,null,null,null,null,null,null,null,null,90,null,89,"(89)"]
["90 (90)","Kerstin Petersen","Växjö Hsk",678,null,4,84.75,null,null,null,170,194,null,null,152,null,null,null,null,null,null,null,null,null,null,162,18,"-","-","-",90,90,90,90,null,null,1,1,2,3,2,1,2,2,1,1,1,1,1,1,1,1,1,2,null,null,2,null,null,194,170,162,152,"","","","","","","","","","","","","-","-","-",12,null,678,null,null,null,null,null,null,null,null,null,null,null,null,null,null,null,null,null,null,null,null,null,null,null,null,null,null,null,null,null,null,null,null,null,null,null,null,null,null,null,null,null,null,null,null,null,null,null,null,null,null,null,null,null,null,null,null,null,null,null,null,null,null,91,null,90,"(90)"]
["91 (91)","Ingegärd Holmqvist","Lanternan",676,null,5,67.599999999999994,null,null,124,144,130,131,null,null,null,null,null,null,null,null,null,null,147,null,null,18,"-","-","-",91,91,91,91,null,null,1,2,3,3,3,2,1,1,1,1,1,1,1,1,1,2,2,1,null,null,2,null,null,147,144,131,130,124,"","","","","","","","","","","","-","-","-",11,null,676,null,null,null,null,null,null,null,null,null,null,null,null,null,null,null,null,null,null,null,null,null,null,null,null,null,null,null,null,null,null,null,null,null,null,null,null,null,null,null,null,null,null,null,null,null,null,null,null,null,null,null,null,null,null,null,null,null,null,null,null,null,null,92,null,91,"(91)"]
["92 (92)","Tony Borgström","Carlskrona",669,null,3,111.5,null,null,null,null,213,274,null,null,null,182,null,null,null,null,null,null,null,null,null,18,"-","-","-",92,92,92,92,null,null,1,1,1,2,3,2,1,1,2,2,1,1,1,1,1,1,1,1,null,null,2,null,null,274,213,182,"","","","","","","","","","","","","","-","-","-",13,null,669,null,null,null,null,null,null,null,null,null,null,null,null,null,null,null,null,null,null,null,null,null,null,null,null,null,null,null,null,null,null,null,null,null,null,null,null,null,null,null,null,null,null,null,null,null,null,null,null,null,null,null,null,null,null,null,null,null,null,null,null,null,null,93,null,92,"(92)"]
["93 (93)","Christian Balsiger","Värends Hsk",663,null,3,110.5,null,201,null,null,210,252,null,null,null,null,null,null,null,null,null,null,null,null,null,18,"-","-","-",93,93,93,93,null,null,2,2,1,2,3,2,1,1,1,1,1,1,1,1,1,1,1,1,null,null,2,null,null,252,210,201,"","","","","","","","","","","","","","-","-","-",13,null,663,null,null,null,null,null,null,null,null,null,null,null,null,null,null,null,null,null,null,null,null,null,null,null,null,null,null,null,null,null,null,null,null,null,null,null,null,null,null,null,null,null,null,null,null,null,null,null,null,null,null,null,null,null,null,null,null,null,null,null,null,null,null,89,null,93,"(93)"]
["94 (94)","Annika Milsten","Tingsryd",662,null,3,110.33333333333333,null,null,null,null,232,237,null,null,null,null,null,null,null,null,null,null,null,null,193,18,"-","-","-",94,94,94,94,null,null,1,1,1,2,3,2,1,1,1,1,1,1,1,1,1,1,1,2,null,null,2,null,null,237,232,193,"","","","","","","","","","","","","","-","-","-",13,null,662,null,null,null,null,null,null,null,null,null,null,null,null,null,null,null,null,null,null,null,null,null,null,null,null,null,null,null,null,null,null,null,null,null,null,null,null,null,null,null,null,null,null,null,null,null,null,null,null,null,null,null,null,null,null,null,null,null,null,null,null,null,null,94,null,94,"(94)"]
["95 (95)","Julius Gneupel","Sibbamåla",606,null,4,75.75,null,null,null,null,151,123,null,null,null,158,null,null,null,174,null,null,null,null,null,18,"-","-","-",95,95,95,95,null,null,1,1,1,2,3,2,1,1,2,2,1,1,2,2,1,1,1,1,null,null,2,null,null,174,158,151,123,"","","","","","","","","","","","","-","-","-",12,null,606,null,null,null,null,null,null,null,null,null,null,null,null,null,null,null,null,null,null,null,null,null,null,null,null,null,null,null,null,null,null,null,null,null,null,null,null,null,null,null,null,null,null,null,null,null,null,null,null,null,null,null,null,null,null,null,null,null,null,null,null,null,null,95,null,95,"(95)"]
["96 (96)","Kjell Åkesson","Lanternan",603,null,3,100.5,null,null,null,187,null,null,null,null,null,187,null,null,229,null,null,null,null,null,null,18,"-","-","-",96,96,96,96,null,null,1,1,2,2,1,1,1,1,2,2,1,2,2,1,1,1,1,1,null,null,2,null,null,229,187,187,"","","","","","","","","","","","","","-","-","-",13,null,603,null,null,null,null,null,null,null,null,null,null,null,null,null,null,null,null,null,null,null,null,null,null,null,null,null,null,null,null,null,null,null,null,null,null,null,null,null,null,null,null,null,null,null,null,null,null,null,null,null,null,null,null,null,null,null,null,null,null,null,null,null,null,96,null,96,"(96)"]
["97 (97)","Hernan Hernandez","Jämjö Hsk",577,null,4,72.125,null,null,188,null,null,null,null,null,null,76,null,null,null,158,null,null,155,null,null,18,"-","-","-",97,97,97,97,null,null,1,2,2,1,1,1,1,1,2,2,1,1,2,2,1,2,2,1,null,null,{"$f":"IF(H101=\"x\",1,2)","v":2},null,null,{"$f":"IF($F101>0,LARGE($I101:$Z101,1),\"\")","v":188},{"$f":"IF($F101>1,LARGE($I101:$Z101,2),\"\")","v":158},{"$f":"IF($F101>2,LARGE($I101:$Z101,3),\"\")","v":155},{"$f":"IF($F101>3,LARGE($I101:$Z101,4),\"\")","v":76},{"$f":"IF($F101>4,LARGE($I101:$Z101,5),\"\")","v":""},{"$f":"IF($F101>5,LARGE($I101:$Z101,6),\"\")","v":""},{"$f":"IF($F101>6,LARGE($I101:$Z101,7),\"\")","v":""},{"$f":"IF($F101>7,LARGE($I101:$Z101,8),\"\")","v":""},{"$f":"IF($F101>8,LARGE($I101:$Z101,9),\"\")","v":""},{"$f":"IF($F101>9,LARGE($I101:$Z101,10),\"\")","v":""},{"$f":"IF($F101>10,LARGE($I101:$Z101,11),\"\")","v":""},{"$f":"IF($F101>11,LARGE($I101:$Z101,12),\"\")","v":""},{"$f":"IF($F101>12,LARGE($I101:$Z101,13),\"\")","v":""},{"$f":"IF($F101>13,LARGE($I101:$Z101,14),\"\")","v":""},{"$f":"IF($F101>14,LARGE($I101:$Z101,15),\"\")","v":""},{"$f":"IF($F101>15,LARGE($I101:$Z101,16),\"\")","v":""},{"$f":"IF($F101>12,LARGE($I101:$Z101,13),\"-\")","v":"-"},{"$f":"IF($F101>13,LARGE($I101:$Z101,14),\"-\")","v":"-"},{"$f":"IF($F101>14,LARGE($I101:$Z101,15),\"-\")","v":"-"},{"$f":"SUM(AA101-F101)-2","v":12},null,577,null,null,null,null,null,null,null,null,null,null,null,null,null,null,null,null,null,null,null,null,null,null,null,null,null,null,null,null,null,null,null,null,null,null,null,null,null,null,null,null,null,null,null,null,null,null,null,null,null,null,null,null,null,null,null,null,null,null,null,null,null,null,97,null,{"$f":"IF(BE101>=1,AF101,\"\")","v":97},"(97)"]
["98 (98)","Ulrika Rydell","Värends Hsk",569,null,3,94.833333333333329,null,null,null,226,null,null,null,null,null,null,137,null,null,206,null,null,null,null,null,18,"-","-","-",98,98,98,98,null,null,1,1,2,2,1,1,1,1,1,2,2,1,2,2,1,1,1,1,null,null,2,null,null,226,206,137,"","","","","","","","","","","","","","-","-","-",13,null,569,null,null,null,null,null,null,null,null,null,null,null,null,null,null,null,null,null,null,null,null,null,null,null,null,null,null,null,null,null,null,null,null,null,null,null,null,null,null,null,null,null,null,null,null,null,null,null,null,null,null,null,null,null,null,null,null,null,null,null,null,null,null,98,null,98,"(98)"]
["99 (99)","Åke Bjaerregard","Tingsryd",506,null,3,84.333333333333329,null,186,null,null,null,null,null,null,null,null,null,null,null,null,null,null,null,130,190,18,"-","-","-",99,99,99,99,null,null,2,2,1,1,1,1,1,1,1,1,1,1,1,1,1,1,2,3,null,null,2,null,null,190,186,130,"","","","","","","","","","","","","","-","-","-",13,null,506,null,null,null,null,null,null,null,null,null,null,null,null,null,null,null,null,null,null,null,null,null,null,null,null,null,null,null,null,null,null,null,null,null,null,null,null,null,null,null,null,null,null,null,null,null,null,null,null,null,null,null,null,null,null,null,null,null,null,null,null,null,null,99,null,99,"(99)"]
["100 (100)","Johanna Hyväinen/Johansson","Rävemåla",471,null,2,117.75,null,null,null,null,254,217,null,null,null,null,null,null,null,null,null,null,null,null,null,18,"-","-","-",100,100,100,100,null,null,1,1,1,2,3,2,1,1,1,1,1,1,1,1,1,1,1,1,null,null,2,null,null,254,217,"","","","","","","","","","","","","","","-","-","-",14,null,471,null,null,null,null,null,null,null,null,null,null,null,null,null,null,null,null,null,null,null,null,null,null,null,null,null,null,null,null,null,null,null,null,null,null,null,null,null,null,null,null,null,null,null,null,null,null,null,null,null,null,null,null,null,null,null,null,null,null,null,null,null,null,100,null,100,"(100)"]
["101 (101)","Roland Andreasson","Lanternan",442,null,2,110.5,null,null,null,220,null,null,null,null,null,222,null,null,null,null,null,null,null,null,null,18,"-","-","-",101,101,101,101,null,null,1,1,2,2,1,1,1,1,2,2,1,1,1,1,1,1,1,1,null,null,2,null,null,222,220,"","","","","","","","","","","","","","","-","-","-",14,null,442,null,null,null,null,null,null,null,null,null,null,null,null,null,null,null,null,null,null,null,null,null,null,null,null,null,null,null,null,null,null,null,null,null,null,null,null,null,null,null,null,null,null,null,null,null,null,null,null,null,null,null,null,null,null,null,null,null,null,null,null,null,null,101,null,101,"(101)"]
["102 (102)","Mats Mårtensson","Jämjö Hsk",439,null,2,109.75,null,null,273,null,null,null,null,null,null,null,null,null,166,null,null,null,null,null,null,18,"-","-","-",102,102,102,102,null,null,1,2,2,1,1,1,1,1,1,1,1,2,2,1,1,1,1,1,null,null,2,null,null,273,166,"","","","","","","","","","","","","","","-","-","-",14,null,439,null,null,null,null,null,null,null,null,null,null,null,null,null,null,null,null,null,null,null,null,null,null,null,null,null,null,null,null,null,null,null,null,null,null,null,null,null,null,null,null,null,null,null,null,null,null,null,null,null,null,null,null,null,null,null,null,null,null,null,null,null,null,103,null,102,"(102)"]
["103 (103)","Joakim Strand","Korpen Åseda",435,null,3,72.5,null,null,null,null,null,null,null,null,null,null,184,112,null,null,null,null,null,139,null,18,"-","-","-",103,103,103,103,null,null,1,1,1,1,1,1,1,1,1,2,3,2,1,1,1,1,2,2,null,null,2,null,null,184,139,112,"","","","","","","","","","","","","","-","-","-",13,null,435,null,null,null,null,null,null,null,null,null,null,null,null,null,null,null,null,null,null,null,null,null,null,null,null,null,null,null,null,null,null,null,null,null,null,null,null,null,null,null,null,null,null,null,null,null,null,null,null,null,null,null,null,null,null,null,null,null,null,null,null,null,null,104,null,103,"(103)"]
["104 (104)","Mona Andersson","Carlskrona",428,null,4,53.5,null,null,null,null,147,106,null,null,null,102,null,null,73,null,null,null,null,null,null,18,"-","-","-",104,104,104,104,null,null,1,1,1,2,3,2,1,1,2,2,1,2,2,1,1,1,1,1,null,null,2,null,null,147,106,102,73,"","","","","","","","","","","","","-","-","-",12,null,428,null,null,null,null,null,null,null,null,null,null,null,null,null,null,null,null,null,null,null,null,null,null,null,null,null,null,null,null,null,null,null,null,null,null,null,null,null,null,null,null,null,null,null,null,null,null,null,null,null,null,null,null,null,null,null,null,null,null,null,null,null,null,105,null,104,"(104)"]
["105 (105)","Emil Rehn","Korpen Åseda",419,null,2,104.75,null,null,null,null,null,null,null,null,null,null,null,152,267,null,null,null,null,null,null,18,"-","-","-",105,105,105,105,null,null,1,1,1,1,1,1,1,1,1,1,2,3,2,1,1,1,1,1,null,null,2,null,null,267,152,"","","","","","","","","","","","","","","-","-","-",14,null,419,null,null,null,null,null,null,null,null,null,null,null,null,null,null,null,null,null,null,null,null,null,null,null,null,null,null,null,null,null,null,null,null,null,null,null,null,null,null,null,null,null,null,null,null,null,null,null,null,null,null,null,null,null,null,null,null,null,null,null,null,null,null,106,null,105,"(105)"]
["106 (106)","Karin Gullbrand","Värends Hsk",415,null,4,51.875,null,null,157,null,null,null,110,null,null,null,null,null,62,null,null,null,null,null,86,18,"-","-","-",106,106,106,106,null,null,1,2,2,1,1,2,2,1,1,1,1,2,2,1,1,1,1,2,null,null,2,null,null,157,110,86,62,"","","","","","","","","","","","","-","-","-",12,null,415,null,null,null,null,null,null,null,null,null,null,null,null,null,null,null,null,null,null,null,null,null,null,null,null,null,null,null,null,null,null,null,null,null,null,null,null,null,null,null,null,null,null,null,null,null,null,null,null,null,null,null,null,null,null,null,null,null,null,null,null,null,null,107,null,106,"(106)"]
["107 (107)","Christoffer Cederholm","Tingsryd",409,null,3,68.166666666666671,null,158,null,null,110,null,null,null,null,null,null,null,null,null,null,null,null,null,141,18,"-","-","-",107,107,107,107,null,null,2,2,1,2,2,1,1,1,1,1,1,1,1,1,1,1,1,2,null,null,2,null,null,158,141,110,"","","","","","","","","","","","","","-","-","-",13,null,409,null,null,null,null,null,null,null,null,null,null,null,null,null,null,null,null,null,null,null,null,null,null,null,null,null,null,null,null,null,null,null,null,null,null,null,null,null,null,null,null,null,null,null,null,null,null,null,null,null,null,null,null,null,null,null,null,null,null,null,null,null,null,108,null,107,"(107)"]
["108 (108)","Joseph Attenberger","Tingsryd",402,null,2,100.5,null,190,null,null,null,null,null,null,null,null,null,null,null,null,null,null,null,null,212,18,"-","-","-",108,108,108,108,null,null,2,2,1,1,1,1,1,1,1,1,1,1,1,1,1,1,1,2,null,null,2,null,null,212,190,"","","","","","","","","","","","","","","-","-","-",14,null,402,null,null,null,null,null,null,null,null,null,null,null,null,null,null,null,null,null,null,null,null,null,null,null,null,null,null,null,null,null,null,null,null,null,null,null,null,null,null,null,null,null,null,null,null,null,null,null,null,null,null,null,null,null,null,null,null,null,null,null,null,null,null,102,null,108,"(108)"]
["109 (109)","Fredrik Lundin","Lanternan",399,null,2,99.75,null,null,217,null,null,null,null,null,null,182,null,null,null,null,null,null,null,null,null,18,"-","-","-",109,109,109,109,null,null,1,2,2,1,1,1,1,1,2,2,1,1,1,1,1,1,1,1,null,null,2,null,null,217,182,"","","","","","","","","","","","","","","-","-","-",14,null,399,null,null,null,null,null,null,null,null,null,null,null,null,null,null,null,null,null,null,null,null,null,null,null,null,null,null,null,null,null,null,null,null,null,null,null,null,null,null,null,null,null,null,null,null,null,null,null,null,null,null,null,null,null,null,null,null,null,null,null,null,null,null,109,null,109,"(109)"]
["110 (110)","Armin Sisic","Värends Hsk",392,null,1,196,null,null,null,null,null,392,null,null,null,null,null,null,null,null,null,null,null,null,null,18,"-","-","-",110,110,"-",110,null,null,1,1,1,1,2,2,1,1,1,1,1,1,1,1,1,1,1,1,null,null,2,null,null,392,"","","","","","","","","","","","","","","","-","-","-",15,null,392,null,null,null,null,null,null,null,null,null,null,null,null,null,null,null,null,null,null,null,null,null,null,null,null,null,null,null,null,null,null,null,null,null,null,null,null,null,null,null,null,null,null,null,null,null,null,null,null,null,null,null,null,null,null,null,null,null,null,null,null,null,null,110,null,110,"(110)"]
["111 (111)","Jörgen Holmqvist","Lessebo Hsk",381,null,1,190.5,null,null,null,null,381,null,null,null,null,null,null,null,null,null,null,null,null,null,null,18,"-","-","-",111,111,"-",111,null,null,1,1,1,2,2,1,1,1,1,1,1,1,1,1,1,1,1,1,null,null,2,null,null,381,"","","","","","","","","","","","","","","","-","-","-",15,null,381,null,null,null,null,null,null,null,null,null,null,null,null,null,null,null,null,null,null,null,null,null,null,null,null,null,null,null,null,null,null,null,null,null,null,null,null,null,null,null,null,null,null,null,null,null,null,null,null,null,null,null,null,null,null,null,null,null,null,null,null,null,null,116,null,111,"(111)"]
["112 (135)","Pascal Letter","Balders HSK",372,null,2,93,null,null,null,null,null,null,null,null,null,null,null,null,null,189,183,null,null,null,null,18,"-","-","-",135,112,112,112,null,null,1,1,1,1,1,1,1,1,1,1,1,1,2,3,2,1,1,1,null,null,2,null,null,189,183,"","","","","","","","","","","","","","","-","-","-",14,null,372,null,null,null,null,null,null,null,null,null,null,null,null,null,null,null,null,null,null,null,null,null,null,null,null,null,null,null,null,null,null,null,null,null,null,null,null,null,null,null,null,null,null,null,null,null,null,null,null,null,null,null,null,null,null,null,null,null,null,null,null,null,null,111,null,112,"(135)"]
["113 (145)","Victor Bengtsson","Vaxholm",367,null,2,91.75,null,null,null,null,null,null,164,null,null,null,null,null,null,null,203,null,null,null,null,18,"-","-","-",145,113,113,113,null,null,1,1,1,1,1,2,2,1,1,1,1,1,1,2,2,1,1,1,null,null,2,null,null,203,164,"","","","","","","","","","","","","","","-","-","-",14,null,367,null,null,null,null,null,null,null,null,null,null,null,null,null,null,null,null,null,null,null,null,null,null,null,null,null,null,null,null,null,null,null,null,null,null,null,null,null,null,null,null,null,null,null,null,null,null,null,null,null,null,null,null,null,null,null,null,null,null,null,null,null,null,112,null,113,"(145)"]
["114 (141)","Andreas Gundersen","Vaxholm Hsk",357,null,2,89.25,null,null,null,null,null,null,180,null,null,null,null,null,null,null,177,null,null,null,null,18,"-","-","-",141,114,114,114,null,null,1,1,1,1,1,2,2,1,1,1,1,1,1,2,2,1,1,1,null,null,2,null,null,180,177,"","","","","","","","","","","","","","","-","-","-",14,null,357,null,null,null,null,null,null,null,null,null,null,null,null,null,null,null,null,null,null,null,null,null,null,null,null,null,null,null,null,null,null,null,null,null,null,null,null,null,null,null,null,null,null,null,null,null,null,null,null,null,null,null,null,null,null,null,null,null,null,null,null,null,null,114,null,114,"(141)"]
["115 (147)","Mikael Klaving","Vaxholm Hsk",353,null,2,88.25,null,null,null,null,null,null,153,null,null,null,null,null,null,null,200,null,null,null,null,18,"-","-","-",147,115,115,115,null,null,1,1,1,1,1,2,2,1,1,1,1,1,1,2,2,1,1,1,null,null,2,null,null,200,153,"","","","","","","","","","","","","","","-","-","-",14,null,353,null,null,null,null,null,null,null,null,null,null,null,null,null,null,null,null,null,null,null,null,null,null,null,null,null,null,null,null,null,null,null,null,null,null,null,null,null,null,null,null,null,null,null,null,null,null,null,null,null,null,null,null,null,null,null,null,null,null,null,null,null,null,115,null,115,"(147)"]
["116 (143)","Thomas Diedrichs","Vaxholm Hsk",349,null,2,87.25,null,null,null,null,null,null,179,null,null,null,null,null,null,null,170,null,null,null,null,18,"-","-","-",143,116,116,116,null,null,1,1,1,1,1,2,2,1,1,1,1,1,1,2,2,1,1,1,null,null,2,null,null,179,170,"","","","","","","","","","","","","","","-","-","-",14,null,349,null,null,null,null,null,null,null,null,null,null,null,null,null,null,null,null,null,null,null,null,null,null,null,null,null,null,null,null,null,null,null,null,null,null,null,null,null,null,null,null,null,null,null,null,null,null,null,null,null,null,null,null,null,null,null,null,null,null,null,null,null,null,117,null,116,"(143)"]
["117 (112)","Leif Ahlex","Lessebo",341,null,1,170.5,null,null,null,null,341,null,null,null,null,null,null,null,null,null,null,null,null,null,null,18,"-","-","-",112,117,"-",117,null,null,1,1,1,2,2,1,1,1,1,1,1,1,1,1,1,1,1,1,null,null,2,null,null,341,"","","","","","","","","","","","","","","","-","-","-",15,null,341,null,null,null,null,null,null,null,null,null,null,null,null,null,null,null,null,null,null,null,null,null,null,null,null,null,null,null,null,null,null,null,null,null,null,null,null,null,null,null,null,null,null,null,null,null,null,null,null,null,null,null,null,null,null,null,null,null,null,null,null,null,null,118,null,117,"(112)"]
["118 (113)","Eva Åkesson","Lanternan",334,null,3,55.666666666666664,null,null,null,99,null,null,null,null,null,90,null,null,145,null,null,null,null,null,null,18,"-","-","-",113,118,118,118,null,null,1,1,2,2,1,1,1,1,2,2,1,2,2,1,1,1,1,1,null,null,2,null,null,145,99,90,"","","","","","","","","","","","","","-","-","-",13,null,334,null,null,null,null,null,null,null,null,null,null,null,null,null,null,null,null,null,null,null,null,null,null,null,null,null,null,null,null,null,null,null,null,null,null,null,null,null,null,null,null,null,null,null,null,null,null,null,null,null,null,null,null,null,null,null,null,null,null,null,null,null,null,119,null,118,"(113)"]
["119 (114)","Christina Holmberg","Tingsryd",327,null,2,81.75,null,null,null,null,127,null,200,null,null,null,null,null,null,null,null,null,null,null,null,18,"-","-","-",114,119,119,119,null,null,1,1,1,2,2,2,2,1,1,1,1,1,1,1,1,1,1,1,null,null,2,null,null,200,127,"","","","","","","","","","","","","","","-","-","-",14,null,327,null,null,null,null,null,null,null,null,null,null,null,null,null,null,null,null,null,null,null,null,null,null,null,null,null,null,null,null,null,null,null,null,null,null,null,null,null,null,null,null,null,null,null,null,null,null,null,null,null,null,null,null,null,null,null,null,null,null,null,null,null,null,120,null,119,"(114)"]
["120 (115)","Kjell Rydh","Korpen Nybro",322,null,2,80.5,null,null,null,null,null,null,null,null,null,null,null,144,null,null,null,178,null,null,null,18,"-","-","-",115,120,120,120,null,null,1,1,1,1,1,1,1,1,1,1,2,2,1,1,2,2,1,1,null,null,2,null,null,178,144,"","","","","","","","","","","","","","","-","-","-",14,null,322,null,null,null,null,null,null,null,null,null,null,null,null,null,null,null,null,null,null,null,null,null,null,null,null,null,null,null,null,null,null,null,null,null,null,null,null,null,null,null,null,null,null,null,null,null,null,null,null,null,null,null,null,null,null,null,null,null,null,null,null,null,null,121,null,120,"(115)"]
["121 (116)","Kasper Sjöberg","Sketnabäck",301,null,1,150.5,null,null,null,null,null,null,null,null,null,301,null,null,null,null,null,null,null,null,null,18,"-","-","-",116,121,"-",121,null,null,1,1,1,1,1,1,1,1,2,2,1,1,1,1,1,1,1,1,null,null,2,null,null,301,"","","","","","","","","","","","","","","","-","-","-",15,null,301,null,null,null,null,null,null,null,null,null,null,null,null,null,null,null,null,null,null,null,null,null,null,null,null,null,null,null,null,null,null,null,null,null,null,null,null,null,null,null,null,null,null,null,null,null,null,null,null,null,null,null,null,null,null,null,null,null,null,null,null,null,null,127,null,121,"(116)"]
["122 (117)","Martin Silven","Sollentuna",283,null,1,141.5,null,null,null,null,null,null,283,null,null,null,null,null,null,null,null,null,null,null,null,18,"-","-","-",117,122,"-",122,null,null,1,1,1,1,1,2,2,1,1,1,1,1,1,1,1,1,1,1,null,null,2,null,null,283,"","","","","","","","","","","","","","","","-","-","-",15,null,283,null,null,null,null,null,null,null,null,null,null,null,null,null,null,null,null,null,null,null,null,null,null,null,null,null,null,null,null,null,null,null,null,null,null,null,null,null,null,null,null,null,null,null,null,null,null,null,null,null,null,null,null,null,null,null,null,null,null,null,null,null,null,122,null,122,"(117)"]
["123 (118)","Lana Galea","Tingsryd",280,null,3,46.666666666666664,null,65,null,null,131,null,null,null,null,null,null,null,null,null,null,null,null,null,84,18,"-","-","-",118,123,123,123,null,null,2,2,1,2,2,1,1,1,1,1,1,1,1,1,1,1,1,2,null,null,2,null,null,131,84,65,"","","","","","","","","","","","","","-","-","-",13,null,280,null,null,null,null,null,null,null,null,null,null,null,null,null,null,null,null,null,null,null,null,null,null,null,null,null,null,null,null,null,null,null,null,null,null,null,null,null,null,null,null,null,null,null,null,null,null,null,null,null,null,null,null,null,null,null,null,null,null,null,null,null,null,123,null,123,"(118)"]
["124 (119)","Hannah Karlberg","Jämjö Hsk",279,null,3,46.5,null,null,null,null,null,null,null,null,null,140,null,null,78,null,null,null,61,null,null,18,"-","-","-",119,124,124,124,null,null,1,1,1,1,1,1,1,1,2,2,1,2,2,1,1,2,2,1,null,null,2,null,null,140,78,61,"","","","","","","","","","","","","","-","-","-",13,null,279,null,null,null,null,null,null,null,null,null,null,null,null,null,null,null,null,null,null,null,null,null,null,null,null,null,null,null,null,null,null,null,null,null,null,null,null,null,null,null,null,null,null,null,null,null,null,null,null,null,null,null,null,null,null,null,null,null,null,null,null,null,null,124,null,124,"(119)"]
["125 (120)","Solveig Brincner","Värends Hsk",274,null,4,34.25,null,47,null,null,null,61,105,61,null,null,null,null,null,null,null,null,null,null,null,18,"-","-","-",120,125,125,125,null,null,2,2,1,1,2,3,3,2,1,1,1,1,1,1,1,1,1,1,null,null,2,null,null,105,61,61,47,"","","","","","","","","","","","","-","-","-",12,null,274,null,null,null,null,null,null,null,null,null,null,null,null,null,null,null,null,null,null,null,null,null,null,null,null,null,null,null,null,null,null,null,null,null,null,null,null,null,null,null,null,null,null,null,null,null,null,null,null,null,null,null,null,null,null,null,null,null,null,null,null,null,null,125,null,125,"(120)"]
["126 (121)","Dan Madayang","Korpen Åseda",270,null,1,135,null,null,null,null,null,null,null,null,null,null,null,270,null,null,null,null,null,null,null,18,"-","-","-",121,126,"-",126,null,null,1,1,1,1,1,1,1,1,1,1,2,2,1,1,1,1,1,1,null,null,2,null,null,270,"","","","","","","","","","","","","","","","-","-","-",15,null,270,null,null,null,null,null,null,null,null,null,null,null,null,null,null,null,null,null,null,null,null,null,null,null,null,null,null,null,null,null,null,null,null,null,null,null,null,null,null,null,null,null,null,null,null,null,null,null,null,null,null,null,null,null,null,null,null,null,null,null,null,null,null,126,null,126,"(121)"]
["126 (121)","Bo Fransson","Lessebo",270,null,1,135,null,null,null,null,270,null,null,null,null,null,null,null,null,null,null,null,null,null,null,18,"-","-","-",121,126,"-",127,null,null,1,1,1,2,2,1,1,1,1,1,1,1,1,1,1,1,1,1,null,null,2,null,null,270,"","","","","","","","","","","","","","","","-","-","-",15,null,270,null,null,null,null,null,null,null,null,null,null,null,null,null,null,null,null,null,null,null,null,null,null,null,null,null,null,null,null,null,null,null,null,null,null,null,null,null,null,null,null,null,null,null,null,null,null,null,null,null,null,null,null,null,null,null,null,null,null,null,null,null,null,113,null,126,"(121)"]
["128 (-)","Erik Smiding","Beefcakes",259,null,1,129.5,"x",null,null,null,null,null,null,null,null,null,null,null,null,null,259,null,null,null,null,18,"-","-","-",180,128,"-",128,null,null,1,1,1,1,1,1,1,1,1,1,1,1,1,2,2,1,1,1,null,null,1,null,null,259,"","","","","","","","","","","","","","","","-","-","-",15,null,259,null,null,null,null,null,null,null,null,null,null,null,null,null,null,null,null,null,null,null,null,null,null,null,null,null,null,null,null,null,null,null,null,null,null,null,null,null,null,null,null,null,null,null,null,null,null,null,null,null,null,null,null,null,null,null,null,null,null,null,null,null,null,128,null,128,"(-)"]
[{"$f":"IF(BE133>1,AF133&\" (\"&AE133&\")\",AF133&\" (\"&AG133&\")\")","v":"129 (123)"},"Paul Karlsson","Lessebo",{"$f":"SUM(BH133:BS133)","v":248},null,{"$f":"COUNT(I133:Z133)","v":1},{"$f":"SUM((CC133)/(F133*2))","v":124},null,null,null,null,248,null,null,null,null,null,null,null,null,null,null,null,null,null,null,{"$f":"SUM($I$3:$Z$3)","v":18},{"$f":"BX133","v":"-"},{"$f":"BY133","v":"-"},{"$f":"BZ133","v":"-"},123,{"$f":"IF(D133<D132,AH133,AF132)","v":129},{"$f":"IF(F133>1,ROW(129:129),\"-\")","v":"-"},129,null,null,1,1,1,2,2,1,1,1,1,1,1,1,1,1,1,1,1,1,null,null,{"$f":"IF(H133=\"x\",1,2)","v":2},null,null,{"$f":"IF($F133>0,LARGE($I133:$Z133,1),\"\")","v":248},{"$f":"IF($F133>1,LARGE($I133:$Z133,2),\"\")","v":""},{"$f":"IF($F133>2,LARGE($I133:$Z133,3),\"\")","v":""},{"$f":"IF($F133>3,LARGE($I133:$Z133,4),\"\")","v":""},{"$f":"IF($F133>4,LARGE($I133:$Z133,5),\"\")","v":""},{"$f":"IF($F133>5,LARGE($I133:$Z133,6),\"\")","v":""},{"$f":"IF($F133>6,LARGE($I133:$Z133,7),\"\")","v":""},{"$f":"IF($F133>7,LARGE($I133:$Z133,8),\"\")","v":""},{"$f":"IF($F133>8,LARGE($I133:$Z133,9),\"\")","v":""},{"$f":"IF($F133>9,LARGE($I133:$Z133,10),\"\")","v":""},{"$f":"IF($F133>10,LARGE($I133:$Z133,11),\"\")","v":""},{"$f":"IF($F133>11,LARGE($I133:$Z133,12),\"\")","v":""},{"$f":"IF($F133>12,LARGE($I133:$Z133,13),\"\")","v":""},{"$f":"IF($F133>13,LARGE($I133:$Z133,14),\"\")","v":""},{"$f":"IF($F133>14,LARGE($I133:$Z133,15),\"\")","v":""},{"$f":"IF($F133>15,LARGE($I133:$Z133,16),\"\")","v":""},{"$f":"IF($F133>12,LARGE($I133:$Z133,13),\"-\")","v":"-"},{"$f":"IF($F133>13,LARGE($I133:$Z133,14),\"-\")","v":"-"},{"$f":"IF($F133>14,LARGE($I133:$Z133,15),\"-\")","v":"-"},{"$f":"SUM(AA133-F133)-2","v":15},null,{"$f":"SUM(BH133:BW133)","v":248},null,null,null,null,null,null,null,null,null,null,null,null,null,null,null,null,null,null,null,null,null,null,null,null,null,null,null,null,null,null,null,null,null,null,null,null,null,null,null,null,null,null,null,null,null,null,null,null,null,null,null,null,null,null,null,null,null,null,null,null,null,null,129,null,{"$f":"IF(BE133>=1,AF133,\"\")","v":129},{"$f":"IF(BE133>1,\"(\"&AE133&\")\",\"(\"&AG133&\")\")","v":"(123)"}]
["130 (161)","Helge Winberg","Vaxholm Hsk",245,null,2,61.25,null,null,null,null,null,null,104,null,null,null,null,null,null,null,141,null,null,null,null,18,"-","-","-",161,130,130,130,null,null,{"$f":"COUNT($I$3,I134,H134)","v":1},{"$f":"COUNT($J$3,J134,I134)","v":1},{"$f":"COUNT($K$3,K134,J134)","v":1},{"$f":"COUNT($L$3,L134,K134)","v":1},{"$f":"COUNT($M$3,M134,L134)","v":1},{"$f":"COUNT($N$3,N134,M134)","v":2},{"$f":"COUNT($O$3,O134,N134)","v":2},{"$f":"COUNT($P$3,P134,O134)","v":1},{"$f":"COUNT($Q$3,Q134,P134)","v":1},{"$f":"COUNT($R$3,R134,Q134)","v":1},{"$f":"COUNT($S$3,S134,R134)","v":1},{"$f":"COUNT($T$3,T134,S134)","v":1},{"$f":"COUNT($U$3,U134,T134)","v":1},{"$f":"COUNT($V$3,V134,U134)","v":2},{"$f":"COUNT($W$3,W134,V134)","v":2},{"$f":"COUNT($X$3,X134,W134)","v":1},{"$f":"COUNT($Y$3,Y134,X134)","v":1},{"$f":"COUNT($Z$3,Z134,Y134)","v":1},null,null,2,null,null,141,104,"","","","","","","","","","","","","","","-","-","-",14,null,245,null,null,null,null,null,null,null,null,null,null,null,null,null,null,null,null,null,null,null,null,null,null,null,null,null,null,null,null,null,null,null,null,null,null,null,null,null,null,null,null,null,null,null,null,null,null,null,null,null,null,null,null,null,null,null,null,null,null,null,null,null,null,130,null,130,"(161)"]
["131 (124)","Per-Anders Gustavsson","Lanternan",240,null,1,120,null,null,null,240,null,null,null,null,null,null,null,null,null,null,null,null,null,null,null,18,"-","-","-",124,131,"-",131,null,null,1,1,2,2,1,1,1,1,1,1,1,1,1,1,1,1,1,1,null,null,2,null,null,240,"","","","","","","","","","","","","","","","-","-","-",15,null,240,null,null,null,null,null,null,null,null,null,null,null,null,null,null,null,null,null,null,null,null,null,null,null,null,null,null,null,null,null,null,null,null,null,null,null,null,null,null,null,null,null,null,null,null,null,null,null,null,null,null,null,null,null,null,null,null,null,null,null,null,null,null,131,null,131,"(124)"]
["132 (125)","Alice Lermalm","Jämjö Hsk",230,null,1,115,null,null,230,null,null,null,null,null,null,null,null,null,null,null,null,null,null,null,null,18,"-","-","-",125,132,"-",132,null,null,1,2,2,1,1,1,1,1,1,1,1,1,1,1,1,1,1,1,null,null,2,null,null,230,"","","","","","","","","","","","","","","","-","-","-",15,null,230,null,null,null,null,null,null,null,null,null,null,null,null,null,null,null,null,null,null,null,null,null,null,null,null,null,null,null,null,null,null,null,null,null,null,null,null,null,null,null,null,null,null,null,null,null,null,null,null,null,null,null,null,null,null,null,null,null,null,null,null,null,null,132,null,132,"(125)"]
["133 (126)","Robert Lermalm","Jämjö Hsk",226,null,1,113,null,null,226,null,null,null,null,null,null,null,null,null,null,null,null,null,null,null,null,18,"-","-","-",126,133,"-",133,null,null,1,2,2,1,1,1,1,1,1,1,1,1,1,1,1,1,1,1,null,null,2,null,null,226,"","","","","","","","","","","","","","","","-","-","-",15,null,226,null,null,null,null,null,null,null,null,null,null,null,null,null,null,null,null,null,null,null,null,null,null,null,null,null,null,null,null,null,null,null,null,null,null,null,null,null,null,null,null,null,null,null,null,null,null,null,null,null,null,null,null,null,null,null,null,null,null,null,null,null,null,133,null,133,"(126)"]
["134 (127)","Lena Johansson","Tingsryd",216,null,1,108,null,null,null,null,null,null,null,null,null,null,null,null,null,null,null,null,null,216,null,18,"-","-","-",127,134,"-",134,null,null,1,1,1,1,1,1,1,1,1,1,1,1,1,1,1,1,2,2,null,null,2,null,null,216,"","","","","","","","","","","","","","","","-","-","-",15,null,216,null,null,null,null,null,null,null,null,null,null,null,null,null,null,null,null,null,null,null,null,null,null,null,null,null,null,null,null,null,null,null,null,null,null,null,null,null,null,null,null,null,null,null,null,null,null,null,null,null,null,null,null,null,null,null,null,null,null,null,null,null,null,135,null,134,"(127)"]
["135 (128)","Hasib Mohseni","Team Tartufi",210,null,1,105,null,null,null,null,null,null,210,null,null,null,null,null,null,null,null,null,null,null,null,18,"-","-","-",128,135,"-",135,null,null,1,1,1,1,1,2,2,1,1,1,1,1,1,1,1,1,1,1,null,null,2,null,null,210,"","","","","","","","","","","","","","","","-","-","-",15,null,210,null,null,null,null,null,null,null,null,null,null,null,null,null,null,null,null,null,null,null,null,null,null,null,null,null,null,null,null,null,null,null,null,null,null,null,null,null,null,null,null,null,null,null,null,null,null,null,null,null,null,null,null,null,null,null,null,null,null,null,null,null,null,136,null,135,"(128)"]
["136 (129)","Susanne Simonsson","Lanternan",208,null,2,52,null,null,null,87,null,null,null,null,null,121,null,null,null,null,null,null,null,null,null,18,"-","-","-",129,136,136,136,null,null,1,1,2,2,1,1,1,1,2,2,1,1,1,1,1,1,1,1,null,null,2,null,null,121,87,"","","","","","","","","","","","","","","-","-","-",14,null,208,null,null,null,null,null,null,null,null,null,null,null,null,null,null,null,null,null,null,null,null,null,null,null,null,null,null,null,null,null,null,null,null,null,null,null,null,null,null,null,null,null,null,null,null,null,null,null,null,null,null,null,null,null,null,null,null,null,null,null,null,null,null,137,null,136,"(129)"]
["137 (130)","Martin Björklund","Sketnabäck",205,null,1,102.5,null,null,null,null,null,null,null,null,null,205,null,null,null,null,null,null,null,null,null,18,"-","-","-",130,137,"-",137,null,null,1,1,1,1,1,1,1,1,2,2,1,1,1,1,1,1,1,1,null,null,2,null,null,205,"","","","","","","","","","","","","","","","-","-","-",15,null,205,null,null,null,null,null,null,null,null,null,null,null,null,null,null,null,null,null,null,null,null,null,null,null,null,null,null,null,null,null,null,null,null,null,null,null,null,null,null,null,null,null,null,null,null,null,null,null,null,null,null,null,null,null,null,null,null,null,null,null,null,null,null,138,null,137,"(130)"]
["138 (131)","Stephan Gervide","Korpen Nybro",200,null,1,100,null,null,null,null,null,null,null,null,null,null,null,null,null,null,null,null,null,null,200,18,"-","-","-",131,138,"-",138,null,null,1,1,1,1,1,1,1,1,1,1,1,1,1,1,1,1,1,2,null,null,2,null,null,200,"","","","","","","","","","","","","","","","-","-","-",15,null,200,null,null,null,null,null,null,null,null,null,null,null,null,null,null,null,null,null,null,null,null,null,null,null,null,null,null,null,null,null,null,null,null,null,null,null,null,null,null,null,null,null,null,null,null,null,null,null,null,null,null,null,null,null,null,null,null,null,null,null,null,null,null,167,null,167,"(131)"]
["138 (131)","Bengt-Erik Holmberg","Tingsryd",200,null,1,100,null,null,null,null,null,null,200,null,null,null,null,null,null,null,null,null,null,null,null,18,"-","-","-",131,138,"-",139,null,null,1,1,1,1,1,2,2,1,1,1,1,1,1,1,1,1,1,1,null,null,2,null,null,200,"","","","","","","","","","","","","","","","-","-","-",15,null,200,null,null,null,null,null,null,null,null,null,null,null,null,null,null,null,null,null,null,null,null,null,null,null,null,null,null,null,null,null,null,null,null,null,null,null,null,null,null,null,null,null,null,null,null,null,null,null,null,null,null,null,null,null,null,null,null,null,null,null,null,null,null,139,null,{"$f":"IF(BE143>=1,AF143,\"\")","v":138},"(131)"]
["140 (133)","Michael Karlsson","Hsk Tingzås",192,null,1,96,null,null,null,null,null,null,null,null,null,null,null,null,192,null,null,null,null,null,null,18,"-","-","-",133,140,"-",140,null,null,1,1,1,1,1,1,1,1,1,1,1,2,2,1,1,1,1,1,null,null,2,null,null,192,"","","","","","","","","","","","","","","","-","-","-",15,null,192,null,null,null,null,null,null,null,null,null,null,null,null,null,null,null,null,null,null,null,null,null,null,null,null,null,null,null,null,null,null,null,null,null,null,null,null,null,null,null,null,null,null,null,null,null,null,null,null,null,null,null,null,null,null,null,null,null,null,null,null,null,null,140,null,{"$f":"IF(BE144>1,AF144,\"\")","v":140},"(133)"]
["141 (134)","Johan Karlsson","Korpen Åseda",191,null,1,95.5,null,null,null,null,null,null,null,null,null,null,191,null,null,null,null,null,null,null,null,18,"-","-","-",134,141,"-",141,null,null,1,1,1,1,1,1,1,1,1,2,2,1,1,1,1,1,1,1,null,null,2,null,null,191,"","","","","","","","","","","","","","","","-","-","-",15,null,191,null,null,null,null,null,null,null,null,null,null,null,null,null,null,null,null,null,null,null,null,null,null,null,null,null,null,null,null,null,null,null,null,null,null,null,null,null,null,null,null,null,null,null,null,null,null,null,null,null,null,null,null,null,null,null,null,null,null,null,null,null,null,141,null,{"$f":"IF(BE145>=1,AF145,\"\")","v":141},"(134)"]
["142 (135)","Elin Edlund","Dynapac ",190,null,1,95,null,null,null,null,null,null,null,null,null,190,null,null,null,null,null,null,null,null,null,18,"-","-","-",135,142,"-",142,null,null,1,1,1,1,1,1,1,1,2,2,1,1,1,1,1,1,1,1,null,null,2,null,null,190,"","","","","","","","","","","","","","","","-","-","-",15,null,190,null,null,null,null,null,null,null,null,null,null,null,null,null,null,null,null,null,null,null,null,null,null,null,null,null,null,null,null,null,null,null,null,null,null,null,null,null,null,null,null,null,null,null,null,null,null,null,null,null,null,null,null,null,null,null,null,null,null,null,null,null,null,142,null,{"$f":"IF(BE146>=1,AF146,\"\")","v":142},"(135)"]
["143 (137)","Robert Sjöberg","Sketnabäck",187,null,1,93.5,null,null,null,null,null,null,null,null,null,187,null,null,null,null,null,null,null,null,null,18,"-","-","-",137,143,"-",143,null,null,1,1,1,1,1,1,1,1,2,2,1,1,1,1,1,1,1,1,null,null,2,null,null,187,"","","","","","","","","","","","","","","","-","-","-",15,null,187,null,null,null,null,null,null,null,null,null,null,null,null,null,null,null,null,null,null,null,null,null,null,null,null,null,null,null,null,null,null,null,null,null,null,null,null,null,null,null,null,null,null,null,null,null,null,null,null,null,null,null,null,null,null,null,null,null,null,null,null,null,null,143,null,{"$f":"IF(BE147>=1,AF147,\"\")","v":143},"(137)"]
["144 (138)","Jörgen Westergren","Team Tartufi",184,null,1,92,null,null,null,null,null,null,184,null,null,null,null,null,null,null,null,null,null,null,null,18,"-","-","-",138,144,"-",144,null,null,1,1,1,1,1,2,2,1,1,1,1,1,1,1,1,1,1,1,null,null,2,null,null,184,"","","","","","","","","","","","","","","","-","-","-",15,null,184,null,null,null,null,null,null,null,null,null,null,null,null,null,null,null,null,null,null,null,null,null,null,null,null,null,null,null,null,null,null,null,null,null,null,null,null,null,null,null,null,null,null,null,null,null,null,null,null,null,null,null,null,null,null,null,null,null,null,null,null,null,null,144,null,{"$f":"IF(BE148>=1,AF148,\"\")","v":144},"(138)"]
["144 (138)","Laila Johansson","Tingsryd",184,null,1,92,null,null,null,null,null,null,null,null,null,null,null,null,null,null,null,184,null,null,null,18,"-","-","-",138,144,"-",145,null,null,1,1,1,1,1,1,1,1,1,1,1,1,1,1,2,2,1,1,null,null,2,null,null,184,"","","","","","","","","","","","","","","","-","-","-",15,null,184,null,null,null,null,null,null,null,null,null,null,null,null,null,null,null,null,null,null,null,null,null,null,null,null,null,null,null,null,null,null,null,null,null,null,null,null,null,null,null,null,null,null,null,null,null,null,null,null,null,null,null,null,null,null,null,null,null,null,null,null,null,null,145,null,{"$f":"IF(BE149>=1,AF149,\"\")","v":144},"(138)"]
["146 (140)","Hampus Borgström","Carlskrona",182,null,2,45.5,null,null,null,null,null,null,null,null,null,98,null,null,84,null,null,null,null,null,null,18,"-","-","-",140,146,146,146,null,null,1,1,1,1,1,1,1,1,2,2,1,2,2,1,1,1,1,1,null,null,2,null,null,98,84,"","","","","","","","","","","","","","","-","-","-",14,null,182,null,null,null,null,null,null,null,null,null,null,null,null,null,null,null,null,null,null,null,null,null,null,null,null,null,null,null,null,null,null,null,null,null,null,null,null,null,null,null,null,null,null,null,null,null,null,null,null,null,null,null,null,null,null,null,null,null,null,null,null,null,null,175,null,{"$f":"IF(BE150>1,AF150,\"\")","v":146},"(140)"]
["147 (141)","Krister Nygren","Korpen Åseda",181,null,1,90.5,null,null,null,null,null,null,null,null,null,null,181,null,null,null,null,null,null,null,null,18,"-","-","-",141,147,"-",147,null,null,1,1,1,1,1,1,1,1,1,2,2,1,1,1,1,1,1,1,null,null,2,null,null,181,"","","","","","","","","","","","","","","","-","-","-",15,null,181,null,null,null,null,null,null,null,null,null,null,null,null,null,null,null,null,null,null,null,null,null,null,null,null,null,null,null,null,null,null,null,null,null,null,null,null,null,null,null,null,null,null,null,null,null,null,null,null,null,null,null,null,null,null,null,null,null,null,null,null,null,null,146,null,{"$f":"IF(BE151>=1,AF151,\"\")","v":147},"(141)"]
["148 (144)","Towe Danielsson","Korpen Nybro",179,null,1,89.5,null,null,null,null,null,null,null,null,null,null,null,179,null,null,null,null,null,null,null,18,"-","-","-",144,148,"-",148,null,null,1,1,1,1,1,1,1,1,1,1,2,2,1,1,1,1,1,1,null,null,2,null,null,179,"","","","","","","","","","","","","","","","-","-","-",15,null,179,null,null,null,null,null,null,null,null,null,null,null,null,null,null,null,null,null,null,null,null,null,null,null,null,null,null,null,null,null,null,null,null,null,null,null,null,null,null,null,null,null,null,null,null,null,null,null,null,null,null,null,null,null,null,null,null,null,null,null,null,null,null,147,null,148,"(144)"]
["149 (145)","Micke Hansson","Holland",174,null,1,87,null,null,null,174,null,null,null,null,null,null,null,null,null,null,null,null,null,null,null,18,"-","-","-",145,149,"-",149,null,null,1,1,2,2,1,1,1,1,1,1,1,1,1,1,1,1,1,1,null,null,2,null,null,174,"","","","","","","","","","","","","","","","-","-","-",15,null,174,null,null,null,null,null,null,null,null,null,null,null,null,null,null,null,null,null,null,null,null,null,null,null,null,null,null,null,null,null,null,null,null,null,null,null,null,null,null,null,null,null,null,null,null,null,null,null,null,null,null,null,null,null,null,null,null,null,null,null,null,null,null,148,null,149,"(145)"]
["150 (-)","Andreas Westberg","WGB",169,null,1,84.5,"x",null,null,null,null,null,null,null,null,null,null,null,null,null,169,null,null,null,null,18,"-","-","-",182,150,"-",150,null,null,1,1,1,1,1,1,1,1,1,1,1,1,1,2,2,1,1,1,null,null,1,null,null,169,"","","","","","","","","","","","","","","","-","-","-",15,null,169,null,null,null,null,null,null,null,null,null,null,null,null,null,null,null,null,null,null,null,null,null,null,null,null,null,null,null,null,null,null,null,null,null,null,null,null,null,null,null,null,null,null,null,null,null,null,null,null,null,null,null,null,null,null,null,null,null,null,null,null,null,null,149,null,150,"(-)"]
["151 (-)","Anders Salming","Old Dirty Chiefs",163,null,1,81.5,"x",null,null,null,null,null,null,null,null,null,null,null,null,null,163,null,null,null,null,18,"-","-","-",183,151,"-",151,null,null,1,1,1,1,1,1,1,1,1,1,1,1,1,2,2,1,1,1,null,null,1,null,null,163,"","","","","","","","","","","","","","","","-","-","-",15,null,163,null,null,null,null,null,null,null,null,null,null,null,null,null,null,null,null,null,null,null,null,null,null,null,null,null,null,null,null,null,null,null,null,null,null,null,null,null,null,null,null,null,null,null,null,null,null,null,null,null,null,null,null,null,null,null,null,null,null,null,null,null,null,150,null,151,"(-)"]
["152 (147)","Jerry Viksten","Korpen Åseda",161,null,1,80.5,null,null,null,null,null,null,null,null,null,null,161,null,null,null,null,null,null,null,null,18,"-","-","-",147,152,"-",152,null,null,1,1,1,1,1,1,1,1,1,2,2,1,1,1,1,1,1,1,null,null,2,null,null,161,"","","","","","","","","","","","","","","","-","-","-",15,null,161,null,null,null,null,null,null,null,null,null,null,null,null,null,null,null,null,null,null,null,null,null,null,null,null,null,null,null,null,null,null,null,null,null,null,null,null,null,null,null,null,null,null,null,null,null,null,null,null,null,null,null,null,null,null,null,null,null,null,null,null,null,null,151,null,152,"(147)"]
["153 (-)","Bobby Parming","WGB",156,null,1,78,"x",null,null,null,null,null,null,null,null,null,null,null,null,null,156,null,null,null,null,18,"-","-","-",184,153,"-",153,null,null,1,1,1,1,1,1,1,1,1,1,1,1,1,2,2,1,1,1,null,null,1,null,null,156,"","","","","","","","","","","","","","","","-","-","-",15,null,156,null,null,null,null,null,null,null,null,null,null,null,null,null,null,null,null,null,null,null,null,null,null,null,null,null,null,null,null,null,null,null,null,null,null,null,null,null,null,null,null,null,null,null,null,null,null,null,null,null,null,null,null,null,null,null,null,null,null,null,null,null,null,184,null,{"$f":"IF(BE157>1,AF157,\"\")","v":""},"(-)"]
["154 (149)","Torbjörn Korsgaard","Skåne",152,null,1,76,null,null,null,152,null,null,null,null,null,null,null,null,null,null,null,null,null,null,null,18,"-","-","-",149,154,"-",154,null,null,1,1,2,2,1,1,1,1,1,1,1,1,1,1,1,1,1,1,null,null,2,null,null,152,"","","","","","","","","","","","","","","","-","-","-",15,null,152,null,null,null,null,null,null,null,null,null,null,null,null,null,null,null,null,null,null,null,null,null,null,null,null,null,null,null,null,null,null,null,null,null,null,null,null,null,null,null,null,null,null,null,null,null,null,null,null,null,null,null,null,null,null,null,null,null,null,null,null,null,null,152,null,{"$f":"IF(BE158>=1,AF158,\"\")","v":154},"(149)"]
["154 (149)","Erik Landberg","Vaxholm Hsk",152,null,2,38,null,null,null,null,98,54,null,null,null,null,null,null,null,null,null,null,null,null,null,18,"-","-","-",149,154,155,155,null,null,1,1,1,2,3,2,1,1,1,1,1,1,1,1,1,1,1,1,null,null,2,null,null,98,54,"","","","","","","","","","","","","","","-","-","-",14,null,152,null,null,null,null,null,null,null,null,null,null,null,null,null,null,null,null,null,null,null,null,null,null,null,null,null,null,null,null,null,null,null,null,null,null,null,null,null,null,null,null,null,null,null,null,null,null,null,null,null,null,null,null,null,null,null,null,null,null,null,null,null,null,153,null,154,"(149)"]
["156 (151)","Linnea Gneupel","Sibbamåla",147,null,1,73.5,null,null,null,null,null,null,null,null,null,147,null,null,null,null,null,null,null,null,null,18,"-","-","-",151,156,"-",156,null,null,1,1,1,1,1,1,1,1,2,2,1,1,1,1,1,1,1,1,null,null,2,null,null,147,"","","","","","","","","","","","","","","","-","-","-",15,null,147,null,null,null,null,null,null,null,null,null,null,null,null,null,null,null,null,null,null,null,null,null,null,null,null,null,null,null,null,null,null,null,null,null,null,null,null,null,null,null,null,null,null,null,null,null,null,null,null,null,null,null,null,null,null,null,null,null,null,null,null,null,null,154,null,156,"(151)"]
["157 (152)","Karen Jältsäter","Vaxholm",145,null,1,72.5,null,null,null,null,null,null,145,null,null,null,null,null,null,null,null,null,null,null,null,18,"-","-","-",152,157,"-",157,null,null,1,1,1,1,1,2,2,1,1,1,1,1,1,1,1,1,1,1,null,null,2,null,null,145,"","","","","","","","","","","","","","","","-","-","-",15,null,145,null,null,null,null,null,null,null,null,null,null,null,null,null,null,null,null,null,null,null,null,null,null,null,null,null,null,null,null,null,null,null,null,null,null,null,null,null,null,null,null,null,null,null,null,null,null,null,null,null,null,null,null,null,null,null,null,null,null,null,null,null,null,156,null,157,"(152)"]
["158 (153)","Anton Björkman","Team Tartufi",144,null,1,72,null,null,null,null,null,null,144,null,null,null,null,null,null,null,null,null,null,null,null,18,"-","-","-",153,158,"-",158,null,null,1,1,1,1,1,2,2,1,1,1,1,1,1,1,1,1,1,1,null,null,2,null,null,144,"","","","","","","","","","","","","","","","-","-","-",15,null,144,null,null,null,null,null,null,null,null,null,null,null,null,null,null,null,null,null,null,null,null,null,null,null,null,null,null,null,null,null,null,null,null,null,null,null,null,null,null,null,null,null,null,null,null,null,null,null,null,null,null,null,null,null,null,null,null,null,null,null,null,null,null,157,null,158,"(153)"]
["159 (-)","Robert Wretborg","WGB",143,null,1,71.5,"x",null,null,null,null,null,null,null,null,null,null,null,null,null,143,null,null,null,null,18,"-","-","-",185,159,"-",159,null,null,1,1,1,1,1,1,1,1,1,1,1,1,1,2,2,1,1,1,null,null,1,null,null,143,"","","","","","","","","","","","","","","","-","-","-",15,null,143,null,null,null,null,null,null,null,null,null,null,null,null,null,null,null,null,null,null,null,null,null,null,null,null,null,null,null,null,null,null,null,null,null,null,null,null,null,null,null,null,null,null,null,null,null,null,null,null,null,null,null,null,null,null,null,null,null,null,null,null,null,null,158,null,159,"(-)"]
["160 (154)","Rolf Johannesson","Värends Hsk",135,null,1,67.5,null,null,null,null,null,null,null,null,null,null,null,null,null,null,null,null,null,135,null,18,"-","-","-",154,160,"-",160,null,null,1,1,1,1,1,1,1,1,1,1,1,1,1,1,1,1,2,2,null,null,2,null,null,135,"","","","","","","","","","","","","","","","-","-","-",15,null,135,null,null,null,null,null,null,null,null,null,null,null,null,null,null,null,null,null,null,null,null,null,null,null,null,null,null,null,null,null,null,null,null,null,null,null,null,null,null,null,null,null,null,null,null,null,null,null,null,null,null,null,null,null,null,null,null,null,null,null,null,null,null,159,null,160,"(154)"]
["161 (155)","Alexandra Kupiainen","Team Tartufi",133,null,1,66.5,null,null,null,null,null,null,133,null,null,null,null,null,null,null,null,null,null,null,null,18,"-","-","-",155,161,"-",161,null,null,1,1,1,1,1,2,2,1,1,1,1,1,1,1,1,1,1,1,null,null,{"$f":"IF(H165=\"x\",1,2)","v":2},null,null,{"$f":"IF($F165>0,LARGE($I165:$Z165,1),\"\")","v":133},{"$f":"IF($F165>1,LARGE($I165:$Z165,2),\"\")","v":""},{"$f":"IF($F165>2,LARGE($I165:$Z165,3),\"\")","v":""},{"$f":"IF($F165>3,LARGE($I165:$Z165,4),\"\")","v":""},{"$f":"IF($F165>4,LARGE($I165:$Z165,5),\"\")","v":""},{"$f":"IF($F165>5,LARGE($I165:$Z165,6),\"\")","v":""},{"$f":"IF($F165>6,LARGE($I165:$Z165,7),\"\")","v":""},{"$f":"IF($F165>7,LARGE($I165:$Z165,8),\"\")","v":""},{"$f":"IF($F165>8,LARGE($I165:$Z165,9),\"\")","v":""},{"$f":"IF($F165>9,LARGE($I165:$Z165,10),\"\")","v":""},{"$f":"IF($F165>10,LARGE($I165:$Z165,11),\"\")","v":""},{"$f":"IF($F165>11,LARGE($I165:$Z165,12),\"\")","v":""},{"$f":"IF($F165>12,LARGE($I165:$Z165,13),\"\")","v":""},{"$f":"IF($F165>13,LARGE($I165:$Z165,14),\"\")","v":""},{"$f":"IF($F165>14,LARGE($I165:$Z165,15),\"\")","v":""},{"$f":"IF($F165>15,LARGE($I165:$Z165,16),\"\")","v":""},{"$f":"IF($F165>12,LARGE($I165:$Z165,13),\"-\")","v":"-"},{"$f":"IF($F165>13,LARGE($I165:$Z165,14),\"-\")","v":"-"},{"$f":"IF($F165>14,LARGE($I165:$Z165,15),\"-\")","v":"-"},{"$f":"SUM(AA165-F165)-2","v":15},null,133,null,null,null,null,null,null,null,null,null,null,null,null,null,null,null,null,null,null,null,null,null,null,null,null,null,null,null,null,null,null,null,null,null,null,null,null,null,null,null,null,null,null,null,null,null,null,null,null,null,null,null,null,null,null,null,null,null,null,null,null,null,null,206,null,{"$f":"IF(BE165>1,AF165,\"\")","v":161},"(155)"]
["161 (-)","Björn Hansson","Vaxholm Hsk",133,null,1,66.5,"x",null,null,null,null,null,null,null,null,null,null,null,null,null,133,null,null,null,null,18,"-","-","-",186,161,"-",162,null,null,1,1,1,1,1,1,1,1,1,1,1,1,1,2,2,1,1,1,null,null,1,null,null,133,"","","","","","","","","","","","","","","","-","-","-",15,null,133,null,null,null,null,null,null,null,null,null,null,null,null,null,null,null,null,null,null,null,null,null,null,null,null,null,null,null,null,null,null,null,null,null,null,null,null,null,null,null,null,null,null,null,null,null,null,null,null,null,null,null,null,null,null,null,null,null,null,null,null,null,null,160,null,{"$f":"IF(BE166>=1,AF166,\"\")","v":161},"(-)"]
["163 (-)","Calle Jacobsson","WGB",129,null,1,64.5,"x",null,null,null,null,null,null,null,null,null,null,null,null,null,129,null,null,null,null,18,"-","-","-",187,163,"-",163,null,null,1,1,1,1,1,1,1,1,1,1,1,1,1,2,2,1,1,1,null,null,1,null,null,129,"","","","","","","","","","","","","","","","-","-","-",15,null,129,null,null,null,null,null,null,null,null,null,null,null,null,null,null,null,null,null,null,null,null,null,null,null,null,null,null,null,null,null,null,null,null,null,null,null,null,null,null,null,null,null,null,null,null,null,null,null,null,null,null,null,null,null,null,null,null,null,null,null,null,null,null,161,null,161,"(-)"]
["164 (-)","Sabina Rydberg","Beefcakes",126,null,1,63,"x",null,null,null,null,null,null,null,null,null,null,null,null,null,126,null,null,null,null,18,"-","-","-",199,164,"-",164,null,null,1,1,1,1,1,1,1,1,1,1,1,1,1,2,2,1,1,1,null,null,1,null,null,126,"","","","","","","","","","","","","","","","-","-","-",15,null,126,null,null,null,null,null,null,null,null,null,null,null,null,null,null,null,null,null,null,null,null,null,null,null,null,null,null,null,null,null,null,null,null,null,null,null,null,null,null,null,null,null,null,null,null,null,null,null,null,null,null,null,null,null,null,null,null,null,null,null,null,null,null,162,null,{"$f":"IF(BE168>1,AF168,\"\")","v":""},"(-)"]
["165 (-)","Calle Sternås","PBHSPC",125,null,1,62.5,"x",null,null,null,null,null,null,null,null,null,null,null,null,null,125,null,null,null,null,18,"-","-","-",188,165,"-",165,null,null,1,1,1,1,1,1,1,1,1,1,1,1,1,2,2,1,1,1,null,null,1,null,null,125,"","","","","","","","","","","","","","","","-","-","-",15,null,125,null,null,null,null,null,null,null,null,null,null,null,null,null,null,null,null,null,null,null,null,null,null,null,null,null,null,null,null,null,null,null,null,null,null,null,null,null,null,null,null,null,null,null,null,null,null,null,null,null,null,null,null,null,null,null,null,null,null,null,null,null,null,163,null,{"$f":"IF(BE169>1,AF169,\"\")","v":""},"(-)"]
["166 (156)","Hampus Korsgaard","Skåne",122,null,1,61,null,null,null,122,null,null,null,null,null,null,null,null,null,null,null,null,null,null,null,18,"-","-","-",156,166,"-",166,null,null,1,1,2,2,1,1,1,1,1,1,1,1,1,1,1,1,1,1,null,null,2,null,null,122,"","","","","","","","","","","","","","","","-","-","-",15,null,122,null,null,null,null,null,null,null,null,null,null,null,null,null,null,null,null,null,null,null,null,null,null,null,null,null,null,null,null,null,null,null,null,null,null,null,null,null,null,null,null,null,null,null,null,null,null,null,null,null,null,null,null,null,null,null,null,null,null,null,null,null,null,164,null,{"$f":"IF(BE170>1,AF170,\"\")","v":166},"(156)"]
["166 (-)","Ludvig Sandell","Vaxholm ",122,null,1,61,"x",null,null,null,null,null,null,null,null,null,null,null,null,null,122,null,null,null,null,18,"-","-","-",189,166,"-",167,null,null,1,1,1,1,1,1,1,1,1,1,1,1,1,2,2,1,1,1,null,null,1,null,null,122,"","","","","","","","","","","","","","","","-","-","-",15,null,122,null,null,null,null,null,null,null,null,null,null,null,null,null,null,null,null,null,null,null,null,null,null,null,null,null,null,null,null,null,null,null,null,null,null,null,null,null,null,null,null,null,null,null,null,null,null,null,null,null,null,null,null,null,null,null,null,null,null,null,null,null,null,165,null,{"$f":"IF(BE171>1,AF171,\"\")","v":""},"(-)"]
["168 (157)","Jimmie Fogelberg","Skåne",121,null,1,60.5,null,null,null,121,null,null,null,null,null,null,null,null,null,null,null,null,null,null,null,18,"-","-","-",157,168,"-",168,null,null,1,1,2,2,1,1,1,1,1,1,1,1,1,1,1,1,1,1,null,null,2,null,null,121,"","","","","","","","","","","","","","","","-","-","-",15,null,121,null,null,null,null,null,null,null,null,null,null,null,null,null,null,null,null,null,null,null,null,null,null,null,null,null,null,null,null,null,null,null,null,null,null,null,null,null,null,null,null,null,null,null,null,null,null,null,null,null,null,null,null,null,null,null,null,null,null,null,null,null,null,195,null,{"$f":"IF(BE172>1,AF172,\"\")","v":168},"(157)"]
["169 (158)","Simon Pahlin","Vaxholm",119,null,1,59.5,null,null,null,null,null,null,119,null,null,null,null,null,null,null,null,null,null,null,null,18,"-","-","-",158,169,"-",169,null,null,1,1,1,1,1,2,2,1,1,1,1,1,1,1,1,1,1,1,null,null,2,null,null,119,"","","","","","","","","","","","","","","","-","-","-",15,null,119,null,null,null,null,null,null,null,null,null,null,null,null,null,null,null,null,null,null,null,null,null,null,null,null,null,null,null,null,null,null,null,null,null,null,null,null,null,null,null,null,null,null,null,null,null,null,null,null,null,null,null,null,null,null,null,null,null,null,null,null,null,null,134,null,{"$f":"IF(BE173>=1,AF173,\"\")","v":169},"(158)"]
["170 (-)","Linus Blom","Vaxholm ",117,null,1,58.5,"x",null,null,null,null,null,null,null,null,null,null,null,null,null,117,null,null,null,null,18,"-","-","-",190,170,"-",170,null,null,1,1,1,1,1,1,1,1,1,1,1,1,1,2,2,1,1,1,null,null,1,null,null,117,"","","","","","","","","","","","","","","","-","-","-",15,null,117,null,null,null,null,null,null,null,null,null,null,null,null,null,null,null,null,null,null,null,null,null,null,null,null,null,null,null,null,null,null,null,null,null,null,null,null,null,null,null,null,null,null,null,null,null,null,null,null,null,null,null,null,null,null,null,null,null,null,null,null,null,null,166,null,{"$f":"IF(BE174>1,AF174,\"\")","v":""},"(-)"]
["171 (159)","Nils Brovold","Vaxholm",116,null,1,58,null,null,null,null,null,null,116,null,null,null,null,null,null,null,null,null,null,null,null,18,"-","-","-",159,171,"-",171,null,null,1,1,1,1,1,2,2,1,1,1,1,1,1,1,1,1,1,1,null,null,2,null,null,116,"","","","","","","","","","","","","","","","-","-","-",15,null,116,null,null,null,null,null,null,null,null,null,null,null,null,null,null,null,null,null,null,null,null,null,null,null,null,null,null,null,null,null,null,null,null,null,null,null,null,null,null,null,null,null,null,null,null,null,null,null,null,null,null,null,null,null,null,null,null,null,null,null,null,null,null,168,null,168,"(159)"]
["172 (160)","Jonas Zetterlund","Vaxholm",114,null,1,57,null,null,null,null,null,null,114,null,null,null,null,null,null,null,null,null,null,null,null,18,"-","-","-",160,172,"-",172,null,null,1,1,1,1,1,2,2,1,1,1,1,1,1,1,1,1,1,1,null,null,2,null,null,114,"","","","","","","","","","","","","","","","-","-","-",15,null,114,null,null,null,null,null,null,null,null,null,null,null,null,null,null,null,null,null,null,null,null,null,null,null,null,null,null,null,null,null,null,null,null,null,null,null,null,null,null,null,null,null,null,null,null,null,null,null,null,null,null,null,null,null,null,null,null,null,null,null,null,null,null,215,null,{"$f":"IF(BE176>1,AF176,\"\")","v":172},"(160)"]
["173 (-)","Pontus Strandell","PBHSPC",110,null,1,55,"x",null,null,null,null,null,null,null,null,null,null,null,null,null,110,null,null,null,null,18,"-","-","-",191,173,"-",173,null,null,1,1,1,1,1,1,1,1,1,1,1,1,1,2,2,1,1,1,null,null,1,null,null,110,"","","","","","","","","","","","","","","","-","-","-",15,null,110,null,null,null,null,null,null,null,null,null,null,null,null,null,null,null,null,null,null,null,null,null,null,null,null,null,null,null,null,null,null,null,null,null,null,null,null,null,null,null,null,null,null,null,null,null,null,null,null,null,null,null,null,null,null,null,null,null,null,null,null,null,null,188,null,188,"(-)"]
["174 (161)","Daniel Lindblom","Vaxholm",106,null,1,53,null,null,null,null,null,null,106,null,null,null,null,null,null,null,null,null,null,null,null,18,"-","-","-",161,174,"-",174,null,null,1,1,1,1,1,2,2,1,1,1,1,1,1,1,1,1,1,1,null,null,2,null,null,106,"","","","","","","","","","","","","","","","-","-","-",15,null,106,null,null,null,null,null,null,null,null,null,null,null,null,null,null,null,null,null,null,null,null,null,null,null,null,null,null,null,null,null,null,null,null,null,null,null,null,null,null,null,null,null,null,null,null,null,null,null,null,null,null,null,null,null,null,null,null,null,null,null,null,null,null,170,null,{"$f":"IF(BE178>1,AF178,\"\")","v":174},"(161)"]
["175 (163)","Isabelle Åkesson","Vaxholm",103,null,1,51.5,null,null,null,null,null,null,103,null,null,null,null,null,null,null,null,null,null,null,null,18,"-","-","-",163,175,"-",175,null,null,1,1,1,1,1,2,2,1,1,1,1,1,1,1,1,1,1,1,null,null,2,null,null,103,"","","","","","","","","","","","","","","","-","-","-",15,null,103,null,null,null,null,null,null,null,null,null,null,null,null,null,null,null,null,null,null,null,null,null,null,null,null,null,null,null,null,null,null,null,null,null,null,null,null,null,null,null,null,null,null,null,null,null,null,null,null,null,null,null,null,null,null,null,null,null,null,null,null,null,null,171,null,175,"(163)"]
["176 (164)","Peter Stupers","Holland",101,null,1,50.5,null,null,null,101,null,null,null,null,null,null,null,null,null,null,null,null,null,null,null,18,"-","-","-",164,176,"-",176,null,null,1,1,2,2,1,1,1,1,1,1,1,1,1,1,1,1,1,1,null,null,2,null,null,101,"","","","","","","","","","","","","","","","-","-","-",15,null,101,null,null,null,null,null,null,null,null,null,null,null,null,null,null,null,null,null,null,null,null,null,null,null,null,null,null,null,null,null,null,null,null,null,null,null,null,null,null,null,null,null,null,null,null,null,null,null,null,null,null,null,null,null,null,null,null,null,null,null,null,null,null,172,null,176,"(164)"]
["176 (164)","Richard Holgersson","Sketnabäck",101,null,1,50.5,null,null,null,null,null,null,null,null,null,101,null,null,null,null,null,null,null,null,null,18,"-","-","-",164,176,"-",177,null,null,1,1,1,1,1,1,1,1,2,2,1,1,1,1,1,1,1,1,null,null,2,null,null,101,"","","","","","","","","","","","","","","","-","-","-",15,null,101,null,null,null,null,null,null,null,null,null,null,null,null,null,null,null,null,null,null,null,null,null,null,null,null,null,null,null,null,null,null,null,null,null,null,null,null,null,null,null,null,null,null,null,null,null,null,null,null,null,null,null,null,null,null,null,null,null,null,null,null,null,null,173,null,176,"(164)"]
["178 (166)","Henrik Fresk","Sollentuna",100,null,1,50,null,null,null,null,null,null,100,null,null,null,null,null,null,null,null,null,null,null,null,18,"-","-","-",166,178,"-",178,null,null,1,1,1,1,1,2,2,1,1,1,1,1,1,1,1,1,1,1,null,null,2,null,null,100,"","","","","","","","","","","","","","","","-","-","-",15,null,100,null,null,null,null,null,null,null,null,null,null,null,null,null,null,null,null,null,null,null,null,null,null,null,null,null,null,null,null,null,null,null,null,null,null,null,null,null,null,null,null,null,null,null,null,null,null,null,null,null,null,null,null,null,null,null,null,null,null,null,null,null,null,174,null,178,"(166)"]
["179 (-)","Heidi Bülmann","Vaxholm",99,null,1,49.5,"x",null,null,null,null,null,null,null,null,null,null,null,null,null,99,null,null,null,null,18,"-","-","-",201,179,"-",179,null,null,1,1,1,1,1,1,1,1,1,1,1,1,1,2,2,1,1,1,null,null,1,null,null,99,"","","","","","","","","","","","","","","","-","-","-",15,null,99,null,null,null,null,null,null,null,null,null,null,null,null,null,null,null,null,null,null,null,null,null,null,null,null,null,null,null,null,null,null,null,null,null,null,null,null,null,null,null,null,null,null,null,null,null,null,null,null,null,null,null,null,null,null,null,null,null,null,null,null,null,null,182,null,"","(-)"]
["180 (167)","Johan Öhrman","Vaxholm Hsk",98,null,1,49,null,null,null,null,null,null,98,null,null,null,null,null,null,null,null,null,null,null,null,18,"-","-","-",167,180,"-",180,null,null,1,1,1,1,1,2,2,1,1,1,1,1,1,1,1,1,1,1,null,null,2,null,null,98,"","","","","","","","","","","","","","","","-","-","-",15,null,98,null,null,null,null,null,null,null,null,null,null,null,null,null,null,null,null,null,null,null,null,null,null,null,null,null,null,null,null,null,null,null,null,null,null,null,null,null,null,null,null,null,null,null,null,null,null,null,null,null,null,null,null,null,null,null,null,null,null,null,null,null,null,176,null,180,"(167)"]
["181 (168)","Daniel lito Wadman","Vaxholm Hsk",95,null,1,47.5,null,null,null,null,null,null,null,null,null,null,null,null,null,null,null,null,null,95,null,18,"-","-","-",168,181,"-",181,null,null,1,1,1,1,1,1,1,1,1,1,1,1,1,1,1,1,2,2,null,null,2,null,null,95,"","","","","","","","","","","","","","","","-","-","-",15,null,95,null,null,null,null,null,null,null,null,null,null,null,null,null,null,null,null,null,null,null,null,null,null,null,null,null,null,null,null,null,null,null,null,null,null,null,null,null,null,null,null,null,null,null,null,null,null,null,null,null,null,null,null,null,null,null,null,null,null,null,null,null,null,202,null,181,"(168)"]
["181 (168)","Sandra Rydell","Värends Hsk",95,null,1,47.5,null,null,null,null,null,null,null,95,null,null,null,null,null,null,null,null,null,null,null,18,"-","-","-",168,181,"-",182,null,null,1,1,1,1,1,1,2,2,1,1,1,1,1,1,1,1,1,1,null,null,2,null,null,95,"","","","","","","","","","","","","","","","-","-","-",15,null,95,null,null,null,null,null,null,null,null,null,null,null,null,null,null,null,null,null,null,null,null,null,null,null,null,null,null,null,null,null,null,null,null,null,null,null,null,null,null,null,null,null,null,null,null,null,null,null,null,null,null,null,null,null,null,null,null,null,null,null,null,null,null,177,null,177,"(168)"]
["183 (-)","Louise Hamilton","Vaxholm",91,null,1,45.5,"x",null,null,null,null,null,null,null,null,null,null,null,null,null,91,null,null,null,null,18,"-","-","-",202,183,"-",183,null,null,1,1,1,1,1,1,1,1,1,1,1,1,1,2,2,1,1,1,null,null,1,null,null,91,"","","","","","","","","","","","","","","","-","-","-",15,null,91,null,null,null,null,null,null,null,null,null,null,null,null,null,null,null,null,null,null,null,null,null,null,null,null,null,null,null,null,null,null,null,null,null,null,null,null,null,null,null,null,null,null,null,null,null,null,null,null,null,null,null,null,null,null,null,null,null,null,null,null,null,null,178,null,{"$f":"IF(BE187>1,AF187,\"\")","v":""},"(-)"]
["184 (170)","Sina Skogli","Jämjö Hsk",89,null,1,44.5,null,null,null,null,null,null,null,null,null,null,null,null,null,null,null,null,89,null,null,18,"-","-","-",170,184,"-",184,null,null,1,1,1,1,1,1,1,1,1,1,1,1,1,1,1,2,2,1,null,null,2,null,null,89,"","","","","","","","","","","","","","","","-","-","-",15,null,89,null,null,null,null,null,null,null,null,null,null,null,null,null,null,null,null,null,null,null,null,null,null,null,null,null,null,null,null,null,null,null,null,null,null,null,null,null,null,null,null,null,null,null,null,null,null,null,null,null,null,null,null,null,null,null,null,null,null,null,null,null,null,179,null,179,"(170)"]
["185 (171)","Kent Svensson","Lanternan",86,null,2,21.5,null,null,null,null,null,null,null,null,null,41,null,null,45,null,null,null,null,null,null,18,"-","-","-",171,185,185,185,null,null,1,1,1,1,1,1,1,1,2,2,1,2,2,1,1,1,1,1,null,null,2,null,null,45,41,"","","","","","","","","","","","","","","-","-","-",14,null,86,null,null,null,null,null,null,null,null,null,null,null,null,null,null,null,null,null,null,null,null,null,null,null,null,null,null,null,null,null,null,null,null,null,null,null,null,null,null,null,null,null,null,null,null,null,null,null,null,null,null,null,null,null,null,null,null,null,null,null,null,null,null,180,null,{"$f":"IF(BE189>1,AF189,\"\")","v":185},"(171)"]
["186 (172)","Milla Westergren","Team Tartufi",84,null,1,42,null,null,null,null,null,null,84,null,null,null,null,null,null,null,null,null,null,null,null,18,"-","-","-",172,186,"-",186,null,null,1,1,1,1,1,2,2,1,1,1,1,1,1,1,1,1,1,1,null,null,2,null,null,84,"","","","","","","","","","","","","","","","-","-","-",15,null,84,null,null,null,null,null,null,null,null,null,null,null,null,null,null,null,null,null,null,null,null,null,null,null,null,null,null,null,null,null,null,null,null,null,null,null,null,null,null,null,null,null,null,null,null,null,null,null,null,null,null,null,null,null,null,null,null,null,null,null,null,null,null,181,null,{"$f":"IF(BE190>1,AF190,\"\")","v":186},"(172)"]
["186 (-)","Martin Smeds","Balders HSK",84,null,1,42,"x",null,null,null,null,null,null,null,null,null,null,null,null,null,84,null,null,null,null,18,"-","-","-",192,186,"-",187,null,null,1,1,1,1,1,1,1,1,1,1,1,1,1,2,2,1,1,1,null,null,1,null,null,84,"","","","","","","","","","","","","","","","-","-","-",15,null,84,null,null,null,null,null,null,null,null,null,null,null,null,null,null,null,null,null,null,null,null,null,null,null,null,null,null,null,null,null,null,null,null,null,null,null,null,null,null,null,null,null,null,null,null,null,null,null,null,null,null,null,null,null,null,null,null,null,null,null,null,null,null,155,null,{"$f":"IF(BE191>=1,AF191,\"\")","v":186},"(-)"]
["188 (173)","Monika Magnusson","Skåne",83,null,1,41.5,null,null,null,83,null,null,null,null,null,null,null,null,null,null,null,null,null,null,null,18,"-","-","-",173,188,"-",188,null,null,1,1,2,2,1,1,1,1,1,1,1,1,1,1,1,1,1,1,null,null,2,null,null,83,"","","","","","","","","","","","","","","","-","-","-",15,null,83,null,null,null,null,null,null,null,null,null,null,null,null,null,null,null,null,null,null,null,null,null,null,null,null,null,null,null,null,null,null,null,null,null,null,null,null,null,null,null,null,null,null,null,null,null,null,null,null,null,null,null,null,null,null,null,null,null,null,null,null,null,null,183,null,{"$f":"IF(BE192>1,AF192,\"\")","v":188},"(173)"]
["189 (-)","Marcus Norman","Balders HSK",79,null,1,39.5,"x",null,null,null,null,null,null,null,null,null,null,null,null,null,79,null,null,null,null,18,"-","-","-",193,189,"-",189,null,null,1,1,1,1,1,1,1,1,1,1,1,1,1,2,2,1,1,1,null,null,1,null,null,79,"","","","","","","","","","","","","","","","-","-","-",15,null,79,null,null,null,null,null,null,null,null,null,null,null,null,null,null,null,null,null,null,null,null,null,null,null,null,null,null,null,null,null,null,null,null,null,null,null,null,null,null,null,null,null,null,null,null,null,null,null,null,null,null,null,null,null,null,null,null,null,null,null,null,null,null,185,null,"","(-)"]
["190 (174)","John Van Dalen","Holland",77,null,1,38.5,null,null,null,77,null,null,null,null,null,null,null,null,null,null,null,null,null,null,null,18,"-","-","-",174,190,"-",190,null,null,1,1,2,2,1,1,1,1,1,1,1,1,1,1,1,1,1,1,null,null,2,null,null,77,"","","","","","","","","","","","","","","","-","-","-",15,null,77,null,null,null,null,null,null,null,null,null,null,null,null,null,null,null,null,null,null,null,null,null,null,null,null,null,null,null,null,null,null,null,null,null,null,null,null,null,null,null,null,null,null,null,null,null,null,null,null,null,null,null,null,null,null,null,null,null,null,null,null,null,null,186,null,190,"(174)"]
["190 (-)","Jakob Arvidsson","Beefcakes",77,null,1,38.5,"x",null,null,null,null,null,null,null,null,null,null,null,null,null,77,null,null,null,null,18,"-","-","-",194,190,"-",191,null,null,1,1,1,1,1,1,1,1,1,1,1,1,1,2,2,1,1,1,null,null,1,null,null,77,"","","","","","","","","","","","","","","","-","-","-",15,null,77,null,null,null,null,null,null,null,null,null,null,null,null,null,null,null,null,null,null,null,null,null,null,null,null,null,null,null,null,null,null,null,null,null,null,null,null,null,null,null,null,null,null,null,null,null,null,null,null,null,null,null,null,null,null,null,null,null,null,null,null,null,null,187,null,"","(-)"]
["192 (175)","Nunid Petwisai","Jämjö Hsk",68,null,1,34,null,null,null,null,null,null,null,null,null,null,null,null,null,null,null,null,68,null,null,18,"-","-","-",175,192,"-",192,null,null,1,1,1,1,1,1,1,1,1,1,1,1,1,1,1,2,2,1,null,null,2,null,null,68,"","","","","","","","","","","","","","","","-","-","-",15,null,68,null,null,null,null,null,null,null,null,null,null,null,null,null,null,null,null,null,null,null,null,null,null,null,null,null,null,null,null,null,null,null,null,null,null,null,null,null,null,null,null,null,null,null,null,null,null,null,null,null,null,null,null,null,null,null,null,null,null,null,null,null,null,205,null,192,"(175)"]
[{"$f":"IF(BE197>1,AF197&\" (\"&AE197&\")\",AF197&\" (\"&AG197&\")\")","v":"193 (176)"},"Malin Holmander","Jämjö Hsk",{"$f":"SUM(BH197:BS197)","v":67},null,{"$f":"COUNT(I197:Z197)","v":1},{"$f":"SUM((CC197)/(F197*2))","v":33.5},null,null,67,null,null,null,null,null,null,null,null,null,null,null,null,null,null,null,null,{"$f":"SUM($I$3:$Z$3)","v":18},{"$f":"BX197","v":"-"},{"$f":"BY197","v":"-"},{"$f":"BZ197","v":"-"},176,{"$f":"IF(D197<D196,AH197,AF196)","v":193},{"$f":"IF(F197>1,ROW(193:193),\"-\")","v":"-"},193,null,null,1,2,2,1,1,1,1,1,1,1,1,1,1,1,1,1,1,1,null,null,{"$f":"IF(H197=\"x\",1,2)","v":2},null,null,{"$f":"IF($F197>0,LARGE($I197:$Z197,1),\"\")","v":67},{"$f":"IF($F197>1,LARGE($I197:$Z197,2),\"\")","v":""},{"$f":"IF($F197>2,LARGE($I197:$Z197,3),\"\")","v":""},{"$f":"IF($F197>3,LARGE($I197:$Z197,4),\"\")","v":""},{"$f":"IF($F197>4,LARGE($I197:$Z197,5),\"\")","v":""},{"$f":"IF($F197>5,LARGE($I197:$Z197,6),\"\")","v":""},{"$f":"IF($F197>6,LARGE($I197:$Z197,7),\"\")","v":""},{"$f":"IF($F197>7,LARGE($I197:$Z197,8),\"\")","v":""},{"$f":"IF($F197>8,LARGE($I197:$Z197,9),\"\")","v":""},{"$f":"IF($F197>9,LARGE($I197:$Z197,10),\"\")","v":""},{"$f":"IF($F197>10,LARGE($I197:$Z197,11),\"\")","v":""},{"$f":"IF($F197>11,LARGE($I197:$Z197,12),\"\")","v":""},{"$f":"IF($F197>12,LARGE($I197:$Z197,13),\"\")","v":""},{"$f":"IF($F197>13,LARGE($I197:$Z197,14),\"\")","v":""},{"$f":"IF($F197>14,LARGE($I197:$Z197,15),\"\")","v":""},{"$f":"IF($F197>15,LARGE($I197:$Z197,16),\"\")","v":""},"-","-","-",{"$f":"SUM(AA197-F197)-2","v":15},null,{"$f":"SUM(BH197:BW197)","v":67},null,null,null,null,null,null,null,null,null,null,null,null,null,null,null,null,null,null,null,null,null,null,null,null,null,null,null,null,null,null,null,null,null,null,null,null,null,null,null,null,null,null,null,null,null,null,null,null,null,null,null,null,null,null,null,null,null,null,null,null,null,null,216,null,193,{"$f":"IF(BE197>1,\"(\"&AE197&\")\",\"(\"&AG197&\")\")","v":"(176)"}]
["194 (-)","Pontus Karlsson","PBHSPC",65,null,1,32.5,"x",null,null,null,null,null,null,null,null,null,null,null,null,null,65,null,null,null,null,18,"-","-","-",195,194,"-",194,null,null,{"$f":"COUNT($I$3,I198,H198)","v":1},{"$f":"COUNT($J$3,J198,I198)","v":1},{"$f":"COUNT($K$3,K198,J198)","v":1},{"$f":"COUNT($L$3,L198,K198)","v":1},{"$f":"COUNT($M$3,M198,L198)","v":1},{"$f":"COUNT($N$3,N198,M198)","v":1},{"$f":"COUNT($O$3,O198,N198)","v":1},{"$f":"COUNT($P$3,P198,O198)","v":1},{"$f":"COUNT($Q$3,Q198,P198)","v":1},{"$f":"COUNT($R$3,R198,Q198)","v":1},{"$f":"COUNT($S$3,S198,R198)","v":1},{"$f":"COUNT($T$3,T198,S198)","v":1},{"$f":"COUNT($U$3,U198,T198)","v":1},{"$f":"COUNT($V$3,V198,U198)","v":2},{"$f":"COUNT($W$3,W198,V198)","v":2},{"$f":"COUNT($X$3,X198,W198)","v":1},{"$f":"COUNT($Y$3,Y198,X198)","v":1},{"$f":"COUNT($Z$3,Z198,Y198)","v":1},null,null,1,null,null,65,"","","","","","","","","","","","","","","",{"$f":"IF($F198>12,LARGE($I198:$Z198,13),\"-\")","v":"-"},{"$f":"IF($F198>13,LARGE($I198:$Z198,14),\"-\")","v":"-"},{"$f":"IF($F198>14,LARGE($I198:$Z198,15),\"-\")","v":"-"},15,null,65,null,null,null,null,null,null,null,null,null,null,null,null,null,null,null,null,null,null,null,null,null,null,null,null,null,null,null,null,null,null,null,null,null,null,null,null,null,null,null,null,null,null,null,null,null,null,null,null,null,null,null,null,null,null,null,null,null,null,null,null,null,null,189,null,"","(-)"]
["194 (-)","Lotta Sundin","Vaxholm",65,null,1,32.5,"x",null,null,null,null,null,null,null,null,null,null,null,null,null,65,null,null,null,null,18,"-","-","-",203,194,"-",195,null,null,1,1,1,1,1,1,1,1,1,1,1,1,1,2,2,1,1,1,null,null,1,null,null,65,"","","","","","","","","","","","","","","","-","-","-",15,null,65,null,null,null,null,null,null,null,null,null,null,null,null,null,null,null,null,null,null,null,null,null,null,null,null,null,null,null,null,null,null,null,null,null,null,null,null,null,null,null,null,null,null,null,null,null,null,null,null,null,null,null,null,null,null,null,null,null,null,null,null,null,null,190,null,"","(-)"]
["196 (177)","Eva Lindberg","Holland",61,null,1,30.5,null,null,null,61,null,null,null,null,null,null,null,null,null,null,null,null,null,null,null,18,"-","-","-",177,196,"-",196,null,null,1,1,2,2,1,1,1,1,1,1,1,1,1,1,1,1,1,1,null,null,2,null,null,61,"","","","","","","","","","","","","","","","-","-","-",15,null,61,null,null,null,null,null,null,null,null,null,null,null,null,null,null,null,null,null,null,null,null,null,null,null,null,null,null,null,null,null,null,null,null,null,null,null,null,null,null,null,null,null,null,null,null,null,null,null,null,null,null,null,null,null,null,null,null,null,null,null,null,null,null,191,null,196,"(177)"]
["197 (-)","Marcus Adler","Old Dirty Chiefs",60,null,1,30,"x",null,null,null,null,null,null,null,null,null,null,null,null,null,60,null,null,null,null,18,"-","-","-",196,197,"-",197,null,null,1,1,1,1,1,1,1,1,1,1,1,1,1,2,2,1,1,1,null,null,1,null,null,60,"","","","","","","","","","","","","","","","-","-","-",15,null,60,null,null,null,null,null,null,null,null,null,null,null,null,null,null,null,null,null,null,null,null,null,null,null,null,null,null,null,null,null,null,null,null,null,null,null,null,null,null,null,null,null,null,null,null,null,null,null,null,null,null,null,null,null,null,null,null,null,null,null,null,null,null,192,null,"","(-)"]
["198 (-)","Gabriella Gustafsson","Vaxholm",58,null,1,29,"x",null,null,null,null,null,null,null,null,null,null,null,null,null,58,null,null,null,null,18,"-","-","-",204,198,"-",198,null,null,1,1,1,1,1,1,1,1,1,1,1,1,1,2,2,1,1,1,null,null,1,null,null,58,"","","","","","","","","","","","","","","","-","-","-",15,null,58,null,null,null,null,null,null,null,null,null,null,null,null,null,null,null,null,null,null,null,null,null,null,null,null,null,null,null,null,null,null,null,null,null,null,null,null,null,null,null,null,null,null,null,null,null,null,null,null,null,null,null,null,null,null,null,null,null,null,null,null,null,null,193,null,"","(-)"]
["198 (-)","Fanny Keil","Beefcakes",58,null,1,29,"x",null,null,null,null,null,null,null,null,null,null,null,null,null,58,null,null,null,null,18,"-","-","-",204,198,"-",199,null,null,1,1,1,1,1,1,1,1,1,1,1,1,1,2,2,1,1,1,null,null,1,null,null,58,"","","","","","","","","","","","","","","","-","-","-",15,null,58,null,null,null,null,null,null,null,null,null,null,null,null,null,null,null,null,null,null,null,null,null,null,null,null,null,null,null,null,null,null,null,null,null,null,null,null,null,null,null,null,null,null,null,null,null,null,null,null,null,null,null,null,null,null,null,null,null,null,null,null,null,null,169,null,"","(-)"]
["200 (178)","Stig Karlsson","Korpen Åseda",53,null,1,26.5,null,null,null,null,null,null,null,null,null,null,53,null,null,null,null,null,null,null,null,18,"-","-","-",178,200,"-",200,null,null,1,1,1,1,1,1,1,1,1,2,2,1,1,1,1,1,1,1,null,null,2,null,null,53,"","","","","","","","","","","","","","","","-","-","-",15,null,53,null,null,null,null,null,null,null,null,null,null,null,null,null,null,null,null,null,null,null,null,null,null,null,null,null,null,null,null,null,null,null,null,null,null,null,null,null,null,null,null,null,null,null,null,null,null,null,null,null,null,null,null,null,null,null,null,null,null,null,null,null,null,194,null,200,"(178)"]
["201 (-)","Sonlard Berglund","PBHSPC",52,null,1,26,"x",null,null,null,null,null,null,null,null,null,null,null,null,null,52,null,null,null,null,18,"-","-","-",197,201,"-",201,null,null,1,1,1,1,1,1,1,1,1,1,1,1,1,2,2,1,1,1,null,null,1,null,null,52,"","","","","","","","","","","","","","","","-","-","-",15,null,52,null,null,null,null,null,null,null,null,null,null,null,null,null,null,null,null,null,null,null,null,null,null,null,null,null,null,null,null,null,null,null,null,null,null,null,null,null,null,null,null,null,null,null,null,null,null,null,null,null,null,null,null,null,null,null,null,null,null,null,null,null,null,196,null,"","(-)"]
["202 (179)","Reina Lopez","Jämjö Hsk",48,null,1,24,null,null,null,null,null,null,null,null,null,null,null,null,null,null,null,null,48,null,null,18,"-","-","-",179,202,"-",202,null,null,1,1,1,1,1,1,1,1,1,1,1,1,1,1,1,2,2,1,null,null,2,null,null,48,"","","","","","","","","","","","","","","","-","-","-",15,null,48,null,null,null,null,null,null,null,null,null,null,null,null,null,null,null,null,null,null,null,null,null,null,null,null,null,null,null,null,null,null,null,null,null,null,null,null,null,null,null,null,null,null,null,null,null,null,null,null,null,null,null,null,null,null,null,null,null,null,null,null,null,null,197,null,202,"(179)"]
["203 (180)","Josefine Brincner","Värends Hsk",47,null,1,23.5,null,null,null,null,null,null,47,null,null,null,null,null,null,null,null,null,null,null,null,18,"-","-","-",180,203,"-",203,null,null,1,1,1,1,1,2,2,1,1,1,1,1,1,1,1,1,1,1,null,null,2,null,null,47,"","","","","","","","","","","","","","","","-","-","-",15,null,47,null,null,null,null,null,null,null,null,null,null,null,null,null,null,null,null,null,null,null,null,null,null,null,null,null,null,null,null,null,null,null,null,null,null,null,null,null,null,null,null,null,null,null,null,null,null,null,null,null,null,null,null,null,null,null,null,null,null,null,null,null,null,207,null,203,"(180)"]
["204 (-)","Kristian Andersin","Old Dirty Chiefs",31,null,1,15.5,"x",null,null,null,null,null,null,null,null,null,null,null,null,null,31,null,null,null,null,18,"-","-","-",198,204,"-",204,null,null,1,1,1,1,1,1,1,1,1,1,1,1,1,2,2,1,1,1,null,null,1,null,null,31,"","","","","","","","","","","","","","","","-","-","-",15,null,31,null,null,null,null,null,null,null,null,null,null,null,null,null,null,null,null,null,null,null,null,null,null,null,null,null,null,null,null,null,null,null,null,null,null,null,null,null,null,null,null,null,null,null,null,null,null,null,null,null,null,null,null,null,null,null,null,null,null,null,null,null,null,198,null,"","(-)"]
["205 (-)","Niklas Herrlin","Balders HSK",26,null,1,13,"x",null,null,null,null,null,null,null,null,null,null,null,null,null,26,null,null,null,null,18,"-","-","-",199,205,"-",205,null,null,1,1,1,1,1,1,1,1,1,1,1,1,1,2,2,1,1,1,null,null,1,null,null,26,"","","","","","","","","","","","","","","","-","-","-",15,null,26,null,null,null,null,null,null,null,null,null,null,null,null,null,null,null,null,null,null,null,null,null,null,null,null,null,null,null,null,null,null,null,null,null,null,null,null,null,null,null,null,null,null,null,null,null,null,null,null,null,null,null,null,null,null,null,null,null,null,null,null,null,null,199,null,"","(-)"]
["206 (-)","Helen Hellström","Vaxholm",21,null,1,10.5,"x",null,null,null,null,null,null,null,null,null,null,null,null,null,21,null,null,null,null,18,"-","-","-",206,206,"-",206,null,null,1,1,1,1,1,1,1,1,1,1,1,1,1,2,2,1,1,1,null,null,1,null,null,21,"","","","","","","","","","","","","","","","-","-","-",15,null,21,null,null,null,null,null,null,null,null,null,null,null,null,null,null,null,null,null,null,null,null,null,null,null,null,null,null,null,null,null,null,null,null,null,null,null,null,null,null,null,null,null,null,null,null,null,null,null,null,null,null,null,null,null,null,null,null,null,null,null,null,null,null,200,null,"","(-)"]
["207 (207)",null,null,0,null,0,{"$error":"#DIV/0!"},null,null,null,null,null,null,null,null,null,null,null,null,null,null,null,null,null,null,null,18,"-","-","-",207,207,"-",207,null,null,1,1,1,1,1,1,1,1,1,1,1,1,1,1,1,1,1,1,null,null,2,null,null,"","","","","","","","","","","","","","","","","-","-","-",16,null,0,null,null,null,null,null,null,null,null,null,null,null,null,null,null,null,null,null,null,null,null,null,null,null,null,null,null,null,null,null,null,null,null,null,null,null,null,null,null,null,null,null,null,null,null,null,null,null,null,null,null,null,null,null,null,null,null,null,null,null,null,null,null,201,null,207,"(207)"]
["207 (207)",null,null,0,null,0,{"$error":"#DIV/0!"},null,null,null,null,null,null,null,null,null,null,null,null,null,null,null,null,null,null,null,18,"-","-","-",207,207,"-",208,null,null,1,1,1,1,1,1,1,1,1,1,1,1,1,1,1,1,1,1,null,null,2,null,null,"","","","","","","","","","","","","","","","","-","-","-",16,null,0,null,null,null,null,null,null,null,null,null,null,null,null,null,null,null,null,null,null,null,null,null,null,null,null,null,null,null,null,null,null,null,null,null,null,null,null,null,null,null,null,null,null,null,null,null,null,null,null,null,null,null,null,null,null,null,null,null,null,null,null,null,null,203,null,207,"(207)"]
["207 (207)",null,null,0,null,0,{"$error":"#DIV/0!"},null,null,null,null,null,null,null,null,null,null,null,null,null,null,null,null,null,null,null,18,"-","-","-",207,207,"-",209,null,null,1,1,1,1,1,1,1,1,1,1,1,1,1,1,1,1,1,1,null,null,2,null,null,"","","","","","","","","","","","","","","","","-","-","-",16,null,0,null,null,null,null,null,null,null,null,null,null,null,null,null,null,null,null,null,null,null,null,null,null,null,null,null,null,null,null,null,null,null,null,null,null,null,null,null,null,null,null,null,null,null,null,null,null,null,null,null,null,null,null,null,null,null,null,null,null,null,null,null,null,204,null,207,"(207)"]
[{"$f":"IF(BE214>1,AF214&\" (\"&AE214&\")\",AF214&\" (\"&AG214&\")\")","v":"207 (207)"},null,null,0,null,0,{"$error":"#DIV/0!"},null,null,null,null,null,null,null,null,null,null,null,null,null,null,null,null,null,null,null,18,"-","-","-",207,207,"-",210,null,null,1,1,1,1,1,1,1,1,1,1,1,1,1,1,1,1,1,1,null,null,2,null,null,"","","","","","","","","","","","","","","","","-","-","-",16,null,{"$f":"SUM(BH214:BW214)","v":0},null,null,null,null,null,null,null,null,null,null,null,null,null,null,null,null,null,null,null,null,null,null,null,null,null,null,null,null,null,null,null,null,null,null,null,null,null,null,null,null,null,null,null,null,null,null,null,null,null,null,null,null,null,null,null,null,null,null,null,null,null,null,208,null,{"$f":"IF(BE214>1,AF214,\"\")","v":207},{"$f":"IF(BE214>1,\"(\"&AE214&\")\",\"(\"&AG214&\")\")","v":"(207)"}]
["207 (207)",null,null,0,null,0,{"$error":"#DIV/0!"},null,null,null,null,null,null,null,null,null,null,null,null,null,null,null,null,null,null,null,18,"-","-","-",207,207,"-",211,null,null,1,1,1,1,1,1,1,1,1,1,1,1,1,1,1,1,1,1,null,null,2,null,null,"","","","","","","","","","","","","","","","","-","-","-",16,null,0,null,null,null,null,null,null,null,null,null,null,null,null,null,null,null,null,null,null,null,null,null,null,null,null,null,null,null,null,null,null,null,null,null,null,null,null,null,null,null,null,null,null,null,null,null,null,null,null,null,null,null,null,null,null,null,null,null,null,null,null,null,null,209,null,207,"(207)"]
["207 (207)",null,null,0,null,0,{"$error":"#DIV/0!"},null,null,null,null,null,null,null,null,null,null,null,null,null,null,null,null,null,null,null,18,"-","-","-",207,207,"-",212,null,null,1,1,1,1,1,1,1,1,1,1,1,1,1,1,1,1,1,1,null,null,2,null,null,"","","","","","","","","","","","","","","","","-","-","-",16,null,0,null,null,null,null,null,null,null,null,null,null,null,null,null,null,null,null,null,null,null,null,null,null,null,null,null,null,null,null,null,null,null,null,null,null,null,null,null,null,null,null,null,null,null,null,null,null,null,null,null,null,null,null,null,null,null,null,null,null,null,null,null,null,210,null,207,"(207)"]
["207 (207)",null,null,0,null,0,{"$error":"#DIV/0!"},null,null,null,null,null,null,null,null,null,null,null,null,null,null,null,null,null,null,null,18,"-","-","-",207,207,"-",213,null,null,1,1,1,1,1,1,1,1,1,1,1,1,1,1,1,1,1,1,null,null,2,null,null,"","","","","","","","","","","","","","","","","-","-","-",16,null,0,null,null,null,null,null,null,null,null,null,null,null,null,null,null,null,null,null,null,null,null,null,null,null,null,null,null,null,null,null,null,null,null,null,null,null,null,null,null,null,null,null,null,null,null,null,null,null,null,null,null,null,null,null,null,null,null,null,null,null,null,null,null,211,null,207,"(207)"]
["207 (207)",null,null,0,null,0,{"$error":"#DIV/0!"},null,null,null,null,null,null,null,null,null,null,null,null,null,null,null,null,null,null,null,18,"-","-","-",207,207,"-",214,null,null,1,1,1,1,1,1,1,1,1,1,1,1,1,1,1,1,1,1,null,null,2,null,null,"","","","","","","","","","","","","","","","","-","-","-",16,null,0,null,null,null,null,null,null,null,null,null,null,null,null,null,null,null,null,null,null,null,null,null,null,null,null,null,null,null,null,null,null,null,null,null,null,null,null,null,null,null,null,null,null,null,null,null,null,null,null,null,null,null,null,null,null,null,null,null,null,null,null,null,null,212,null,207,"(207)"]
["207 (207)",null,null,0,null,0,{"$error":"#DIV/0!"},null,null,null,null,null,null,null,null,null,null,null,null,null,null,null,null,null,null,null,18,"-","-","-",207,207,"-",215,null,null,1,1,1,1,1,1,1,1,1,1,1,1,1,1,1,1,1,1,null,null,2,null,null,"","","","","","","","","","","","","","","","","-","-","-",16,null,0,null,null,null,null,null,null,null,null,null,null,null,null,null,null,null,null,null,null,null,null,null,null,null,null,null,null,null,null,null,null,null,null,null,null,null,null,null,null,null,null,null,null,null,null,null,null,null,null,null,null,null,null,null,null,null,null,null,null,null,null,null,null,213,null,207,"(207)"]
["207 (207)",null,null,0,null,0,{"$error":"#DIV/0!"},null,null,null,null,null,null,null,null,null,null,null,null,null,null,null,null,null,null,null,18,"-","-","-",207,207,"-",216,null,null,1,1,1,1,1,1,1,1,1,1,1,1,1,1,1,1,1,1,null,null,2,null,null,"","","","","","","","","","","","","","","","","-","-","-",16,null,0,null,null,null,null,null,null,null,null,null,null,null,null,null,null,null,null,null,null,null,null,null,null,null,null,null,null,null,null,null,null,null,null,null,null,null,null,null,null,null,null,null,null,null,null,null,null,null,null,null,null,null,null,null,null,null,null,null,null,null,null,null,null,214,null,207,"(207)"]
[]
[]
[]
[]
[]
[]
[]
[]
[]
[]
[]
[]
[]
[]
[]
[]
[]
[]
[]
[]
[]
[]
[]
[]
[]
[]
[]
[]
[]
[]
[]
[]
[]
[]
[]
[]
[]
[]
[]
[]
[]
[]
[]
[]
[]
[]
[]
[]
[]
[]
[]
[]
[]
[]
[]
[null,null,null,null,null,null,null,null,null,null,null,null,null,null,null,null,null,null,null,null,null,null,null,null,null,null,null,null,null,null,1]
[null,null,null,null,null,null,null,null,null,null,null,null,null,null,null,null,null,null,null,null,null,null,null,null,null,null,null,null,null,null,2]
[null,null,null,null,null,null,null,null,null,null,null,null,null,null,null,null,null,null,null,null,null,null,null,null,null,null,null,null,null,null,3]
[null,null,null,null,null,null,null,null,null,null,null,null,null,null,null,null,null,null,null,null,null,null,null,null,null,null,null,null,null,null,4]
[null,null,null,null,null,null,null,null,null,null,null,null,null,null,null,null,null,null,null,null,null,null,null,null,null,null,null,null,null,null,5]
[null,null,null,null,null,null,null,null,null,null,null,null,null,null,null,null,null,null,null,null,null,null,null,null,null,null,null,null,null,null,6]
[null,null,null,null,null,null,null,null,null,null,null,null,null,null,null,null,null,null,null,null,null,null,null,null,null,null,null,null,null,null,7]
[null,null,null,null,null,null,null,null,null,null,null,null,null,null,null,null,null,null,null,null,null,null,null,null,null,null,null,null,null,null,8]
[null,null,null,null,null,null,null,null,null,null,null,null,null,null,null,null,null,null,null,null,null,null,null,null,null,null,null,null,null,null,9]
[null,null,null,null,null,null,null,null,null,null,null,null,null,null,null,null,null,null,null,null,null,null,null,null,null,null,null,null,null,null,11]
[null,null,null,null,null,null,null,null,null,null,null,null,null,null,null,null,null,null,null,null,null,null,null,null,null,null,null,null,null,null,10]
[null,null,null,null,null,null,null,null,null,null,null,null,null,null,null,null,null,null,null,null,null,null,null,null,null,null,null,null,null,null,12]
[null,null,null,null,null,null,null,null,null,null,null,null,null,null,null,null,null,null,null,null,null,null,null,null,null,null,null,null,null,null,16]
[null,null,null,null,null,null,null,null,null,null,null,null,null,null,null,null,null,null,null,null,null,null,null,null,null,null,null,null,null,null,15]
[null,null,null,null,null,null,null,null,null,null,null,null,null,null,null,null,null,null,null,null,null,null,null,null,null,null,null,null,null,null,14]
[null,null,null,null,null,null,null,null,null,null,null,null,null,null,null,null,null,null,null,null,null,null,null,null,null,null,null,null,null,null,13]
[null,null,null,null,null,null,null,null,null,null,null,null,null,null,null,null,null,null,null,null,null,null,null,null,null,null,null,null,null,null,29]
[null,null,null,null,null,null,null,null,null,null,null,null,null,null,null,null,null,null,null,null,null,null,null,null,null,null,null,null,null,null,18]
[null,null,null,null,null,null,null,null,null,null,null,null,null,null,null,null,null,null,null,null,null,null,null,null,null,null,null,null,null,null,21]
[null,null,null,null,null,null,null,null,null,null,null,null,null,null,null,null,null,null,null,null,null,null,null,null,null,null,null,null,null,null,22]
[null,null,null,null,null,null,null,null,null,null,null,null,null,null,null,null,null,null,null,null,null,null,null,null,null,null,null,null,null,null,23]
[null,null,null,null,null,null,null,null,null,null,null,null,null,null,null,null,null,null,null,null,null,null,null,null,null,null,null,null,null,null,28]
[null,null,null,null,null,null,null,null,null,null,null,null,null,null,null,null,null,null,null,null,null,null,null,null,null,null,null,null,null,null,32]
[null,null,null,null,null,null,null,null,null,null,null,null,null,null,null,null,null,null,null,null,null,null,null,null,null,null,null,null,null,null,25]
[null,null,null,null,null,null,null,null,null,null,null,null,null,null,null,null,null,null,null,null,null,null,null,null,null,null,null,null,null,null,20]
[null,null,null,null,null,null,null,null,null,null,null,null,null,null,null,null,null,null,null,null,null,null,null,null,null,null,null,null,null,null,26]
[null,null,null,null,null,null,null,null,null,null,null,null,null,null,null,null,null,null,null,null,null,null,null,null,null,null,null,null,null,null,17]
[null,null,null,null,null,null,null,null,null,null,null,null,null,null,null,null,null,null,null,null,null,null,null,null,null,null,null,null,null,null,36]
[null,null,null,null,null,null,null,null,null,null,null,null,null,null,null,null,null,null,null,null,null,null,null,null,null,null,null,null,null,null,27]
[null,null,null,null,null,null,null,null,null,null,null,null,null,null,null,null,null,null,null,null,null,null,null,null,null,null,null,null,null,null,24]
[null,null,null,null,null,null,null,null,null,null,null,null,null,null,null,null,null,null,null,null,null,null,null,null,null,null,null,null,null,null,30]
[null,null,null,null,null,null,null,null,null,null,null,null,null,null,null,null,null,null,null,null,null,null,null,null,null,null,null,null,null,null,31]
[null,null,null,null,null,null,null,null,null,null,null,null,null,null,null,null,null,null,null,null,null,null,null,null,null,null,null,null,null,null,19]
[null,null,null,null,null,null,null,null,null,null,null,null,null,null,null,null,null,null,null,null,null,null,null,null,null,null,null,null,null,null,39]
[null,null,null,null,null,null,null,null,null,null,null,null,null,null,null,null,null,null,null,null,null,null,null,null,null,null,null,null,null,null,33]
[null,null,null,null,null,null,null,null,null,null,null,null,null,null,null,null,null,null,null,null,null,null,null,null,null,null,null,null,null,null,43]
[null,null,null,null,null,null,null,null,null,null,null,null,null,null,null,null,null,null,null,null,null,null,null,null,null,null,null,null,null,null,34]
[null,null,null,null,null,null,null,null,null,null,null,null,null,null,null,null,null,null,null,null,null,null,null,null,null,null,null,null,null,null,35]
[null,null,null,null,null,null,null,null,null,null,null,null,null,null,null,null,null,null,null,null,null,null,null,null,null,null,null,null,null,null,45]
[null,null,null,null,null,null,null,null,null,null,null,null,null,null,null,null,null,null,null,null,null,null,null,null,null,null,null,null,null,null,44]
[null,null,null,null,null,null,null,null,null,null,null,null,null,null,null,null,null,null,null,null,null,null,null,null,null,null,null,null,null,null,37]
[null,null,null,null,null,null,null,null,null,null,null,null,null,null,null,null,null,null,null,null,null,null,null,null,null,null,null,null,null,null,40]
[null,null,null,null,null,null,null,null,null,null,null,null,null,null,null,null,null,null,null,null,null,null,null,null,null,null,null,null,null,null,46]
[null,null,null,null,null,null,null,null,null,null,null,null,null,null,null,null,null,null,null,null,null,null,null,null,null,null,null,null,null,null,41]
[null,null,null,null,null,null,null,null,null,null,null,null,null,null,null,null,null,null,null,null,null,null,null,null,null,null,null,null,null,null,38]
[null,null,null,null,null,null,null,null,null,null,null,null,null,null,null,null,null,null,null,null,null,null,null,null,null,null,null,null,null,null,42]
[null,null,null,null,null,null,null,null,null,null,null,null,null,null,null,null,null,null,null,null,null,null,null,null,null,null,null,null,null,null,48]
[null,null,null,null,null,null,null,null,null,null,null,null,null,null,null,null,null,null,null,null,null,null,null,null,null,null,null,null,null,null,49]
[null,null,null,null,null,null,null,null,null,null,null,null,null,null,null,null,null,null,null,null,null,null,null,null,null,null,null,null,null,null,51]
[null,null,null,null,null,null,null,null,null,null,null,null,null,null,null,null,null,null,null,null,null,null,null,null,null,null,null,null,null,null,55]
[null,null,null,null,null,null,null,null,null,null,null,null,null,null,null,null,null,null,null,null,null,null,null,null,null,null,null,null,null,null,50]
[null,null,null,null,null,null,null,null,null,null,null,null,null,null,null,null,null,null,null,null,null,null,null,null,null,null,null,null,null,null,47]
[null,null,null,null,null,null,null,null,null,null,null,null,null,null,null,null,null,null,null,null,null,null,null,null,null,null,null,null,null,null,56]
[null,null,null,null,null,null,null,null,null,null,null,null,null,null,null,null,null,null,null,null,null,null,null,null,null,null,null,null,null,null,52]
[null,null,null,null,null,null,null,null,null,null,null,null,null,null,null,null,null,null,null,null,null,null,null,null,null,null,null,null,null,null,57]
[null,null,null,null,null,null,null,null,null,null,null,null,null,null,null,null,null,null,null,null,null,null,null,null,null,null,null,null,null,null,65]
[null,null,null,null,null,null,null,null,null,null,null,null,null,null,null,null,null,null,null,null,null,null,null,null,null,null,null,null,null,null,62]
[null,null,null,null,null,null,null,null,null,null,null,null,null,null,null,null,null,null,null,null,null,null,null,null,null,null,null,null,null,null,58]
[null,null,null,null,null,null,null,null,null,null,null,null,null,null,null,null,null,null,null,null,null,null,null,null,null,null,null,null,null,null,53]
[null,null,null,null,null,null,null,null,null,null,null,null,null,null,null,null,null,null,null,null,null,null,null,null,null,null,null,null,null,null,59]
[null,null,null,null,null,null,null,null,null,null,null,null,null,null,null,null,null,null,null,null,null,null,null,null,null,null,null,null,null,null,54]
[null,null,null,null,null,null,null,null,null,null,null,null,null,null,null,null,null,null,null,null,null,null,null,null,null,null,null,null,null,null,60]
[null,null,null,null,null,null,null,null,null,null,null,null,null,null,null,null,null,null,null,null,null,null,null,null,null,null,null,null,null,null,63]
[null,null,null,null,null,null,null,null,null,null,null,null,null,null,null,null,null,null,null,null,null,null,null,null,null,null,null,null,null,null,69]
[null,null,null,null,null,null,null,null,null,null,null,null,null,null,null,null,null,null,null,null,null,null,null,null,null,null,null,null,null,null,66]
[null,null,null,null,null,null,null,null,null,null,null,null,null,null,null,null,null,null,null,null,null,null,null,null,null,null,null,null,null,null,61]
[null,null,null,null,null,null,null,null,null,null,null,null,null,null,null,null,null,null,null,null,null,null,null,null,null,null,null,null,null,null,71]
[null,null,null,null,null,null,null,null,null,null,null,null,null,null,null,null,null,null,null,null,null,null,null,null,null,null,null,null,null,null,64]
[null,null,null,null,null,null,null,null,null,null,null,null,null,null,null,null,null,null,null,null,null,null,null,null,null,null,null,null,null,null,68]
[null,null,null,null,null,null,null,null,null,null,null,null,null,null,null,null,null,null,null,null,null,null,null,null,null,null,null,null,null,null,67]
[null,null,null,null,null,null,null,null,null,null,null,null,null,null,null,null,null,null,null,null,null,null,null,null,null,null,null,null,null,null,72]
[null,null,null,null,null,null,null,null,null,null,null,null,null,null,null,null,null,null,null,null,null,null,null,null,null,null,null,null,null,null,70]
[null,null,null,null,null,null,null,null,null,null,null,null,null,null,null,null,null,null,null,null,null,null,null,null,null,null,null,null,null,null,73]
[null,null,null,null,null,null,null,null,null,null,null,null,null,null,null,null,null,null,null,null,null,null,null,null,null,null,null,null,null,null,74]
[null,null,null,null,null,null,null,null,null,null,null,null,null,null,null,null,null,null,null,null,null,null,null,null,null,null,null,null,null,null,87]
[null,null,null,null,null,null,null,null,null,null,null,null,null,null,null,null,null,null,null,null,null,null,null,null,null,null,null,null,null,null,75]
[null,null,null,null,null,null,null,null,null,null,null,null,null,null,null,null,null,null,null,null,null,null,null,null,null,null,null,null,null,null,77]
[null,null,null,null,null,null,null,null,null,null,null,null,null,null,null,null,null,null,null,null,null,null,null,null,null,null,null,null,null,null,78]
[null,null,null,null,null,null,null,null,null,null,null,null,null,null,null,null,null,null,null,null,null,null,null,null,null,null,null,null,null,null,93]
[null,null,null,null,null,null,null,null,null,null,null,null,null,null,null,null,null,null,null,null,null,null,null,null,null,null,null,null,null,null,80]
[null,null,null,null,null,null,null,null,null,null,null,null,null,null,null,null,null,null,null,null,null,null,null,null,null,null,null,null,null,null,91]
[null,null,null,null,null,null,null,null,null,null,null,null,null,null,null,null,null,null,null,null,null,null,null,null,null,null,null,null,null,null,82]
[null,null,null,null,null,null,null,null,null,null,null,null,null,null,null,null,null,null,null,null,null,null,null,null,null,null,null,null,null,null,83]
[null,null,null,null,null,null,null,null,null,null,null,null,null,null,null,null,null,null,null,null,null,null,null,null,null,null,null,null,null,null,96]
[null,null,null,null,null,null,null,null,null,null,null,null,null,null,null,null,null,null,null,null,null,null,null,null,null,null,null,null,null,null,88]
[null,null,null,null,null,null,null,null,null,null,null,null,null,null,null,null,null,null,null,null,null,null,null,null,null,null,null,null,null,null,84]
[null,null,null,null,null,null,null,null,null,null,null,null,null,null,null,null,null,null,null,null,null,null,null,null,null,null,null,null,null,null,86]
[null,null,null,null,null,null,null,null,null,null,null,null,null,null,null,null,null,null,null,null,null,null,null,null,null,null,null,null,null,null,98]
[null,null,null,null,null,null,null,null,null,null,null,null,null,null,null,null,null,null,null,null,null,null,null,null,null,null,null,null,null,null,76]
[null,null,null,null,null,null,null,null,null,null,null,null,null,null,null,null,null,null,null,null,null,null,null,null,null,null,null,null,null,null,81]
[null,null,null,null,null,null,null,null,null,null,null,null,null,null,null,null,null,null,null,null,null,null,null,null,null,null,null,null,null,null,89]
[null,null,null,null,null,null,null,null,null,null,null,null,null,null,null,null,null,null,null,null,null,null,null,null,null,null,null,null,null,null,92]
[null,null,null,null,null,null,null,null,null,null,null,null,null,null,null,null,null,null,null,null,null,null,null,null,null,null,null,null,null,null,85]
[null,null,null,null,null,null,null,null,null,null,null,null,null,null,null,null,null,null,null,null,null,null,null,null,null,null,null,null,null,null,78]
[null,null,null,null,null,null,null,null,null,null,null,null,null,null,null,null,null,null,null,null,null,null,null,null,null,null,null,null,null,null,90]
[null,null,null,null,null,null,null,null,null,null,null,null,null,null,null,null,null,null,null,null,null,null,null,null,null,null,null,null,null,null,106]
[null,null,null,null,null,null,null,null,null,null,null,null,null,null,null,null,null,null,null,null,null,null,null,null,null,null,null,null,null,null,94]
[null,null,null,null,null,null,null,null,null,null,null,null,null,null,null,null,null,null,null,null,null,null,null,null,null,null,null,null,null,null,94]
[null,null,null,null,null,null,null,null,null,null,null,null,null,null,null,null,null,null,null,null,null,null,null,null,null,null,null,null,null,null,97]
[null,null,null,null,null,null,null,null,null,null,null,null,null,null,null,null,null,null,null,null,null,null,null,null,null,null,null,null,null,null,99]
[null,null,null,null,null,null,null,null,null,null,null,null,null,null,null,null,null,null,null,null,null,null,null,null,null,null,null,null,null,null,100]
[null,null,null,null,null,null,null,null,null,null,null,null,null,null,null,null,null,null,null,null,null,null,null,null,null,null,null,null,null,null,105]
[null,null,null,null,null,null,null,null,null,null,null,null,null,null,null,null,null,null,null,null,null,null,null,null,null,null,null,null,null,null,101]
[null,null,null,null,null,null,null,null,null,null,null,null,null,null,null,null,null,null,null,null,null,null,null,null,null,null,null,null,null,null,102]
[null,null,null,null,null,null,null,null,null,null,null,null,null,null,null,null,null,null,null,null,null,null,null,null,null,null,null,null,null,null,103]
[null,null,null,null,null,null,null,null,null,null,null,null,null,null,null,null,null,null,null,null,null,null,null,null,null,null,null,null,null,null,109]
[null,null,null,null,null,null,null,null,null,null,null,null,null,null,null,null,null,null,null,null,null,null,null,null,null,null,null,null,null,null,108]
[null,null,null,null,null,null,null,null,null,null,null,null,null,null,null,null,null,null,null,null,null,null,null,null,null,null,null,null,null,null,110]
[null,null,null,null,null,null,null,null,null,null,null,null,null,null,null,null,null,null,null,null,null,null,null,null,null,null,null,null,null,null,111]
[null,null,null,null,null,null,null,null,null,null,null,null,null,null,null,null,null,null,null,null,null,null,null,null,null,null,null,null,null,null,112]
[null,null,null,null,null,null,null,null,null,null,null,null,null,null,null,null,null,null,null,null,null,null,null,null,null,null,null,null,null,null,113]
[null,null,null,null,null,null,null,null,null,null,null,null,null,null,null,null,null,null,null,null,null,null,null,null,null,null,null,null,null,null,115]
[null,null,null,null,null,null,null,null,null,null,null,null,null,null,null,null,null,null,null,null,null,null,null,null,null,null,null,null,null,null,117]
[null,null,null,null,null,null,null,null,null,null,null,null,null,null,null,null,null,null,null,null,null,null,null,null,null,null,null,null,null,null,118]
[null,null,null,null,null,null,null,null,null,null,null,null,null,null,null,null,null,null,null,null,null,null,null,null,null,null,null,null,null,null,134]
[null,null,null,null,null,null,null,null,null,null,null,null,null,null,null,null,null,null,null,null,null,null,null,null,null,null,null,null,null,null,119]
[null,null,null,null,null,null,null,null,null,null,null,null,null,null,null,null,null,null,null,null,null,null,null,null,null,null,null,null,null,null,120]
[null,null,null,null,null,null,null,null,null,null,null,null,null,null,null,null,null,null,null,null,null,null,null,null,null,null,null,null,null,null,121]
[null,null,null,null,null,null,null,null,null,null,null,null,null,null,null,null,null,null,null,null,null,null,null,null,null,null,null,null,null,null,122]
[null,null,null,null,null,null,null,null,null,null,null,null,null,null,null,null,null,null,null,null,null,null,null,null,null,null,null,null,null,null,181]
[null,null,null,null,null,null,null,null,null,null,null,null,null,null,null,null,null,null,null,null,null,null,null,null,null,null,null,null,null,null,104]
[null,null,null,null,null,null,null,null,null,null,null,null,null,null,null,null,null,null,null,null,null,null,null,null,null,null,null,null,null,null,124]
[null,null,null,null,null,null,null,null,null,null,null,null,null,null,null,null,null,null,null,null,null,null,null,null,null,null,null,null,null,null,124]
[null,null,null,null,null,null,null,null,null,null,null,null,null,null,null,null,null,null,null,null,null,null,null,null,null,null,null,null,null,null,126]
[null,null,null,null,null,null,null,null,null,null,null,null,null,null,null,null,null,null,null,null,null,null,null,null,null,null,null,null,null,null,127]
[null,null,null,null,null,null,null,null,null,null,null,null,null,null,null,null,null,null,null,null,null,null,null,null,null,null,null,null,null,null,127]
[null,null,null,null,null,null,null,null,null,null,null,null,null,null,null,null,null,null,null,null,null,null,null,null,null,null,null,null,null,null,130]
[null,null,null,null,null,null,null,null,null,null,null,null,null,null,null,null,null,null,null,null,null,null,null,null,null,null,null,null,null,null,131]
[null,null,null,null,null,null,null,null,null,null,null,null,null,null,null,null,null,null,null,null,null,null,null,null,null,null,null,null,null,null,132]
[null,null,null,null,null,null,null,null,null,null,null,null,null,null,null,null,null,null,null,null,null,null,null,null,null,null,null,null,null,null,133]
[null,null,null,null,null,null,null,null,null,null,null,null,null,null,null,null,null,null,null,null,null,null,null,null,null,null,null,null,null,null,107]
[null,null,null,null,null,null,null,null,null,null,null,null,null,null,null,null,null,null,null,null,null,null,null,null,null,null,null,null,null,null,135]
[null,null,null,null,null,null,null,null,null,null,null,null,null,null,null,null,null,null,null,null,null,null,null,null,null,null,null,null,null,null,136]
[null,null,null,null,null,null,null,null,null,null,null,null,null,null,null,null,null,null,null,null,null,null,null,null,null,null,null,null,null,null,137]
[null,null,null,null,null,null,null,null,null,null,null,null,null,null,null,null,null,null,null,null,null,null,null,null,null,null,null,null,null,null,137]
[null,null,null,null,null,null,null,null,null,null,null,null,null,null,null,null,null,null,null,null,null,null,null,null,null,null,null,null,null,null,123]
[null,null,null,null,null,null,null,null,null,null,null,null,null,null,null,null,null,null,null,null,null,null,null,null,null,null,null,null,null,null,139]
[null,null,null,null,null,null,null,null,null,null,null,null,null,null,null,null,null,null,null,null,null,null,null,null,null,null,null,null,null,null,139]
[null,null,null,null,null,null,null,null,null,null,null,null,null,null,null,null,null,null,null,null,null,null,null,null,null,null,null,null,null,null,116]
[null,null,null,null,null,null,null,null,null,null,null,null,null,null,null,null,null,null,null,null,null,null,null,null,null,null,null,null,null,null,141]
[null,null,null,null,null,null,null,null,null,null,null,null,null,null,null,null,null,null,null,null,null,null,null,null,null,null,null,null,null,null,129]
[null,null,null,null,null,null,null,null,null,null,null,null,null,null,null,null,null,null,null,null,null,null,null,null,null,null,null,null,null,null,142]
[null,null,null,null,null,null,null,null,null,null,null,null,null,null,null,null,null,null,null,null,null,null,null,null,null,null,null,null,null,null,143]
[null,null,null,null,null,null,null,null,null,null,null,null,null,null,null,null,null,null,null,null,null,null,null,null,null,null,null,null,null,null,181]
[null,null,null,null,null,null,null,null,null,null,null,null,null,null,null,null,null,null,null,null,null,null,null,null,null,null,null,null,null,null,144]
[null,null,null,null,null,null,null,null,null,null,null,null,null,null,null,null,null,null,null,null,null,null,null,null,null,null,null,null,null,null,145]
[null,null,null,null,null,null,null,null,null,null,null,null,null,null,null,null,null,null,null,null,null,null,null,null,null,null,null,null,null,null,114]
[null,null,null,null,null,null,null,null,null,null,null,null,null,null,null,null,null,null,null,null,null,null,null,null,null,null,null,null,null,null,146]
[null,null,null,null,null,null,null,null,null,null,null,null,null,null,null,null,null,null,null,null,null,null,null,null,null,null,null,null,null,null,147]
[null,null,null,null,null,null,null,null,null,null,null,null,null,null,null,null,null,null,null,null,null,null,null,null,null,null,null,null,null,null,148]
[null,null,null,null,null,null,null,null,null,null,null,null,null,null,null,null,null,null,null,null,null,null,null,null,null,null,null,null,null,null,181]
[null,null,null,null,null,null,null,null,null,null,null,null,null,null,null,null,null,null,null,null,null,null,null,null,null,null,null,null,null,null,149]
[null,null,null,null,null,null,null,null,null,null,null,null,null,null,null,null,null,null,null,null,null,null,null,null,null,null,null,null,null,null,149]
[null,null,null,null,null,null,null,null,null,null,null,null,null,null,null,null,null,null,null,null,null,null,null,null,null,null,null,null,null,null,149]
[null,null,null,null,null,null,null,null,null,null,null,null,null,null,null,null,null,null,null,null,null,null,null,null,null,null,null,null,null,null,152]
[null,null,null,null,null,null,null,null,null,null,null,null,null,null,null,null,null,null,null,null,null,null,null,null,null,null,null,null,null,null,153]
[null,null,null,null,null,null,null,null,null,null,null,null,null,null,null,null,null,null,null,null,null,null,null,null,null,null,null,null,null,null,154]
[null,null,null,null,null,null,null,null,null,null,null,null,null,null,null,null,null,null,null,null,null,null,null,null,null,null,null,null,null,null,155]
[null,null,null,null,null,null,null,null,null,null,null,null,null,null,null,null,null,null,null,null,null,null,null,null,null,null,null,null,null,null,155]
[null,null,null,null,null,null,null,null,null,null,null,null,null,null,null,null,null,null,null,null,null,null,null,null,null,null,null,null,null,null,157]
[null,null,null,null,null,null,null,null,null,null,null,null,null,null,null,null,null,null,null,null,null,null,null,null,null,null,null,null,null,null,158]
[null,null,null,null,null,null,null,null,null,null,null,null,null,null,null,null,null,null,null,null,null,null,null,null,null,null,null,null,null,null,159]
[null,null,null,null,null,null,null,null,null,null,null,null,null,null,null,null,null,null,null,null,null,null,null,null,null,null,null,null,null,null,160]
[null,null,null,null,null,null,null,null,null,null,null,null,null,null,null,null,null,null,null,null,null,null,null,null,null,null,null,null,null,null,160]
[null,null,null,null,null,null,null,null,null,null,null,null,null,null,null,null,null,null,null,null,null,null,null,null,null,null,null,null,null,null,181]
[null,null,null,null,null,null,null,null,null,null,null,null,null,null,null,null,null,null,null,null,null,null,null,null,null,null,null,null,null,null,162]
[null,null,null,null,null,null,null,null,null,null,null,null,null,null,null,null,null,null,null,null,null,null,null,null,null,null,null,null,null,null,181]
[null,null,null,null,null,null,null,null,null,null,null,null,null,null,null,null,null,null,null,null,null,null,null,null,null,null,null,null,null,null,163]
[null,null,null,null,null,null,null,null,null,null,null,null,null,null,null,null,null,null,null,null,null,null,null,null,null,null,null,null,null,null,164]
[null,null,null,null,null,null,null,null,null,null,null,null,null,null,null,null,null,null,null,null,null,null,null,null,null,null,null,null,null,null,165]
[null,null,null,null,null,null,null,null,null,null,null,null,null,null,null,null,null,null,null,null,null,null,null,null,null,null,null,null,null,null,166]
[null,null,null,null,null,null,null,null,null,null,null,null,null,null,null,null,null,null,null,null,null,null,null,null,null,null,null,null,null,null,167]
[null,null,null,null,null,null,null,null,null,null,null,null,null,null,null,null,null,null,null,null,null,null,null,null,null,null,null,null,null,null,181]
[null,null,null,null,null,null,null,null,null,null,null,null,null,null,null,null,null,null,null,null,null,null,null,null,null,null,null,null,null,null,168]
[null,null,null,null,null,null,null,null,null,null,null,null,null,null,null,null,null,null,null,null,null,null,null,null,null,null,null,null,null,null,169]
[null,null,null,null,null,null,null,null,null,null,null,null,null,null,null,null,null,null,null,null,null,null,null,null,null,null,null,null,null,null,170]
[null,null,null,null,null,null,null,null,null,null,null,null,null,null,null,null,null,null,null,null,null,null,null,null,null,null,null,null,null,null,170]
[null,null,null,null,null,null,null,null,null,null,null,null,null,null,null,null,null,null,null,null,null,null,null,null,null,null,null,null,null,null,181]
[null,null,null,null,null,null,null,null,null,null,null,null,null,null,null,null,null,null,null,null,null,null,null,null,null,null,null,null,null,null,172]
[null,null,null,null,null,null,null,null,null,null,null,null,null,null,null,null,null,null,null,null,null,null,null,null,null,null,null,null,null,null,173]
[null,null,null,null,null,null,null,null,null,null,null,null,null,null,null,null,null,null,null,null,null,null,null,null,null,null,null,null,null,null,174]
[null,null,null,null,null,null,null,null,null,null,null,null,null,null,null,null,null,null,null,null,null,null,null,null,null,null,null,null,null,null,181]
[null,null,null,null,null,null,null,null,null,null,null,null,null,null,null,null,null,null,null,null,null,null,null,null,null,null,null,null,null,null,175]
[null,null,null,null,null,null,null,null,null,null,null,null,null,null,null,null,null,null,null,null,null,null,null,null,null,null,null,null,null,null,176]
[null,null,null,null,null,null,null,null,null,null,null,null,null,null,null,null,null,null,null,null,null,null,null,null,null,null,null,null,null,null,181]
[null,null,null,null,null,null,null,null,null,null,null,null,null,null,null,null,null,null,null,null,null,null,null,null,null,null,null,null,null,null,177]
[null,null,null,null,null,null,null,null,null,null,null,null,null,null,null,null,null,null,null,null,null,null,null,null,null,null,null,null,null,null,178]
[null,null,null,null,null,null,null,null,null,null,null,null,null,null,null,null,null,null,null,null,null,null,null,null,null,null,null,null,null,null,178]
[null,null,null,null,null,null,null,null,null,null,null,null,null,null,null,null,null,null,null,null,null,null,null,null,null,null,null,null,null,null,180]
[null,null,null,null,null,null,null,null,null,null,null,null,null,null,null,null,null,null,null,null,null,null,null,null,null,null,null,null,null,null,181]
[null,null,null,null,null,null,null,null,null,null,null,null,null,null,null,null,null,null,null,null,null,null,null,null,null,null,null,null,null,null,181]
[null,null,null,null,null,null,null,null,null,null,null,null,null,null,null,null,null,null,null,null,null,null,null,null,null,null,null,null,null,null,181]
[null,null,null,null,null,null,null,null,null,null,null,null,null,null,null,null,null,null,null,null,null,null,null,null,null,null,null,null,null,null,181]
[null,null,null,null,null,null,null,null,null,null,null,null,null,null,null,null,null,null,null,null,null,null,null,null,null,null,null,null,null,null,181]
[null,null,null,null,null,null,null,null,null,null,null,null,null,null,null,null,null,null,null,null,null,null,null,null,null,null,null,null,null,null,181]
[null,null,null,null,null,null,null,null,null,null,null,null,null,null,null,null,null,null,null,null,null,null,null,null,null,null,null,null,null,null,181]
[null,null,null,null,null,null,null,null,null,null,null,null,null,null,null,null,null,null,null,null,null,null,null,null,null,null,null,null,null,null,181]
[null,null,null,null,null,null,null,null,null,null,null,null,null,null,null,null,null,null,null,null,null,null,null,null,null,null,null,null,null,null,181]
[null,null,null,null,null,null,null,null,null,null,null,null,null,null,null,null,null,null,null,null,null,null,null,null,null,null,null,null,null,null,181]
[null,null,null,null,null,null,null,null,null,null,null,null,null,null,null,null,null,null,null,null,null,null,null,null,null,null,null,null,null,null,181]
[null,null,null,null,null,null,null,null,null,null,null,null,null,null,null,null,null,null,null,null,null,null,null,null,null,null,null,null,null,null,181]
[null,null,null,null,null,null,null,null,null,null,null,null,null,null,null,null,null,null,null,null,null,null,null,null,null,null,null,null,null,null,181]
[null,null,null,null,null,null,null,null,null,null,null,null,null,null,null,null,null,null,null,null,null,null,null,null,null,null,null,null,null,null,181]
[null,null,null,null,null,null,null,null,null,null,null,null,null,null,null,null,null,null,null,null,null,null,null,null,null,null,null,null,null,null,181]
[null,null,null,null,null,null,null,null,null,null,null,null,null,null,null,null,null,null,null,null,null,null,null,null,null,null,null,null,null,null,181]
[null,null,null,null,null,null,null,null,null,null,null,null,null,null,null,null,null,null,null,null,null,null,null,null,null,null,null,null,null,null,181]
[null,null,null,null,null,null,null,null,null,null,null,null,null,null,null,null,null,null,null,null,null,null,null,null,null,null,null,null,null,null,181]
[null,null,null,null,null,null,null,null,null,null,null,null,null,null,null,null,null,null,null,null,null,null,null,null,null,null,null,null,null,null,181]
[null,null,null,null,null,null,null,null,null,null,null,null,null,null,null,null,null,null,null,null,null,null,null,null,null,null,null,null,null,null,181]
[null,null,null,null,null,null,null,null,null,null,null,null,null,null,null,null,null,null,null,null,null,null,null,null,null,null,null,null,null,null,181]
[null,null,null,null,null,null,null,null,null,null,null,null,null,null,null,null,null,null,null,null,null,null,null,null,null,null,null,null,null,null,181]
[null,null,null,null,null,null,null,null,null,null,null,null,null,null,null,null,null,null,null,null,null,null,null,null,null,null,null,null,null,null,181]
[null,null,null,null,null,null,null,null,null,null,null,null,null,null,null,null,null,null,null,null,null,null,null,null,null,null,null,null,null,null,181]
[null,null,null,null,null,null,null,null,null,null,null,null,null,null,null,null,null,null,null,null,null,null,null,null,null,null,null,null,null,null,181]
[null,null,null,null,null,null,null,null,null,null,null,null,null,null,null,null,null,null,null,null,null,null,null,null,null,null,null,null,null,null,181]
[null,null,null,null,null,null,null,null,null,null,null,null,null,null,null,null,null,null,null,null,null,null,null,null,null,null,null,null,null,null,181]

{"sheet":"Regler","index":1,"n_rows":29,"n_cols":1,"rows_kept":29,"cut":false,"hidden":false,"merged":[]}
["Regler för Sverige-,Junior- o Miniorranking"]
[]
["Rankingpoäng utgör den totala poängen från rankingtävlingar under säsongen "]
["som varje enskild kastare har fått ihop."]
["Max från 13 tävlingar kan medräknas, och då räknas de 13 med högst resultat."]
[]
["Den som har högst poäng när säsongen är över vinner."]
[]
["Skulle det vara kastare som hamnar på samma poäng när säsongen är över, och är bland de"]
["tre bästa så gäller detta för att skilja dem åt."]
[]
["1. Högst snitt per serie"]
["2. Högst poäng på en tävling, sedan näst högst osv."]
["3. Högsta poängen på senaste tävlingen, sedan den dessför innan osv.(DM-tävlingar ej inräknade) "]
["4. Skulle det fortfarande inte gå att skilja dem åt, så blir de på samma plats."]
[]
[]
["Seriespelsranking"]
[]
["Alla individuella seriespelsresultaten under säsongen räknas in."]
["Den som har högst snitt när säsongen är över vinner. "]
[]
["För att kunna vara bland de tre pristagarna, måste man spelat minst 7 serier."]
[]
["Skulle det vara kastare som hamnar på samma snitt när säsongen är över, och är bland de"]
["tre bästa så gäller detta för att skilja dem åt."]
[]
["1. Det högsta serieresultatet, sedan näst högsta osv."]
["2. Skulle det fortfarande inte gå att skilja dem åt, så blir de på samma plats."]

{"sheet":"Miniorranking","index":2,"n_rows":47,"n_cols":141,"rows_kept":47,"cut":false,"hidden":false,"merged":[]}
[null,"Svenska Hästskokastarförbundets Sverigeranking",null,null,null,null,null,null,null,null,null,null,null,null,null,null,null,null,null,null,null,null,null,null,null,null,null,null,{"$f":"COUNT(I5:AA25)-(O2+P2+V2+W2)","v":8}]
[null,null,"MINIOR",null,null,null,null,null,{"$f":"COUNT(I5:I25)","v":0},{"$f":"COUNT(J5:J25)","v":1},1,0,0,3,1,2,3,0,0,0,0,0,1,0,0]
[null,"2019-10-26","Säsong 2019 / 2020",null,null,null,null,null,{"$f":"IF(SUM(I5:I407)>70,1,\"\")","v":""},{"$f":"IF(SUM(J5:J407)>7,1,\"\")","v":1},{"$f":"IF(SUM(K5:K407)>7,1,\"\")","v":1},"","",1,1,1,1,"","","","","",1,"","",{"$f":"IF(SUM(Z5:Z407)>100,1,\"\")","v":""},""]
["Plac.","Kastare ","Klubb","Ranking-poäng",null,"Antal täv-lingar","Snitt per serie",null,"Moheda Open","Jämjö Open","Björkenäs Open","Utomhus-SM Dag 1","Utomhus-SM Dag 2","Vaxholm Open","Blekinge-DM Ute","Utomhus Smålandsmästaren","Dynapac Open","Åseda Open","Höstskon Nybro","Carlskrona Cup","Sibbamåla Open","Inomhus Smålandsmästaren ","Blekinge DM Inne","Inomhus-SM","Tingsryds Open"]
[{"$f":"EJ5&EK5","v":"1(1)"},"Saga Karlberg","Jämjö Hsk",{"$f":"SUM(I5:AA5)","v":569},null,{"$f":"COUNT(I5:AA5)","v":4},{"$f":"SUM((D5)/(F5*2))","v":71.125},null,null,141,null,null,null,null,159,null,162,null,null,null,null,null,107,null,null,null,null,null,null,1,{"$f":"IF(D5>1,ROW(1:1),\"-\")","v":1},{"$f":"IF(F5>1,ROW(1:1),\"-\")","v":1},null,null,null,{"$f":"COUNT($I$3,I5,H5)","v":0},{"$f":"COUNT($J$3,J5,I5)","v":2},{"$f":"COUNT($K$3,K5,J5)","v":2},{"$f":"COUNT($L$3,L5,K5)","v":0},{"$f":"COUNT($M$3,M5,L5)","v":0},{"$f":"COUNT($N$3,N5,M5)","v":1},{"$f":"COUNT($O$3,O5,N5)","v":2},{"$f":"COUNT($P$3,P5,O5)","v":2},{"$f":"COUNT($Q$3,Q5,P5)","v":2},{"$f":"COUNT($R$3,R5,Q5)","v":1},{"$f":"COUNT($S$3,S5,R5)","v":0},{"$f":"COUNT($T$3,T5,S5)","v":0},{"$f":"COUNT($U$3,U5,T5)","v":0},{"$f":"COUNT($V$3,V5,U5)","v":0},{"$f":"COUNT($W$3,W5,V5)","v":2},{"$f":"COUNT($X$3,X5,W5)","v":1},{"$f":"COUNT($Y$3,Y5,X5)","v":0},{"$f":"COUNT($Z$3,Z5,Y5)","v":0},{"$f":"COUNT($AA$3,AA5,Z5)","v":0},null,{"$f":"COUNTIF(AI5:BC5,\">1\")","v":6},{"$f":"IF(H5=\"x\",1,2)","v":2},null,null,null,null,null,null,null,null,null,null,null,null,null,null,null,null,null,null,null,null,null,null,null,null,null,null,null,null,null,null,null,null,null,null,null,null,null,null,null,null,null,null,null,null,null,null,null,null,null,null,null,null,null,null,null,null,null,null,null,null,null,null,null,null,null,null,null,null,null,null,null,null,null,null,null,null,null,null,null,null,1,null,{"$f":"IF(BD5>=1,AE5,\"\")","v":1},{"$f":"IF(BE5>1,\"(\"&AD5&\")\",\"(\"&AF5&\")\")","v":"(1)"}]
["2(2)","Albin Rydell","Värends Hsk",92,null,1,46,null,null,null,null,null,null,null,null,92,null,null,null,null,null,null,null,null,null,null,null,null,null,2,{"$f":"IF(AND(D6=D5,D6=D4),ROW(#REF!),IF(D6=D5,ROW(1:1),IF(D6>1,ROW(2:2),\"-\")))","v":2},"-",null,null,null,0,1,1,0,0,1,1,2,2,0,0,0,0,0,1,0,0,0,0,null,2,2,null,null,null,null,null,null,null,null,null,null,null,null,null,null,null,null,null,null,null,null,null,null,null,null,null,null,null,null,null,null,null,null,null,null,null,null,null,null,null,null,null,null,null,null,null,null,null,null,null,null,null,null,null,null,null,null,null,null,null,null,null,null,null,null,null,null,null,null,null,null,null,null,null,null,null,null,null,null,null,null,3,null,2,"(2)"]
["3(3)","Gustav Svensson","Carlskrona Hsc",68,null,1,34,null,null,null,null,null,null,null,null,null,68,null,null,null,null,null,null,null,null,null,null,null,null,3,{"$f":"IF(AND(D7=D6,D7=D5,D7=D4),ROW(#REF!),IF(AND(D7=D6,D7=D5),ROW(1:1),IF(D7=D6,ROW(2:2),IF(D7>1,ROW(3:3),\"-\"))))","v":3},"-",null,null,null,0,1,1,0,0,1,1,1,2,1,0,0,0,0,1,0,0,0,0,null,1,2,null,null,null,null,null,null,null,null,null,null,null,null,null,null,null,null,null,null,null,null,null,null,null,null,null,null,null,null,null,null,null,null,null,null,null,null,null,null,null,null,null,null,null,null,null,null,null,null,null,null,null,null,null,null,null,null,null,null,null,null,null,null,null,null,null,null,null,null,null,null,null,null,null,null,null,null,null,null,null,null,4,null,3,"(3)"]
["4(4)","Ludvig Holmgren","Carlskrona Hsc",60,null,1,30,null,null,null,null,null,null,null,null,null,60,null,null,null,null,null,null,null,null,null,null,null,null,4,{"$f":"IF(AND(D8=D7,D8=D6,D8=D5,D8=D4),ROW(#REF!),IF(AND(D8=D7,D8=D6,D8=D5),ROW(1:1),IF(AND(D8=D7,D8=D6),ROW(2:2),IF(D8=D7,ROW(3:3),IF(D8>1,ROW(4:4),\"-\")))))","v":4},"-",null,null,null,0,1,1,0,0,1,1,1,2,1,0,0,0,0,1,0,0,0,0,null,1,2,null,null,null,null,null,null,null,null,null,null,null,null,null,null,null,null,null,null,null,null,null,null,null,null,null,null,null,null,null,null,null,null,null,null,null,null,null,null,null,null,null,null,null,null,null,null,null,null,null,null,null,null,null,null,null,null,null,null,null,null,null,null,null,null,null,null,null,null,null,null,null,null,null,null,null,null,null,null,null,null,5,null,4,"(4)"]
["5(5)","Alice Jältsäter","Vaxholm",51,null,1,25.5,null,null,null,null,null,null,51,null,null,null,null,null,null,null,null,null,null,null,null,null,null,null,5,{"$f":"IF(AND(D9=D8,D9=D7,D9=D6,D9=D5),ROW(1:1),IF(AND(D9=D8,D9=D7,D9=D6),ROW(2:2),IF(AND(D9=D8,D9=D7),ROW(3:3),IF(D9=D8,ROW(4:4),IF(D9>1,ROW(5:5),\"-\")))))","v":5},"-",null,null,null,0,1,1,0,0,2,2,1,1,0,0,0,0,0,1,0,0,0,0,null,2,2,null,null,null,null,null,null,null,null,null,null,null,null,null,null,null,null,null,null,null,null,null,null,null,null,null,null,null,null,null,null,null,null,null,null,null,null,null,null,null,null,null,null,null,null,null,null,null,null,null,null,null,null,null,null,null,null,null,null,null,null,null,null,null,null,null,null,null,null,null,null,null,null,null,null,null,null,null,null,null,null,6,null,5,"(5)"]
["6(6)","Alex Rydell","Värends Hsk",45,null,1,22.5,null,null,null,null,null,null,null,null,45,null,null,null,null,null,null,null,null,null,null,null,null,null,6,{"$f":"IF(AND(D10=D9,D10=D8,D10=D7,D10=D6),ROW(2:2),IF(AND(D10=D9,D10=D8,D10=D7),ROW(3:3),IF(AND(D10=D9,D10=D8),ROW(4:4),IF(D10=D9,ROW(5:5),IF(D10>1,ROW(6:6),\"-\")))))","v":6},"-",null,null,null,0,1,1,0,0,1,1,2,2,0,0,0,0,0,1,0,0,0,0,null,2,2,null,null,null,null,null,null,null,null,null,null,null,null,null,null,null,null,null,null,null,null,null,null,null,null,null,null,null,null,null,null,null,null,null,null,null,null,null,null,null,null,null,null,null,null,null,null,null,null,null,null,null,null,null,null,null,null,null,null,null,null,null,null,null,null,null,null,null,null,null,null,null,null,null,null,null,null,null,null,null,null,7,null,6,"(6)"]
["7(7)","Isac Zetterlund","Vaxholm",44,null,1,22,null,null,null,null,null,null,44,null,null,null,null,null,null,null,null,null,null,null,null,null,null,null,7,{"$f":"IF(AND(D11=D10,D11=D9,D11=D8,D11=D7),ROW(3:3),IF(AND(D11=D10,D11=D9,D11=D8),ROW(4:4),IF(AND(D11=D10,D11=D9),ROW(5:5),IF(D11=D10,ROW(6:6),IF(D11>1,ROW(7:7),\"-\")))))","v":7},"-",null,null,null,0,1,1,0,0,2,2,1,1,0,0,0,0,0,1,0,0,0,0,null,2,2,null,null,null,null,null,null,null,null,null,null,null,null,null,null,null,null,null,null,null,null,null,null,null,null,null,null,null,null,null,null,null,null,null,null,null,null,null,null,null,null,null,null,null,null,null,null,null,null,null,null,null,null,null,null,null,null,null,null,null,null,null,null,null,null,null,null,null,null,null,null,null,null,null,null,null,null,null,null,null,null,8,null,7,"(7)"]
["8(8)","Theo Fresk","Sollentuna",41,null,1,20.5,null,null,null,null,null,null,41,null,null,null,null,null,null,null,null,null,null,null,null,null,null,null,8,{"$f":"IF(AND(D12=D11,D12=D10,D12=D9,D12=D8),ROW(4:4),IF(AND(D12=D11,D12=D10,D12=D9),ROW(5:5),IF(AND(D12=D11,D12=D10),ROW(6:6),IF(D12=D11,ROW(7:7),IF(D12>1,ROW(8:8),\"-\")))))","v":8},"-",null,null,null,0,1,1,0,0,2,2,1,1,0,0,0,0,0,1,0,0,0,0,null,2,2,null,null,null,null,null,null,null,null,null,null,null,null,null,null,null,null,null,null,null,null,null,null,null,null,null,null,null,null,null,null,null,null,null,null,null,null,null,null,null,null,null,null,null,null,null,null,null,null,null,null,null,null,null,null,null,null,null,null,null,null,null,null,null,null,null,null,null,null,null,null,null,null,null,null,null,null,null,null,null,null,9,null,8,"(8)"]
["9(9)","Amanda Ahlberg","Jämjö Hsk",24,null,1,12,null,null,null,24,null,null,null,null,null,null,null,null,null,null,null,null,null,null,null,null,null,null,9,{"$f":"IF(D13=D12,ROW(8:8),IF(D13>1,ROW(9:9),\"-\"))","v":9},"-",null,null,null,0,1,2,1,0,1,1,1,1,0,0,0,0,0,1,0,0,0,0,null,1,2,null,null,null,null,null,null,null,null,null,null,null,null,null,null,null,null,null,null,null,null,null,null,null,null,null,null,null,null,null,null,null,null,null,null,null,null,null,null,null,null,null,null,null,null,null,null,null,null,null,null,null,null,null,null,null,null,null,null,null,null,null,null,null,null,null,null,null,null,null,null,null,null,null,null,null,null,null,null,null,null,2,null,9,"(9)"]
[{"$f":"EJ14&EK14","v":"(-)"},"Alfons Andersson","Carlskrona Hsc",0,null,0,{"$error":"#DIV/0!"},null,null,null,null,null,null,null,null,null,null,null,null,null,null,null,null,null,null,null,null,null,null,"-",{"$f":"IF(AND(D14=D13,D14=D12,D14=D11,D14=D10),ROW(6:6),IF(AND(D14=D13,D14=D12,D14=D11),ROW(7:7),IF(AND(D14=D13,D14=D12),ROW(8:8),IF(D14=D13,ROW(9:9),IF(D14>1,ROW(10:10),\"-\")))))","v":"-"},{"$f":"IF(F14>1,ROW(10:10),\"-\")","v":"-"},null,null,null,{"$f":"COUNT($I$3,I14,H14)","v":0},{"$f":"COUNT($J$3,J14,I14)","v":1},{"$f":"COUNT($K$3,K14,J14)","v":1},{"$f":"COUNT($L$3,L14,K14)","v":0},{"$f":"COUNT($M$3,M14,L14)","v":0},{"$f":"COUNT($N$3,N14,M14)","v":1},{"$f":"COUNT($O$3,O14,N14)","v":1},{"$f":"COUNT($P$3,P14,O14)","v":1},{"$f":"COUNT($Q$3,Q14,P14)","v":1},{"$f":"COUNT($R$3,R14,Q14)","v":0},{"$f":"COUNT($S$3,S14,R14)","v":0},{"$f":"COUNT($T$3,T14,S14)","v":0},{"$f":"COUNT($U$3,U14,T14)","v":0},{"$f":"COUNT($V$3,V14,U14)","v":0},{"$f":"COUNT($W$3,W14,V14)","v":1},{"$f":"COUNT($X$3,X14,W14)","v":0},{"$f":"COUNT($Y$3,Y14,X14)","v":0},{"$f":"COUNT($Z$3,Z14,Y14)","v":0},{"$f":"COUNT($AA$3,AA14,Z14)","v":0},null,{"$f":"COUNTIF(AI14:BC14,\">1\")","v":0},{"$f":"IF(H14=\"x\",1,2)","v":2},null,null,null,null,null,null,null,null,null,null,null,null,null,null,null,null,null,null,null,null,null,null,null,null,null,null,null,null,null,null,null,null,null,null,null,null,null,null,null,null,null,null,null,null,null,null,null,null,null,null,null,null,null,null,null,null,null,null,null,null,null,null,null,null,null,null,null,null,null,null,null,null,null,null,null,null,null,null,null,null,10,null,{"$f":"IF(BD14>=1,AE14,\"\")","v":""},{"$f":"IF(BE14>1,\"(\"&AD14&\")\",\"(\"&AF14&\")\")","v":"(-)"}]
["(10)",null,null,0,null,0,{"$error":"#DIV/0!"},null,null,null,null,null,null,null,null,null,null,null,null,null,null,null,null,null,null,null,null,null,null,10,10,"-",null,null,null,0,1,1,0,0,1,1,1,1,0,0,0,0,0,1,0,0,0,0,null,0,2,null,null,null,null,null,null,null,null,null,null,null,null,null,null,null,null,null,null,null,null,null,null,null,null,null,null,null,null,null,null,null,null,null,null,null,null,null,null,null,null,null,null,null,null,null,null,null,null,null,null,null,null,null,null,null,null,null,null,null,null,null,null,null,null,null,null,null,null,null,null,null,null,null,null,null,null,null,null,null,null,11,null,"","(10)"]
["(10)",null,null,0,null,0,{"$error":"#DIV/0!"},null,null,null,null,null,null,null,null,null,null,null,null,null,null,null,null,null,null,null,null,null,null,10,10,"-",null,null,null,0,1,1,0,0,1,1,1,1,0,0,0,0,0,1,0,0,0,0,null,0,2,null,null,null,null,null,null,null,null,null,null,null,null,null,null,null,null,null,null,null,null,null,null,null,null,null,null,null,null,null,null,null,null,null,null,null,null,null,null,null,null,null,null,null,null,null,null,null,null,null,null,null,null,null,null,null,null,null,null,null,null,null,null,null,null,null,null,null,null,null,null,null,null,null,null,null,null,null,null,null,null,12,null,"","(10)"]
["(10)",null,null,0,null,0,{"$error":"#DIV/0!"},null,null,null,null,null,null,null,null,null,null,null,null,null,null,null,null,null,null,null,null,null,null,10,10,"-",null,null,null,0,1,1,0,0,1,1,1,1,0,0,0,0,0,1,0,0,0,0,null,0,2,null,null,null,null,null,null,null,null,null,null,null,null,null,null,null,null,null,null,null,null,null,null,null,null,null,null,null,null,null,null,null,null,null,null,null,null,null,null,null,null,null,null,null,null,null,null,null,null,null,null,null,null,null,null,null,null,null,null,null,null,null,null,null,null,null,null,null,null,null,null,null,null,null,null,null,null,null,null,null,null,13,null,"","(10)"]
["(10)",null,null,0,null,0,{"$error":"#DIV/0!"},null,null,null,null,null,null,null,null,null,null,null,null,null,null,null,null,null,null,null,null,null,null,10,10,"-",null,null,null,0,1,1,0,0,1,1,1,1,0,0,0,0,0,1,0,0,0,0,null,0,2,null,null,null,null,null,null,null,null,null,null,null,null,null,null,null,null,null,null,null,null,null,null,null,null,null,null,null,null,null,null,null,null,null,null,null,null,null,null,null,null,null,null,null,null,null,null,null,null,null,null,null,null,null,null,null,null,null,null,null,null,null,null,null,null,null,null,null,null,null,null,null,null,null,null,null,null,null,null,null,null,14,null,{"$f":"IF(BD18>=1,AE18,\"\")","v":""},"(10)"]
["(11)",null,null,0,null,0,{"$error":"#DIV/0!"},null,null,null,null,null,null,null,null,null,null,null,null,null,null,null,null,null,null,null,null,null,null,11,11,"-",null,null,null,0,1,1,0,0,1,1,1,1,0,0,0,0,0,1,0,0,0,0,null,0,2,null,null,null,null,null,null,null,null,null,null,null,null,null,null,null,null,null,null,null,null,null,null,null,null,null,null,null,null,null,null,null,null,null,null,null,null,null,null,null,null,null,null,null,null,null,null,null,null,null,null,null,null,null,null,null,null,null,null,null,null,null,null,null,null,null,null,null,null,null,null,null,null,null,null,null,null,null,null,null,null,15,null,"","(11)"]
["(12)",null,null,0,null,0,{"$error":"#DIV/0!"},null,null,null,null,null,null,null,null,null,null,null,null,null,null,null,null,null,null,null,null,null,null,12,12,"-",null,null,null,0,1,1,0,0,1,1,1,1,0,0,0,0,0,1,0,0,0,0,null,0,2,null,null,null,null,null,null,null,null,null,null,null,null,null,null,null,null,null,null,null,null,null,null,null,null,null,null,null,null,null,null,null,null,null,null,null,null,null,null,null,null,null,null,null,null,null,null,null,null,null,null,null,null,null,null,null,null,null,null,null,null,null,null,null,null,null,null,null,null,null,null,null,null,null,null,null,null,null,null,null,null,16,null,{"$f":"IF(BD20>=1,AE20,\"\")","v":""},"(12)"]
["(13)",null,null,0,null,0,{"$error":"#DIV/0!"},null,null,null,null,null,null,null,null,null,null,null,null,null,null,null,null,null,null,null,null,null,null,13,13,"-",null,null,null,0,1,1,0,0,1,1,1,1,0,0,0,0,0,1,0,0,0,0,null,0,2,null,null,null,null,null,null,null,null,null,null,null,null,null,null,null,null,null,null,null,null,null,null,null,null,null,null,null,null,null,null,null,null,null,null,null,null,null,null,null,null,null,null,null,null,null,null,null,null,null,null,null,null,null,null,null,null,null,null,null,null,null,null,null,null,null,null,null,null,null,null,null,null,null,null,null,null,null,null,null,null,17,null,"","(13)"]
[{"$f":"EJ22&EK22","v":"(14)"},null,null,0,null,0,{"$error":"#DIV/0!"},null,null,null,null,null,null,null,null,null,null,null,null,null,null,null,null,null,null,null,null,null,null,14,14,"-",null,null,null,0,1,1,0,0,1,1,1,1,0,0,0,0,0,1,0,0,0,0,null,0,2,null,null,null,null,null,null,null,null,null,null,null,null,null,null,null,null,null,null,null,null,null,null,null,null,null,null,null,null,null,null,null,null,null,null,null,null,null,null,null,null,null,null,null,null,null,null,null,null,null,null,null,null,null,null,null,null,null,null,null,null,null,null,null,null,null,null,null,null,null,null,null,null,null,null,null,null,null,null,null,null,18,null,"","(14)"]
[{"$f":"EJ23&EK23","v":"(15)"},null,null,0,null,0,{"$error":"#DIV/0!"},null,null,null,null,null,null,null,null,null,null,null,null,null,null,null,null,null,null,null,null,null,null,15,{"$f":"IF(AND(D23=D22,D23=D21,D23=D20,D23=D19),ROW(15:15),IF(AND(D23=D22,D23=D21,D23=D20),ROW(16:16),IF(AND(D23=D22,D23=D21),ROW(17:17),IF(D23=D22,ROW(18:18),IF(D23>1,ROW(19:19),\"-\")))))","v":15},{"$f":"IF(F23>1,ROW(19:19),\"-\")","v":"-"},null,null,null,{"$f":"COUNT($I$3,I23,H23)","v":0},{"$f":"COUNT($J$3,J23,I23)","v":1},{"$f":"COUNT($K$3,K23,J23)","v":1},{"$f":"COUNT($L$3,L23,K23)","v":0},{"$f":"COUNT($M$3,M23,L23)","v":0},{"$f":"COUNT($N$3,N23,M23)","v":1},{"$f":"COUNT($O$3,O23,N23)","v":1},{"$f":"COUNT($P$3,P23,O23)","v":1},{"$f":"COUNT($Q$3,Q23,P23)","v":1},{"$f":"COUNT($R$3,R23,Q23)","v":0},{"$f":"COUNT($S$3,S23,R23)","v":0},{"$f":"COUNT($T$3,T23,S23)","v":0},{"$f":"COUNT($U$3,U23,T23)","v":0},{"$f":"COUNT($V$3,V23,U23)","v":0},{"$f":"COUNT($W$3,W23,V23)","v":1},{"$f":"COUNT($X$3,X23,W23)","v":0},{"$f":"COUNT($Y$3,Y23,X23)","v":0},{"$f":"COUNT($Z$3,Z23,Y23)","v":0},{"$f":"COUNT($AA$3,AA23,Z23)","v":0},null,{"$f":"COUNTIF(AI23:BC23,\">1\")","v":0},{"$f":"IF(H23=\"x\",1,2)","v":2},null,null,null,null,null,null,null,null,null,null,null,null,null,null,null,null,null,null,null,null,null,null,null,null,null,null,null,null,null,null,null,null,null,null,null,null,null,null,null,null,null,null,null,null,null,null,null,null,null,null,null,null,null,null,null,null,null,null,null,null,null,null,null,null,null,null,null,null,null,null,null,null,null,null,null,null,null,null,null,null,19,null,"",{"$f":"IF(BE23>1,\"(\"&AD23&\")\",\"(\"&AF23&\")\")","v":"(15)"}]
["(16)",null,null,0,null,0,{"$error":"#DIV/0!"},null,null,null,null,null,null,null,null,null,null,null,null,null,null,null,null,null,null,null,null,null,null,16,16,"-",null,null,null,0,1,1,0,0,1,1,1,1,0,0,0,0,0,1,0,0,0,0,null,0,2,null,null,null,null,null,null,null,null,null,null,null,null,null,null,null,null,null,null,null,null,null,null,null,null,null,null,null,null,null,null,null,null,null,null,null,null,null,null,null,null,null,null,null,null,null,null,null,null,null,null,null,null,null,null,null,null,null,null,null,null,null,null,null,null,null,null,null,null,null,null,null,null,null,null,null,null,null,null,null,null,20,null,"","(16)"]
[{"$f":"EJ25&EK25","v":"(17)"},null,null,0,null,0,{"$error":"#DIV/0!"},null,null,null,null,null,null,null,null,null,null,null,null,null,null,null,null,null,null,null,null,null,null,17,{"$f":"IF(AND(D25=D24,D25=D23,D25=D22,D25=D21),ROW(17:17),IF(AND(D25=D24,D25=D23,D25=D22),ROW(18:18),IF(AND(D25=D24,D25=D23),ROW(19:19),IF(D25=D24,ROW(20:20),IF(D25>1,ROW(21:21),\"-\")))))","v":17},{"$f":"IF(F25>1,ROW(21:21),\"-\")","v":"-"},null,null,null,{"$f":"COUNT($I$3,I25,H25)","v":0},{"$f":"COUNT($J$3,J25,I25)","v":1},{"$f":"COUNT($K$3,K25,J25)","v":1},{"$f":"COUNT($L$3,L25,K25)","v":0},{"$f":"COUNT($M$3,M25,L25)","v":0},{"$f":"COUNT($N$3,N25,M25)","v":1},{"$f":"COUNT($O$3,O25,N25)","v":1},{"$f":"COUNT($P$3,P25,O25)","v":1},{"$f":"COUNT($Q$3,Q25,P25)","v":1},{"$f":"COUNT($R$3,R25,Q25)","v":0},{"$f":"COUNT($S$3,S25,R25)","v":0},{"$f":"COUNT($T$3,T25,S25)","v":0},{"$f":"COUNT($U$3,U25,T25)","v":0},{"$f":"COUNT($V$3,V25,U25)","v":0},{"$f":"COUNT($W$3,W25,V25)","v":1},{"$f":"COUNT($X$3,X25,W25)","v":0},{"$f":"COUNT($Y$3,Y25,X25)","v":0},{"$f":"COUNT($Z$3,Z25,Y25)","v":0},{"$f":"COUNT($AA$3,AA25,Z25)","v":0},null,{"$f":"COUNTIF(AI25:BC25,\">1\")","v":0},{"$f":"IF(H25=\"x\",1,2)","v":2},null,null,null,null,null,null,null,null,null,null,null,null,null,null,null,null,null,null,null,null,null,null,null,null,null,null,null,null,null,null,null,null,null,null,null,null,null,null,null,null,null,null,null,null,null,null,null,null,null,null,null,null,null,null,null,null,null,null,null,null,null,null,null,null,null,null,null,null,null,null,null,null,null,null,null,null,null,null,null,null,21,null,"",{"$f":"IF(BE25>1,\"(\"&AD25&\")\",\"(\"&AF25&\")\")","v":"(17)"}]
[]
[]
[null,null,null,null,null,null,null,null,null,null,null,null,null,null,null,null,null,null,null,null,null,null,null,null,null,null,null,null,null,null,null,null,null,null,null,null,null,null,null,null,null,null,null,null,null,null,null,null,null,null,null,null,null,null,null,null,null,null,null,null,null,null,null,null,null,null,null,null,null,null,null,null,null,null,null,null,null,null,null,null,null,null,null,null,null,null,null,null,null,null,null,null,null,null,null,null,null,null,null,null,null,null,null,null,null,null,null,null,null,null,null,null,null,null,null,null,null,null,null,null,null,null,null,null,null,null,null,null,null,null,null,null,null,null,null,null,null,1,null,{"$f":"IF(BD28>=1,AE28,\"\")","v":""},{"$f":"IF(BD28>1,\"(\"&AD28&\")\",\"(\"&AF28&\")\")","v":"()"}]
[null,null,null,null,null,null,null,null,null,null,null,null,null,null,null,null,null,null,null,null,null,null,null,null,null,null,null,null,null,null,null,null,null,null,null,null,null,null,null,null,null,null,null,null,null,null,null,null,null,null,null,null,null,null,null,null,null,null,null,null,null,null,null,null,null,null,null,null,null,null,null,null,null,null,null,null,null,null,null,null,null,null,null,null,null,null,null,null,null,null,null,null,null,null,null,null,null,null,null,null,null,null,null,null,null,null,null,null,null,null,null,null,null,null,null,null,null,null,null,null,null,null,null,null,null,null,null,null,null,null,null,null,null,null,null,null,null,3,null,"","()"]
[null,null,null,null,null,null,null,null,null,null,null,null,null,null,null,null,null,null,null,null,null,null,null,null,null,null,null,null,null,null,null,null,null,null,null,null,null,null,null,null,null,null,null,null,null,null,null,null,null,null,null,null,null,null,null,null,null,null,null,null,null,null,null,null,null,null,null,null,null,null,null,null,null,null,null,null,null,null,null,null,null,null,null,null,null,null,null,null,null,null,null,null,null,null,null,null,null,null,null,null,null,null,null,null,null,null,null,null,null,null,null,null,null,null,null,null,null,null,null,null,null,null,null,null,null,null,null,null,null,null,null,null,null,null,null,null,null,4,null,"","()"]
[null,null,null,null,null,null,null,null,null,null,null,null,null,null,null,null,null,null,null,null,null,null,null,null,null,null,null,null,null,null,null,null,null,null,null,null,null,null,null,null,null,null,null,null,null,null,null,null,null,null,null,null,null,null,null,null,null,null,null,null,null,null,null,null,null,null,null,null,null,null,null,null,null,null,null,null,null,null,null,null,null,null,null,null,null,null,null,null,null,null,null,null,null,null,null,null,null,null,null,null,null,null,null,null,null,null,null,null,null,null,null,null,null,null,null,null,null,null,null,null,null,null,null,null,null,null,null,null,null,null,null,null,null,null,null,null,null,5,null,"","()"]
[null,null,null,null,null,null,null,null,null,null,null,null,null,null,null,null,null,null,null,null,null,null,null,null,null,null,null,null,null,null,null,null,null,null,null,null,null,null,null,null,null,null,null,null,null,null,null,null,null,null,null,null,null,null,null,null,null,null,null,null,null,null,null,null,null,null,null,null,null,null,null,null,null,null,null,null,null,null,null,null,null,null,null,null,null,null,null,null,null,null,null,null,null,null,null,null,null,null,null,null,null,null,null,null,null,null,null,null,null,null,null,null,null,null,null,null,null,null,null,null,null,null,null,null,null,null,null,null,null,null,null,null,null,null,null,null,null,6,null,"","()"]
[null,null,null,null,null,null,null,null,null,null,null,null,null,null,null,null,null,null,null,null,null,null,null,null,null,null,null,null,null,null,null,null,null,null,null,null,null,null,null,null,null,null,null,null,null,null,null,null,null,null,null,null,null,null,null,null,null,null,null,null,null,null,null,null,null,null,null,null,null,null,null,null,null,null,null,null,null,null,null,null,null,null,null,null,null,null,null,null,null,null,null,null,null,null,null,null,null,null,null,null,null,null,null,null,null,null,null,null,null,null,null,null,null,null,null,null,null,null,null,null,null,null,null,null,null,null,null,null,null,null,null,null,null,null,null,null,null,7,null,"","()"]
[null,null,null,null,null,null,null,null,null,null,null,null,null,null,null,null,null,null,null,null,null,null,null,null,null,null,null,null,null,null,null,null,null,null,null,null,null,null,null,null,null,null,null,null,null,null,null,null,null,null,null,null,null,null,null,null,null,null,null,null,null,null,null,null,null,null,null,null,null,null,null,null,null,null,null,null,null,null,null,null,null,null,null,null,null,null,null,null,null,null,null,null,null,null,null,null,null,null,null,null,null,null,null,null,null,null,null,null,null,null,null,null,null,null,null,null,null,null,null,null,null,null,null,null,null,null,null,null,null,null,null,null,null,null,null,null,null,8,null,"","()"]
[null,null,null,null,null,null,null,null,null,null,null,null,null,null,null,null,null,null,null,null,null,null,null,null,null,null,null,null,null,null,null,null,null,null,null,null,null,null,null,null,null,null,null,null,null,null,null,null,null,null,null,null,null,null,null,null,null,null,null,null,null,null,null,null,null,null,null,null,null,null,null,null,null,null,null,null,null,null,null,null,null,null,null,null,null,null,null,null,null,null,null,null,null,null,null,null,null,null,null,null,null,null,null,null,null,null,null,null,null,null,null,null,null,null,null,null,null,null,null,null,null,null,null,null,null,null,null,null,null,null,null,null,null,null,null,null,null,9,null,"","()"]
[null,null,null,null,null,null,null,null,null,null,null,null,null,null,null,null,null,null,null,null,null,null,null,null,null,null,null,null,null,null,null,null,null,null,null,null,null,null,null,null,null,null,null,null,null,null,null,null,null,null,null,null,null,null,null,null,null,null,null,null,null,null,null,null,null,null,null,null,null,null,null,null,null,null,null,null,null,null,null,null,null,null,null,null,null,null,null,null,null,null,null,null,null,null,null,null,null,null,null,null,null,null,null,null,null,null,null,null,null,null,null,null,null,null,null,null,null,null,null,null,null,null,null,null,null,null,null,null,null,null,null,null,null,null,null,null,null,10,null,"","()"]
[null,null,null,null,null,null,null,null,null,null,null,null,null,null,null,null,null,null,null,null,null,null,null,null,null,null,null,null,null,null,null,null,null,null,null,null,null,null,null,null,null,null,null,null,null,null,null,null,null,null,null,null,null,null,null,null,null,null,null,null,null,null,null,null,null,null,null,null,null,null,null,null,null,null,null,null,null,null,null,null,null,null,null,null,null,null,null,null,null,null,null,null,null,null,null,null,null,null,null,null,null,null,null,null,null,null,null,null,null,null,null,null,null,null,null,null,null,null,null,null,null,null,null,null,null,null,null,null,null,null,null,null,null,null,null,null,null,11,null,"","()"]
[null,null,null,null,null,null,null,null,null,null,null,null,null,null,null,null,null,null,null,null,null,null,null,null,null,null,null,null,null,null,null,null,null,null,null,null,null,null,null,null,null,null,null,null,null,null,null,null,null,null,null,null,null,null,null,null,null,null,null,null,null,null,null,null,null,null,null,null,null,null,null,null,null,null,null,null,null,null,null,null,null,null,null,null,null,null,null,null,null,null,null,null,null,null,null,null,null,null,null,null,null,null,null,null,null,null,null,null,null,null,null,null,null,null,null,null,null,null,null,null,null,null,null,null,null,null,null,null,null,null,null,null,null,null,null,null,null,12,null,"","()"]
[null,null,null,null,null,null,null,null,null,null,null,null,null,null,null,null,null,null,null,null,null,null,null,null,null,null,null,null,null,null,null,null,null,null,null,null,null,null,null,null,null,null,null,null,null,null,null,null,null,null,null,null,null,null,null,null,null,null,null,null,null,null,null,null,null,null,null,null,null,null,null,null,null,null,null,null,null,null,null,null,null,null,null,null,null,null,null,null,null,null,null,null,null,null,null,null,null,null,null,null,null,null,null,null,null,null,null,null,null,null,null,null,null,null,null,null,null,null,null,null,null,null,null,null,null,null,null,null,null,null,null,null,null,null,null,null,null,13,null,"","()"]
[null,null,null,null,null,null,null,null,null,null,null,null,null,null,null,null,null,null,null,null,null,null,null,null,null,null,null,null,null,null,null,null,null,null,null,null,null,null,null,null,null,null,null,null,null,null,null,null,null,null,null,null,null,null,null,null,null,null,null,null,null,null,null,null,null,null,null,null,null,null,null,null,null,null,null,null,null,null,null,null,null,null,null,null,null,null,null,null,null,null,null,null,null,null,null,null,null,null,null,null,null,null,null,null,null,null,null,null,null,null,null,null,null,null,null,null,null,null,null,null,null,null,null,null,null,null,null,null,null,null,null,null,null,null,null,null,null,14,null,{"$f":"IF(BD40>=1,AE40,14)","v":14},"()"]
[null,null,null,null,null,null,null,null,null,null,null,null,null,null,null,null,null,null,null,null,null,null,null,null,null,null,null,null,null,null,null,null,null,null,null,null,null,null,null,null,null,null,null,null,null,null,null,null,null,null,null,null,null,null,null,null,null,null,null,null,null,null,null,null,null,null,null,null,null,null,null,null,null,null,null,null,null,null,null,null,null,null,null,null,null,null,null,null,null,null,null,null,null,null,null,null,null,null,null,null,null,null,null,null,null,null,null,null,null,null,null,null,null,null,null,null,null,null,null,null,null,null,null,null,null,null,null,null,null,null,null,null,null,null,null,null,null,15,null,{"$f":"IF(BD41>=1,AE41,\"\")","v":""},"()"]
[null,null,null,null,null,null,null,null,null,null,null,null,null,null,null,null,null,null,null,null,null,null,null,null,null,null,null,null,null,null,null,null,null,null,null,null,null,null,null,null,null,null,null,null,null,null,null,null,null,null,null,null,null,null,null,null,null,null,null,null,null,null,null,null,null,null,null,null,null,null,null,null,null,null,null,null,null,null,null,null,null,null,null,null,null,null,null,null,null,null,null,null,null,null,null,null,null,null,null,null,null,null,null,null,null,null,null,null,null,null,null,null,null,null,null,null,null,null,null,null,null,null,null,null,null,null,null,null,null,null,null,null,null,null,null,null,null,16,null,{"$f":"IF(BD42>=1,AE42,\"\")","v":""},"()"]
[null,null,null,null,null,null,null,null,null,null,null,null,null,null,null,null,null,null,null,null,null,null,null,null,null,null,null,null,null,null,null,null,null,null,null,null,null,null,null,null,null,null,null,null,null,null,null,null,null,null,null,null,null,null,null,null,null,null,null,null,null,null,null,null,null,null,null,null,null,null,null,null,null,null,null,null,null,null,null,null,null,null,null,null,null,null,null,null,null,null,null,null,null,null,null,null,null,null,null,null,null,null,null,null,null,null,null,null,null,null,null,null,null,null,null,null,null,null,null,null,null,null,null,null,null,null,null,null,null,null,null,null,null,null,null,null,null,2,null,{"$f":"IF(BD43>=1,AE43,\"\")","v":""},"()"]
[null,null,null,null,null,null,null,null,null,null,null,null,null,null,null,null,null,null,null,null,null,null,null,null,null,null,null,null,null,null,null,null,null,null,null,null,null,null,null,null,null,null,null,null,null,null,null,null,null,null,null,null,null,null,null,null,null,null,null,null,null,null,null,null,null,null,null,null,null,null,null,null,null,null,null,null,null,null,null,null,null,null,null,null,null,null,null,null,null,null,null,null,null,null,null,null,null,null,null,null,null,null,null,null,null,null,null,null,null,null,null,null,null,null,null,null,null,null,null,null,null,null,null,null,null,null,null,null,null,null,null,null,null,null,null,null,null,17,null,{"$f":"IF(BD44>=1,AE44,\"\")","v":""},{"$f":"IF(BD44>2,\"(\"&AD44&\")\",\"(\"&AF44&\")\")","v":"()"}]
[null,null,null,null,null,null,null,null,null,null,null,null,null,null,null,null,null,null,null,null,null,null,null,null,null,null,null,null,null,null,null,null,null,null,null,null,null,null,null,null,null,null,null,null,null,null,null,null,null,null,null,null,null,null,null,null,null,null,null,null,null,null,null,null,null,null,null,null,null,null,null,null,null,null,null,null,null,null,null,null,null,null,null,null,null,null,null,null,null,null,null,null,null,null,null,null,null,null,null,null,null,null,null,null,null,null,null,null,null,null,null,null,null,null,null,null,null,null,null,null,null,null,null,null,null,null,null,null,null,null,null,null,null,null,null,null,null,18,null,18,{"$f":"IF(BD45>1,\"(\"&AD45&\")\",\"(\"&AF45&\")\")","v":"()"}]
[null,null,null,null,null,null,null,null,null,null,null,null,null,null,null,null,null,null,null,null,null,null,null,null,null,null,null,null,null,null,null,null,null,null,null,null,null,null,null,null,null,null,null,null,null,null,null,null,null,null,null,null,null,null,null,null,null,null,null,null,null,null,null,null,null,null,null,null,null,null,null,null,null,null,null,null,null,null,null,null,null,null,null,null,null,null,null,null,null,null,null,null,null,null,null,null,null,null,null,null,null,null,null,null,null,null,null,null,null,null,null,null,null,null,null,null,null,null,null,null,null,null,null,null,null,null,null,null,null,null,null,null,null,null,null,null,null,19,null,19,{"$f":"IF(BD46>1,\"(\"&AD46&\")\",\"(\"&AF46&\")\")","v":"()"}]
[null,null,null,null,null,null,null,null,null,null,null,null,null,null,null,null,null,null,null,null,null,null,null,null,null,null,null,null,null,null,null,null,null,null,null,null,null,null,null,null,null,null,null,null,null,null,null,null,null,null,null,null,null,null,null,null,null,null,null,null,null,null,null,null,null,null,null,null,null,null,null,null,null,null,null,null,null,null,null,null,null,null,null,null,null,null,null,null,null,null,null,null,null,null,null,null,null,null,null,null,null,null,null,null,null,null,null,null,null,null,null,null,null,null,null,null,null,null,null,null,null,null,null,null,null,null,null,null,null,null,null,null,null,null,null,null,null,20,null,20,{"$f":"IF(BD47>1,\"(\"&AD47&\")\",\"(\"&AF47&\")\")","v":"()"}]

{"sheet":"Seriespelsranking","index":3,"n_rows":123,"n_cols":136,"rows_kept":123,"cut":false,"hidden":false,"merged":[]}
[null,"Svenska Hästskokastarförbundets Seriespelsranking"]
[null,"2019_2020"]
[null,"2020-03-23"]
["Plac.","Kastare ","Klubb","Ranking-snitt ",null,"Antal serie-resultat","Total-poäng serie-resultat",null,"Antal vunna dubblar","Antal förlorade dubblar","Antal vunna singlar","Antal förlorade singlar","Antal vunna matcher i %","Inskrivning resultat",null,null,null,null,null,null,null,null,null,null,null,null,null,null,null,null,null,null,null,null,null,null,null,null,null,null,null,null,null,null,null,null,null,null,null,null,null,null,null,null,null,null,null,null,null,null,null,null,null,null,null,null,null,null,"Uträkning   för","statistik vunna resp.","förlorade ","dubblar och singlar."]
[{"$f":"IF(H5=\"x\",DU5&EF5,DU5&EE5)","v":"1(1)"},"Tobias Gneupel","Sibbamåla",{"$f":"IF(F5>0.5,(G5/F5),0)","v":236.30434782608697},null,{"$f":"COUNT(N5:BO5)","v":23},{"$f":"SUM(N5:BO5)","v":5435},null,{"$f":"COUNTIF(BQ5:DR5,2)","v":0},{"$f":"COUNTIF(BQ5:DR5,-2)","v":0},{"$f":"COUNTIF(BQ5:DR5,1)","v":0},{"$f":"COUNTIF(BQ5:DR5,-1)","v":0},{"$f":"IF(F5>0,(I5+K5)/(F5),0)","v":0},280,234,203,235,243,215,240,189,236,234,223,192,302,234,246,208,256,233,272,230,264,204,262,null,null,null,null,null,null,null,null,null,null,null,null,null,null,null,null,null,null,null,null,null,null,null,null,null,null,null,null,null,null,null,null,null,null,null,null,null,null,null,null,null,null,null,null,null,null,null,null,null,null,null,null,null,null,null,null,null,null,null,null,null,null,null,null,null,null,null,null,null,null,null,null,null,null,null,null,null,null,null,null,null,null,null,null,null,null,null,1,{"$f":"IF(AND(D5=D4,D5=D3,D5=D2,D5=D1),ROW(1:1),IF(AND(D5=D4,D5=D3,D5=D2),ROW(1:1),IF(AND(D5=D4,D5=D3),ROW(1:1),IF(D5=D4,ROW(1:1),IF(D5>1,ROW(1:1),\"-\")))))","v":1},{"$f":"IF(DX5=1,ROW(1:1),\"-\")","v":1},null,1,null,null,null,11,null,{"$f":"IF(DX5=1,DU5,IF(DX5=\"\",DU5,\"\"))","v":1},{"$f":"IF(DX5=1,\"(\"&DT5&\")\",\"(\"&DV5&\")\")","v":"(1)"},"(-)"]
[{"$f":"IF(H6=\"x\",DU6&EF6,DU6&EE6)","v":"2(2)"},"Kent Sundahl","Carlskrona",221.82142857142858,null,28,6211,null,0,0,0,0,0,182,225,235,224,170,299,237,219,188,223,278,293,243,213,268,185,175,183,231,188,139,196,300,158,272,216,225,246,null,null,null,null,null,null,null,null,null,null,null,null,null,null,null,null,null,null,null,null,null,null,null,null,null,null,null,null,null,null,null,null,null,null,null,null,null,null,null,null,null,null,null,null,null,null,null,null,null,null,null,null,null,null,null,null,null,null,null,null,null,null,null,null,null,null,null,null,null,null,null,null,null,null,null,null,null,null,null,null,null,null,2,{"$f":"IF(AND(D6=D5,D6=D4,D6=D3,D6=D2),ROW(1:1),IF(AND(D6=D5,D6=D4,D6=D3),ROW(1:1),IF(AND(D6=D5,D6=D4),ROW(1:1),IF(D6=D5,ROW(1:1),IF(D6>1,ROW(2:2),\"-\")))))","v":2},2,null,1,null,null,null,16,null,2,"(2)","(-)"]
["3(3)","Joel Sundahl","Carlskrona",181.75,null,24,4362,null,0,0,0,0,0,95,131,124,99,211,217,174,245,193,180,191,182,197,203,190,236,193,109,151,168,249,202,212,210,null,null,null,null,null,null,null,null,null,null,null,null,null,null,null,null,null,null,null,null,null,null,null,null,null,null,null,null,null,null,null,null,null,null,null,null,null,null,null,null,null,null,null,null,null,null,null,null,null,null,null,null,null,null,null,null,null,null,null,null,null,null,null,null,null,null,null,null,null,null,null,null,null,null,null,null,null,null,null,null,null,null,null,null,null,null,3,{"$f":"IF(AND(D7=D6,D7=D5,D7=D4,D7=D3),ROW(1:1),IF(AND(D7=D6,D7=D5,D7=D4),ROW(1:1),IF(AND(D7=D6,D7=D5),ROW(1:1),IF(D7=D6,ROW(2:2),IF(D7>1,ROW(3:3),\"-\")))))","v":3},3,null,1,null,null,null,20,null,3,"(3)","(-)"]
["4(4)","Sandor Bodi","Växjö Hsk",180.9655172413793,null,29,5248,null,0,0,0,0,0,185,112,179,204,166,190,157,208,221,155,214,193,230,126,193,157,189,141,178,129,215,112,100,201,279,198,224,170,222,null,null,null,null,null,null,null,null,null,null,null,null,null,null,null,null,null,null,null,null,null,null,null,null,null,null,null,null,null,null,null,null,null,null,null,null,null,null,null,null,null,null,null,null,null,null,null,null,null,null,null,null,null,null,null,null,null,null,null,null,null,null,null,null,null,null,null,null,null,null,null,null,null,null,null,null,null,null,null,null,null,4,{"$f":"IF(AND(D8=D7,D8=D6,D8=D5),ROW(1:1),IF(AND(D8=D7,D8=D6),ROW(2:2),IF(D8=D7,ROW(3:3),IF(D8>1,ROW(4:4),\"-\"))))","v":4},4,null,1,null,null,null,4,null,4,"(4)","(-)"]
["5(5)","Ingvar Eriksson","Carlskrona",180.2258064516129,null,31,5587,null,0,0,0,0,0,172,123,115,226,171,151,189,180,221,203,142,213,168,204,171,230,158,182,240,121,122,131,152,227,272,171,144,198,154,247,189,null,null,null,null,null,null,null,null,null,null,null,null,null,null,null,null,null,null,null,null,null,null,null,null,null,null,null,null,null,null,null,null,null,null,null,null,null,null,null,null,null,null,null,null,null,null,null,null,null,null,null,null,null,null,null,null,null,null,null,null,null,null,null,null,null,null,null,null,null,null,null,null,null,null,null,null,null,null,null,5,{"$f":"IF(D9>1,ROW(5:5),\"-\")","v":5},5,null,1,null,null,null,1,null,5,"(5)","(-)"]
["6(6)","Johan Johansson","Tingsryd",178.79411764705881,null,34,6079,null,0,0,0,0,0,226,172,134,175,153,139,157,195,234,173,245,175,196,186,184,223,150,204,199,189,194,137,128,223,165,196,207,236,127,159,164,143,162,129,null,null,null,null,null,null,null,null,null,null,null,null,null,null,null,null,null,null,null,null,null,null,null,null,null,null,null,null,null,null,null,null,null,null,null,null,null,null,null,null,null,null,null,null,null,null,null,null,null,null,null,null,null,null,null,null,null,null,null,null,null,null,null,null,null,null,null,null,null,null,null,null,null,null,null,null,6,{"$f":"IF(D10=D9,ROW(5:5),IF(D10>1,ROW(6:6),\"-\"))","v":6},6,null,1,null,null,null,2,null,6,"(6)","(-)"]
["7(7)","Gebriela Kostantinos","Korpen Åseda",177.61290322580646,null,31,5506,null,0,0,0,0,0,189,166,111,205,235,173,209,202,218,170,146,165,229,148,184,216,170,166,177,224,175,151,143,165,147,187,183,200,null,null,142,135,175,null,null,null,null,null,null,null,null,null,null,null,null,null,null,null,null,null,null,null,null,null,null,null,null,null,null,null,null,null,null,null,null,null,null,null,null,null,null,null,null,null,null,null,null,null,null,null,null,null,null,null,null,null,null,null,null,null,null,null,null,null,null,null,null,null,null,null,null,null,null,null,null,null,null,null,null,null,7,{"$f":"IF(AND(D11=D10,D11=D9,D11=D8,D11=D7),ROW(3:3),IF(AND(D11=D10,D11=D9,D11=D8),ROW(4:4),IF(AND(D11=D10,D11=D9),ROW(5:5),IF(D11=D10,ROW(6:6),IF(D11>1,ROW(7:7),\"-\")))))","v":7},7,null,1,null,null,null,5,null,7,"(7)","(-)"]
["8(8)","Sandra Widlund","Växjö Hsk",177.2608695652174,null,23,4077,null,0,0,0,0,0,238,192,186,193,206,170,113,92,137,207,171,169,153,172,120,241,171,176,131,185,173,240,241,null,null,null,null,null,null,null,null,null,null,null,null,null,null,null,null,null,null,null,null,null,null,null,null,null,null,null,null,null,null,null,null,null,null,null,null,null,null,null,null,null,null,null,null,null,null,null,null,null,null,null,null,null,null,null,null,null,null,null,null,null,null,null,null,null,null,null,null,null,null,null,null,null,null,null,null,null,null,null,null,null,null,null,null,null,null,null,8,8,8,null,1,null,null,null,6,null,8,"(8)","(-)"]
["9(9)","Leo Andersson","Carlskrona",175.6875,null,16,2811,null,0,0,0,0,0,201,168,139,204,217,189,152,175,137,220,135,160,173,202,151,188,null,null,null,null,null,null,null,null,null,null,null,null,null,null,null,null,null,null,null,null,null,null,null,null,null,null,null,null,null,null,null,null,null,null,null,null,null,null,null,null,null,null,null,null,null,null,null,null,null,null,null,null,null,null,null,null,null,null,null,null,null,null,null,null,null,null,null,null,null,null,null,null,null,null,null,null,null,null,null,null,null,null,null,null,null,null,null,null,null,null,null,null,null,null,9,9,9,null,1,null,null,null,8,null,9,"(9)","(-)"]
["10(10)","Matz Karlsson","Korpen Åseda",169.67741935483872,null,31,5260,null,0,0,0,0,0,191,198,289,234,213,250,170,206,96,171,130,144,104,105,91,118,135,142,161,121,152,211,149,246,193,180,226,255,null,null,null,144,103,132,null,null,null,null,null,null,null,null,null,null,null,null,null,null,null,null,null,null,null,null,null,null,null,null,null,null,null,null,null,null,null,null,null,null,null,null,null,null,null,null,null,null,null,null,null,null,null,null,null,null,null,null,null,null,null,null,null,null,null,null,null,null,null,null,null,null,null,null,null,null,null,null,null,null,null,null,10,10,10,null,1,null,null,null,12,null,10,"(10)","(-)"]
["11(11)","Armin Sisic","Värends Hsk",167.77777777777777,null,18,3020,null,0,0,0,0,0,202,225,202,142,175,183,169,193,203,159,132,151,147,149,116,125,195,152,null,null,null,null,null,null,null,null,null,null,null,null,null,null,null,null,null,null,null,null,null,null,null,null,null,null,null,null,null,null,null,null,null,null,null,null,null,null,null,null,null,null,null,null,null,null,null,null,null,null,null,null,null,null,null,null,null,null,null,null,null,null,null,null,null,null,null,null,null,null,null,null,null,null,null,null,null,null,null,null,null,null,null,null,null,null,null,null,null,null,null,null,11,11,11,null,1,null,null,null,15,null,11,"(11)","(-)"]
["12(12)","Lisbeth Nygaard-Karlsson","Tingsryd",166.93333333333334,null,30,5008,null,0,0,0,0,0,176,147,214,136,181,149,172,216,177,153,167,186,120,133,156,107,162,154,100,201,183,134,205,214,198,106,122,192,214,233,null,null,null,null,null,null,null,null,null,null,null,null,null,null,null,null,null,null,null,null,null,null,null,null,null,null,null,null,null,null,null,null,null,null,null,null,null,null,null,null,null,null,null,null,null,null,null,null,null,null,null,null,null,null,null,null,null,null,null,null,null,null,null,null,null,null,null,null,null,null,null,null,null,null,null,null,null,null,null,null,12,12,12,null,1,null,null,null,21,null,12,"(12)","(-)"]
["13(13)","Olle Ottosson","Dynapac",162.12903225806451,null,31,5026,null,0,0,0,0,0,190,178,104,165,139,142,152,203,164,115,292,225,131,212,154,152,128,115,139,143,163,162,173,221,116,161,154,141,200,153,139,null,null,null,null,null,null,null,null,null,null,null,null,null,null,null,null,null,null,null,null,null,null,null,null,null,null,null,null,null,null,null,null,null,null,null,null,null,null,null,null,null,null,null,null,null,null,null,null,null,null,null,null,null,null,null,null,null,null,null,null,null,null,null,null,null,null,null,null,null,null,null,null,null,null,null,null,null,null,null,13,13,13,null,1,null,null,null,3,null,13,"(13)","(-)"]
["14(14)","Gert Karlsson","Korpen Åseda",158.80000000000001,null,25,3970,null,0,0,0,0,0,162,217,154,150,146,137,179,219,182,104,119,138,213,172,156,147,141,109,188,134,185,143,null,null,186,165,124,null,null,null,null,null,null,null,null,null,null,null,null,null,null,null,null,null,null,null,null,null,null,null,null,null,null,null,null,null,null,null,null,null,null,null,null,null,null,null,null,null,null,null,null,null,null,null,null,null,null,null,null,null,null,null,null,null,null,null,null,null,null,null,null,null,null,null,null,null,null,null,null,null,null,null,null,null,null,null,null,null,null,null,14,14,14,null,1,null,null,null,7,null,14,"(14)","(-)"]
["15(15)","Mattias Gneupel","Sibbamåla",158.375,null,32,5068,null,0,0,0,0,0,187,156,134,178,204,166,124,84,174,145,154,120,178,159,172,173,132,168,185,202,152,156,127,122,216,133,140,188,143,176,175,145,null,null,null,null,null,null,null,null,null,null,null,null,null,null,null,null,null,null,null,null,null,null,null,null,null,null,null,null,null,null,null,null,null,null,null,null,null,null,null,null,null,null,null,null,null,null,null,null,null,null,null,null,null,null,null,null,null,null,null,null,null,null,null,null,null,null,null,null,null,null,null,null,null,null,null,null,null,null,15,15,15,null,1,null,null,null,17,null,15,"(15)","(-)"]
["16(16)","Lennart Karlsson","Tingsryd",152.53125,null,32,4881,null,0,0,0,0,0,186,179,189,219,98,210,142,151,137,138,146,159,236,110,145,135,135,149,188,174,184,166,131,130,146,102,102,104,172,120,130,168,null,null,null,null,null,null,null,null,null,null,null,null,null,null,null,null,null,null,null,null,null,null,null,null,null,null,null,null,null,null,null,null,null,null,null,null,null,null,null,null,null,null,null,null,null,null,null,null,null,null,null,null,null,null,null,null,null,null,null,null,null,null,null,null,null,null,null,null,null,null,null,null,null,null,null,null,null,null,16,16,16,null,1,null,null,null,18,null,16,"(16)","(-)"]
["17(17)","Jom Jem","Växjö Hsk",149.9,null,20,2998,null,0,0,0,0,0,189,191,159,149,106,145,242,210,127,185,135,177,118,83,148,92,175,159,116,92,null,null,null,null,null,null,null,null,null,null,null,null,null,null,null,null,null,null,null,null,null,null,null,null,null,null,null,null,null,null,null,null,null,null,null,null,null,null,null,null,null,null,null,null,null,null,null,null,null,null,null,null,null,null,null,null,null,null,null,null,null,null,null,null,null,null,null,null,null,null,null,null,null,null,null,null,null,null,null,null,null,null,null,null,null,null,null,null,null,null,17,17,17,null,1,null,null,null,24,null,17,"(17)","(-)"]
["18(18)","Mathias Karlberg","Jämjö Hsk",145.375,null,24,3489,null,0,0,0,0,0,145,123,150,162,155,111,132,192,124,213,130,77,116,164,153,82,171,206,236,131,115,141,181,79,null,null,null,null,null,null,null,null,null,null,null,null,null,null,null,null,null,null,null,null,null,null,null,null,null,null,null,null,null,null,null,null,null,null,null,null,null,null,null,null,null,null,null,null,null,null,null,null,null,null,null,null,null,null,null,null,null,null,null,null,null,null,null,null,null,null,null,null,null,null,null,null,null,null,null,null,null,null,null,null,null,null,null,null,null,null,18,18,18,null,1,null,null,null,9,null,18,"(18)","(-)"]
["19(19)","Anita Fabbeke","Dynapac",143.14285714285714,null,21,3006,null,0,0,0,0,0,181,119,155,160,117,123,124,102,151,179,97,163,136,146,146,159,153,189,128,144,134,null,null,null,null,null,null,null,null,null,null,null,null,null,null,null,null,null,null,null,null,null,null,null,null,null,null,null,null,null,null,null,null,null,null,null,null,null,null,null,null,null,null,null,null,null,null,null,null,null,null,null,null,null,null,null,null,null,null,null,null,null,null,null,null,null,null,null,null,null,null,null,null,null,null,null,null,null,null,null,null,null,null,null,null,null,null,null,null,null,19,19,19,null,1,null,null,null,10,null,19,"(19)","(-)"]
["20(20)","Yamolada Damnoegam","Växjö Hsk",141.75,null,20,2835,null,0,0,0,0,0,164,85,125,131,162,86,156,146,124,124,106,160,144,179,189,129,125,148,179,173,null,null,null,null,null,null,null,null,null,null,null,null,null,null,null,null,null,null,null,null,null,null,null,null,null,null,null,null,null,null,null,null,null,null,null,null,null,null,null,null,null,null,null,null,null,null,null,null,null,null,null,null,null,null,null,null,null,null,null,null,null,null,null,null,null,null,null,null,null,null,null,null,null,null,null,null,null,null,null,null,null,null,null,null,null,null,null,null,null,null,20,20,20,null,1,null,null,null,22,null,20,"(20)","(-)"]
["21(21)","Magnus Israelsson","Sibbamåla ",141.46153846153845,null,26,3678,null,0,0,0,0,0,139,111,115,90,54,138,202,162,137,128,115,118,239,187,158,176,85,90,139,76,150,141,145,165,219,199,null,null,null,null,null,null,null,null,null,null,null,null,null,null,null,null,null,null,null,null,null,null,null,null,null,null,null,null,null,null,null,null,null,null,null,null,null,null,null,null,null,null,null,null,null,null,null,null,null,null,null,null,null,null,null,null,null,null,null,null,null,null,null,null,null,null,null,null,null,null,null,null,null,null,null,null,null,null,null,null,null,null,null,null,21,21,21,null,1,null,null,null,14,null,21,"(21)","(-)"]
["22(22)","Björn Landberg","Vaxholm Hsk",139.34285714285716,null,35,4877,null,0,0,0,0,0,154,151,178,125,155,112,113,133,182,120,145,129,158,146,105,189,186,106,172,130,154,112,186,148,152,101,111,77,97,145,135,154,147,134,135,null,null,null,null,null,null,null,null,null,null,null,null,null,null,null,null,null,null,null,null,null,null,null,null,null,null,null,null,null,null,null,null,null,null,null,null,null,null,null,null,null,null,null,null,null,null,null,null,null,null,null,null,null,null,null,null,null,null,null,null,null,null,null,null,null,null,null,null,null,null,null,null,null,null,null,22,22,22,null,1,null,null,null,13,null,22,"(22)","(-)"]
["23(23)","Dan Madayang","Korpen Åseda",136.80000000000001,null,5,684,null,0,0,0,0,0,161,96,145,107,175,null,null,null,null,null,null,null,null,null,null,null,null,null,null,null,null,null,null,null,null,null,null,null,null,null,null,null,null,null,null,null,null,null,null,null,null,null,null,null,null,null,null,null,null,null,null,null,null,null,null,null,null,null,null,null,null,null,null,null,null,null,null,null,null,null,null,null,null,null,null,null,null,null,null,null,null,null,null,null,null,null,null,null,null,null,null,null,null,null,null,null,null,null,null,null,null,null,null,null,null,null,null,null,null,null,23,23,23,null,1,null,null,null,19,null,23,"(23)","(-)"]
["24(24)","Peter Olsson","Dynapac ",135.39285714285714,null,28,3791,null,0,0,0,0,0,193,186,205,186,216,214,133,162,151,126,139,164,110,106,114,47,97,111,57,126,96,129,53,108,124,180,155,103,null,null,null,null,null,null,null,null,null,null,null,null,null,null,null,null,null,null,null,null,null,null,null,null,null,null,null,null,null,null,null,null,null,null,null,null,null,null,null,null,null,null,null,null,null,null,null,null,null,null,null,null,null,null,null,null,null,null,null,null,null,null,null,null,null,null,null,null,null,null,null,null,null,null,null,null,null,null,null,null,null,null,24,{"$f":"IF(AND(D28=D27,D28=D26,D28=D25,D28=D24),ROW(20:20),IF(AND(D28=D27,D28=D26,D28=D25),ROW(21:21),IF(AND(D28=D27,D28=D26),ROW(22:22),IF(D28=D27,ROW(23:23),IF(D28>1,ROW(24:24),\"-\")))))","v":24},{"$f":"IF(DX28=1,ROW(24:24),\"-\")","v":24},null,1,null,null,null,28,null,{"$f":"IF(DX28=1,DU28,IF(DX28=\"\",DU28,\"\"))","v":24},{"$f":"IF(DX28=1,\"(\"&DT28&\")\",\"(\"&DV28&\")\")","v":"(24)"},"(-)"]
["25(25)","Janne Johansson","Tingsryd",134.61538461538461,null,26,3500,null,0,0,0,0,0,180,93,189,83,152,97,127,112,171,67,130,125,128,134,128,175,198,118,172,159,139,111,112,156,121,123,null,null,null,null,null,null,null,null,null,null,null,null,null,null,null,null,null,null,null,null,null,null,null,null,null,null,null,null,null,null,null,null,null,null,null,null,null,null,null,null,null,null,null,null,null,null,null,null,null,null,null,null,null,null,null,null,null,null,null,null,null,null,null,null,null,null,null,null,null,null,null,null,null,null,null,null,null,null,null,null,null,null,null,null,25,{"$f":"IF(AND(D29=D28,D29=D27,D29=D26,D29=D25),ROW(21:21),IF(AND(D29=D28,D29=D27,D29=D26),ROW(22:22),IF(AND(D29=D28,D29=D27),ROW(23:23),IF(D29=D28,ROW(24:24),IF(D29>1,ROW(25:25),\"-\")))))","v":25},{"$f":"IF(DX29=1,ROW(25:25),\"-\")","v":25},null,1,null,null,null,23,null,{"$f":"IF(DX29=1,DU29,IF(DX29=\"\",DU29,\"\"))","v":25},{"$f":"IF(DX29=1,\"(\"&DT29&\")\",\"(\"&DV29&\")\")","v":"(25)"},"(-)"]
["26(26)","Göran Olofsson","Korpen Nybro",133.89655172413794,null,29,3883,null,0,0,0,0,0,114,129,162,149,159,155,131,98,130,139,103,86,160,141,172,217,105,141,109,152,132,160,124,130,99,148,96,72,170,null,null,null,null,null,null,null,null,null,null,null,null,null,null,null,null,null,null,null,null,null,null,null,null,null,null,null,null,null,null,null,null,null,null,null,null,null,null,null,null,null,null,null,null,null,null,null,null,null,null,null,null,null,null,null,null,null,null,null,null,null,null,null,null,null,null,null,null,null,null,null,null,null,null,null,null,null,null,null,null,null,26,{"$f":"IF(AND(D30=D29,D30=D28,D30=D27,D30=D26),ROW(22:22),IF(AND(D30=D29,D30=D28,D30=D27),ROW(23:23),IF(AND(D30=D29,D30=D28),ROW(24:24),IF(D30=D29,ROW(25:25),IF(D30>1,ROW(26:26),\"-\")))))","v":26},{"$f":"IF(DX30=1,ROW(26:26),\"-\")","v":26},null,1,null,null,null,25,null,{"$f":"IF(DX30=1,DU30,IF(DX30=\"\",DU30,\"\"))","v":26},{"$f":"IF(DX30=1,\"(\"&DT30&\")\",\"(\"&DV30&\")\")","v":"(26)"},"(-)"]
["27(27)","Sune Olsson","Korpen Nybro",132.875,null,16,2126,null,0,0,0,0,0,143,99,86,107,167,126,169,149,130,120,173,129,146,122,113,147,null,null,null,null,null,null,null,null,null,null,null,null,null,null,null,null,null,null,null,null,null,null,null,null,null,null,null,null,null,null,null,null,null,null,null,null,null,null,null,null,null,null,null,null,null,null,null,null,null,null,null,null,null,null,null,null,null,null,null,null,null,null,null,null,null,null,null,null,null,null,null,null,null,null,null,null,null,null,null,null,null,null,null,null,null,null,null,null,null,null,null,null,null,null,27,{"$f":"IF(AND(D31=D30,D31=D29,D31=D28,D31=D27),ROW(23:23),IF(AND(D31=D30,D31=D29,D31=D28),ROW(24:24),IF(AND(D31=D30,D31=D29),ROW(25:25),IF(D31=D30,ROW(26:26),IF(D31>1,ROW(27:27),\"-\")))))","v":27},{"$f":"IF(DX31=1,ROW(27:27),\"-\")","v":27},null,1,null,null,null,26,null,{"$f":"IF(DX31=1,DU31,IF(DX31=\"\",DU31,\"\"))","v":27},{"$f":"IF(DX31=1,\"(\"&DT31&\")\",\"(\"&DV31&\")\")","v":"(27)"},"(-)"]
["28(28)","Ewa Malmqvist","Jämjö Hsk",128.59375,null,32,4115,null,0,0,0,0,0,127,136,156,182,154,188,126,136,154,113,92,107,112,111,94,134,75,129,146,117,73,121,112,186,114,156,140,102,143,122,135,122,null,null,null,null,null,null,null,null,null,null,null,null,null,null,null,null,null,null,null,null,null,null,null,null,null,null,null,null,null,null,null,null,null,null,null,null,null,null,null,null,null,null,null,null,null,null,null,null,null,null,null,null,null,null,null,null,null,null,null,null,null,null,null,null,null,null,null,null,null,null,null,null,null,null,null,null,null,null,28,{"$f":"IF(AND(D32=D31,D32=D30,D32=D29,D32=D28),ROW(24:24),IF(AND(D32=D31,D32=D30,D32=D29),ROW(25:25),IF(AND(D32=D31,D32=D30),ROW(26:26),IF(D32=D31,ROW(27:27),IF(D32>1,ROW(28:28),\"-\")))))","v":28},{"$f":"IF(DX32=1,ROW(28:28),\"-\")","v":28},null,1,null,null,null,27,null,{"$f":"IF(DX32=1,DU32,IF(DX32=\"\",DU32,\"\"))","v":28},{"$f":"IF(DX32=1,\"(\"&DT32&\")\",\"(\"&DV32&\")\")","v":"(28)"},"(-)"]
["29(29)","Stefan Olofsson","Korpen Nybro",128.20833333333334,null,24,3077,null,0,0,0,0,0,143,177,136,89,124,137,122,106,75,91,60,188,133,120,139,127,147,116,139,122,138,170,142,136,null,null,null,null,null,null,null,null,null,null,null,null,null,null,null,null,null,null,null,null,null,null,null,null,null,null,null,null,null,null,null,null,null,null,null,null,null,null,null,null,null,null,null,null,null,null,null,null,null,null,null,null,null,null,null,null,null,null,null,null,null,null,null,null,null,null,null,null,null,null,null,null,null,null,null,null,null,null,null,null,null,null,null,null,null,null,29,29,29,null,1,null,null,null,29,null,29,"(29)","(-)"]
["30(31)","Leif Danielsson","Korpen Nybro",127.25,null,12,1527,null,0,0,0,0,0,122,160,137,126,54,97,171,172,168,162,77,81,null,null,null,null,null,null,null,null,null,null,null,null,null,null,null,null,null,null,null,null,null,null,null,null,null,null,null,null,null,null,null,null,null,null,null,null,null,null,null,null,null,null,null,null,null,null,null,null,null,null,null,null,null,null,null,null,null,null,null,null,null,null,null,null,null,null,null,null,null,null,null,null,null,null,null,null,null,null,null,null,null,null,null,null,null,null,null,null,null,null,null,null,null,null,null,null,null,null,31,30,30,null,1,null,null,null,30,null,30,"(31)","(-)"]
["31(30)","Inge Skoglöw","Jämjö Hsk",125.66666666666667,null,15,1885,null,0,0,0,0,0,77,133,123,99,76,150,148,186,156,126,169,90,104,143,105,null,null,null,null,null,null,null,null,null,null,null,null,null,null,null,null,null,null,null,null,null,null,null,null,null,null,null,null,null,null,null,null,null,null,null,null,null,null,null,null,null,null,null,null,null,null,null,null,null,null,null,null,null,null,null,null,null,null,null,null,null,null,null,null,null,null,null,null,null,null,null,null,null,null,null,null,null,null,null,null,null,null,null,null,null,null,null,null,null,null,null,null,null,null,null,30,31,31,null,1,null,null,null,31,null,31,"(30)","(-)"]
["32(32)","Hans Johansson","Tingsryd",125.61904761904762,null,21,2638,null,0,0,0,0,0,88,115,163,108,113,122,110,214,73,165,117,152,132,188,85,135,65,136,153,120,84,null,null,null,null,null,null,null,null,null,null,null,null,null,null,null,null,null,null,null,null,null,null,null,null,null,null,null,null,null,null,null,null,null,null,null,null,null,null,null,null,null,null,null,null,null,null,null,null,null,null,null,null,null,null,null,null,null,null,null,null,null,null,null,null,null,null,null,null,null,null,null,null,null,null,null,null,null,null,null,null,null,null,null,null,null,null,null,null,null,32,32,32,null,1,null,null,null,32,null,32,"(32)","(-)"]
["33(35)","Bengt Andersson","Växjö Hsk",{"$f":"IF(F37>0.5,(G37/F37),0)","v":124.96153846153847},null,{"$f":"COUNT(N37:BO37)","v":26},{"$f":"SUM(N37:BO37)","v":3249},null,{"$f":"COUNTIF(BQ37:DR37,2)","v":0},{"$f":"COUNTIF(BQ37:DR37,-2)","v":0},{"$f":"COUNTIF(BQ37:DR37,1)","v":0},{"$f":"COUNTIF(BQ37:DR37,-1)","v":0},{"$f":"IF(F37>0,(I37+K37)/(F37),0)","v":0},108,156,137,125,128,114,83,137,154,144,176,155,111,86,99,103,153,136,68,78,118,127,135,152,126,140,null,null,null,null,null,null,null,null,null,null,null,null,null,null,null,null,null,null,null,null,null,null,null,null,null,null,null,null,null,null,null,null,null,null,null,null,null,null,null,null,null,null,null,null,null,null,null,null,null,null,null,null,null,null,null,null,null,null,null,null,null,null,null,null,null,null,null,null,null,null,null,null,null,null,null,null,null,null,null,null,null,null,null,null,35,33,{"$f":"IF(DX37=1,ROW(33:33),\"-\")","v":33},null,1,null,null,null,33,null,{"$f":"IF(DX37=1,DU37,IF(DX37=\"\",DU37,\"\"))","v":33},{"$f":"IF(DX37=1,\"(\"&DT37&\")\",\"(\"&DV37&\")\")","v":"(35)"},"(-)"]
["34(36)","Martin Silvén","Vaxholm Hsk",124.6,null,5,623,null,0,0,0,0,0,131,136,112,132,112,null,null,null,null,null,null,null,null,null,null,null,null,null,null,null,null,null,null,null,null,null,null,null,null,null,null,null,null,null,null,null,null,null,null,null,null,null,null,null,null,null,null,null,null,null,null,null,null,null,null,null,null,null,null,null,null,null,null,null,null,null,null,null,null,null,null,null,null,null,null,null,null,null,null,null,null,null,null,null,null,null,null,null,null,null,null,null,null,null,null,null,null,null,null,null,null,null,null,null,null,null,null,null,null,null,36,34,34,null,1,null,null,null,34,null,34,"(36)","(-)"]
["35(34)","Björn Gabrielsson","Vaxholm Hsk",124.36363636363636,null,33,4104,null,0,0,0,0,0,68,122,118,133,128,99,115,161,175,105,102,80,134,62,123,160,165,95,174,81,148,122,148,99,180,136,112,104,144,157,95,124,135,null,null,null,null,null,null,null,null,null,null,null,null,null,null,null,null,null,null,null,null,null,null,null,null,null,null,null,null,null,null,null,null,null,null,null,null,null,null,null,null,null,null,null,null,null,null,null,null,null,null,null,null,null,null,null,null,null,null,null,null,null,null,null,null,null,null,null,null,null,null,null,null,null,null,null,null,null,34,35,35,null,1,null,null,null,35,null,35,"(34)","(-)"]
["36(37)","Marianne Karlsson","Jämjö Hsk",124.09375,null,32,3971,null,0,0,0,0,0,156,96,119,106,88,129,75,147,139,121,130,92,128,114,148,82,122,123,75,106,173,173,87,106,147,104,155,180,107,125,162,156,null,null,null,null,null,null,null,null,null,null,null,null,null,null,null,null,null,null,null,null,null,null,null,null,null,null,null,null,null,null,null,null,null,null,null,null,null,null,null,null,null,null,null,null,null,null,null,null,null,null,null,null,null,null,null,null,null,null,null,null,null,null,null,null,null,null,null,null,null,null,null,null,null,null,null,null,null,null,37,36,36,null,1,null,null,null,36,null,36,"(37)","(-)"]
["37(38)","Fredrik Lundin","Lanternan",124,null,4,496,null,0,0,0,0,0,83,139,131,143,null,null,null,null,null,null,null,null,null,null,null,null,null,null,null,null,null,null,null,null,null,null,null,null,null,null,null,null,null,null,null,null,null,null,null,null,null,null,null,null,null,null,null,null,null,null,null,null,null,null,null,null,null,null,null,null,null,null,null,null,null,null,null,null,null,null,null,null,null,null,null,null,null,null,null,null,null,null,null,null,null,null,null,null,null,null,null,null,null,null,null,null,null,null,null,null,null,null,null,null,null,null,null,null,null,null,38,37,37,null,1,null,null,null,37,null,37,"(38)","(-)"]
["38(33)","Daniel Mårtensson","Jämjö Hsk",123.3225806451613,null,31,3823,null,0,0,0,0,0,70,204,98,107,98,104,153,80,80,142,94,119,115,166,103,94,108,81,108,126,176,171,128,145,124,176,119,214,123,114,83,null,null,null,null,null,null,null,null,null,null,null,null,null,null,null,null,null,null,null,null,null,null,null,null,null,null,null,null,null,null,null,null,null,null,null,null,null,null,null,null,null,null,null,null,null,null,null,null,null,null,null,null,null,null,null,null,null,null,null,null,null,null,null,null,null,null,null,null,null,null,null,null,null,null,null,null,null,null,null,33,38,38,null,1,null,null,null,38,null,38,"(33)","(-)"]
["39(39)","Dan Hallstan","Växjö Hsk",121.96666666666667,null,30,3659,null,0,0,0,0,0,138,95,110,102,62,98,92,118,90,134,110,157,173,86,158,103,115,205,139,158,96,94,125,112,86,170,91,147,149,146,null,null,null,null,null,null,null,null,null,null,null,null,null,null,null,null,null,null,null,null,null,null,null,null,null,null,null,null,null,null,null,null,null,null,null,null,null,null,null,null,null,null,null,null,null,null,null,null,null,null,null,null,null,null,null,null,null,null,null,null,null,null,null,null,null,null,null,null,null,null,null,null,null,null,null,null,null,null,null,null,39,{"$f":"IF(AND(D43=D42,D43=D41,D43=D40,D43=D39),ROW(35:35),IF(AND(D43=D42,D43=D41,D43=D40),ROW(36:36),IF(AND(D43=D42,D43=D41),ROW(37:37),IF(D43=D42,ROW(38:38),IF(D43>1,ROW(39:39),\"-\")))))","v":39},39,null,1,null,null,null,39,null,39,"(39)","(-)"]
["40(42)","Göran Mårtensson","Jämjö Hsk",121.46666666666667,null,15,1822,null,0,0,0,0,0,117,93,107,118,141,141,120,75,151,134,130,118,125,111,141,null,null,null,null,null,null,null,null,null,null,null,null,null,null,null,null,null,null,null,null,null,null,null,null,null,null,null,null,null,null,null,null,null,null,null,null,null,null,null,null,null,null,null,null,null,null,null,null,null,null,null,null,null,null,null,null,null,null,null,null,null,null,null,null,null,null,null,null,null,null,null,null,null,null,null,null,null,null,null,null,null,null,null,null,null,null,null,null,null,null,null,null,null,null,null,42,40,40,null,1,null,null,null,40,null,40,"(42)","(-)"]
["41(40)","Gilbert Pettersson","Lanternan",121.35714285714286,null,14,1699,null,0,0,0,0,0,108,103,174,123,153,132,105,131,87,167,117,65,110,124,null,null,null,null,null,null,null,null,null,null,null,null,null,null,null,null,null,null,null,null,null,null,null,null,null,null,null,null,null,null,null,null,null,null,null,null,null,null,null,null,null,null,null,null,null,null,null,null,null,null,null,null,null,null,null,null,null,null,null,null,null,null,null,null,null,null,null,null,null,null,null,null,null,null,null,null,null,null,null,null,null,null,null,null,null,null,null,null,null,null,null,null,null,null,null,null,40,41,41,null,1,null,null,null,41,null,41,"(40)","(-)"]
["42(41)","Carina Gneupel","Sibbamåla",121.2,null,15,1818,null,0,0,0,0,0,106,197,91,85,135,115,132,69,139,99,93,95,204,115,143,null,null,null,null,null,null,null,null,null,null,null,null,null,null,null,null,null,null,null,null,null,null,null,null,null,null,null,null,null,null,null,null,null,null,null,null,null,null,null,null,null,null,null,null,null,null,null,null,null,null,null,null,null,null,null,null,null,null,null,null,null,null,null,null,null,null,null,null,null,null,null,null,null,null,null,null,null,null,null,null,null,null,null,null,null,null,null,null,null,null,null,null,null,null,null,41,42,42,null,1,null,null,null,42,null,42,"(41)","(-)"]
["43(43)","Christer Lööv","Värends Hsk",120.15,null,20,2403,null,0,0,0,0,0,94,112,153,131,151,136,91,145,95,95,90,129,155,109,144,136,98,113,108,118,null,null,null,null,null,null,null,null,null,null,null,null,null,null,null,null,null,null,null,null,null,null,null,null,null,null,null,null,null,null,null,null,null,null,null,null,null,null,null,null,null,null,null,null,null,null,null,null,null,null,null,null,null,null,null,null,null,null,null,null,null,null,null,null,null,null,null,null,null,null,null,null,null,null,null,null,null,null,null,null,null,null,null,null,null,null,null,null,null,null,43,43,43,null,1,null,null,null,43,null,43,"(43)","(-)"]
["44(44)","Berndt Petersson","Lanternan",120,null,22,2640,null,0,0,0,0,0,137,151,99,87,137,137,124,118,119,142,126,127,101,125,117,96,105,142,106,138,117,89,null,null,null,null,null,null,null,null,null,null,null,null,null,null,null,null,null,null,null,null,null,null,null,null,null,null,null,null,null,null,null,null,null,null,null,null,null,null,null,null,null,null,null,null,null,null,null,null,null,null,null,null,null,null,null,null,null,null,null,null,null,null,null,null,null,null,null,null,null,null,null,null,null,null,null,null,null,null,null,null,null,null,null,null,null,null,null,null,44,44,44,null,1,null,null,null,52,null,44,"(44)","(-)"]
["45(45)","Lasse Brincner","Värends Hsk",119.65217391304348,null,23,2752,null,0,0,0,0,0,145,164,101,172,143,104,124,152,83,112,139,171,114,107,99,93,78,139,100,82,88,135,107,null,null,null,null,null,null,null,null,null,null,null,null,null,null,null,null,null,null,null,null,null,null,null,null,null,null,null,null,null,null,null,null,null,null,null,null,null,null,null,null,null,null,null,null,null,null,null,null,null,null,null,null,null,null,null,null,null,null,null,null,null,null,null,null,null,null,null,null,null,null,null,null,null,null,null,null,null,null,null,null,null,null,null,null,null,null,null,45,45,45,null,1,null,null,null,44,null,45,"(45)","(-)"]
["46(46)","Nathalie Sundahl","Carlskrona",119.11111111111111,null,9,1072,null,0,0,0,0,0,90,144,172,97,96,76,152,93,152,null,null,null,null,null,null,null,null,null,null,null,null,null,null,null,null,null,null,null,null,null,null,null,null,null,null,null,null,null,null,null,null,null,null,null,null,null,null,null,null,null,null,null,null,null,null,null,null,null,null,null,null,null,null,null,null,null,null,null,null,null,null,null,null,null,null,null,null,null,null,null,null,null,null,null,null,null,null,null,null,null,null,null,null,null,null,null,null,null,null,null,null,null,null,null,null,null,null,null,null,null,46,46,46,null,1,null,null,null,45,null,46,"(46)","(-)"]
["47(47)","Christian Balsiger","Värends Hsk",118.71428571428571,null,28,3324,null,0,0,0,0,0,82,102,102,159,162,79,90,109,105,114,193,118,75,116,79,111,86,155,98,119,69,139,114,196,154,149,112,137,null,null,null,null,null,null,null,null,null,null,null,null,null,null,null,null,null,null,null,null,null,null,null,null,null,null,null,null,null,null,null,null,null,null,null,null,null,null,null,null,null,null,null,null,null,null,null,null,null,null,null,null,null,null,null,null,null,null,null,null,null,null,null,null,null,null,null,null,null,null,null,null,null,null,null,null,null,null,null,null,null,null,47,47,47,null,1,null,null,null,46,null,47,"(47)","(-)"]
["48(48)","Ingegerd Pettersson","Lanternan",118.2,null,30,3546,null,0,0,0,0,0,93,119,130,127,120,108,125,111,81,184,99,125,140,89,193,110,121,113,131,76,98,40,129,121,121,140,146,112,165,79,null,null,null,null,null,null,null,null,null,null,null,null,null,null,null,null,null,null,null,null,null,null,null,null,null,null,null,null,null,null,null,null,null,null,null,null,null,null,null,null,null,null,null,null,null,null,null,null,null,null,null,null,null,null,null,null,null,null,null,null,null,null,null,null,null,null,null,null,null,null,null,null,null,null,null,null,null,null,null,null,48,48,48,null,1,null,null,null,47,null,48,"(48)","(-)"]
["49(49)","Emil Rehn","Korpen Åseda",118.09090909090909,null,11,1299,null,0,0,0,0,0,119,97,180,155,77,85,147,121,104,70,144,null,null,null,null,null,null,null,null,null,null,null,null,null,null,null,null,null,null,null,null,null,null,null,null,null,null,null,null,null,null,null,null,null,null,null,null,null,null,null,null,null,null,null,null,null,null,null,null,null,null,null,null,null,null,null,null,null,null,null,null,null,null,null,null,null,null,null,null,null,null,null,null,null,null,null,null,null,null,null,null,null,null,null,null,null,null,null,null,null,null,null,null,null,null,null,null,null,null,null,49,49,49,null,1,null,null,null,48,null,49,"(49)","(-)"]
["50(50)","Thomas Diedrichs","Vaxholm Hsk",118,null,5,590,null,0,0,0,0,0,112,127,136,107,108,null,null,null,null,null,null,null,null,null,null,null,null,null,null,null,null,null,null,null,null,null,null,null,null,null,null,null,null,null,null,null,null,null,null,null,null,null,null,null,null,null,null,null,null,null,null,null,null,null,null,null,null,null,null,null,null,null,null,null,null,null,null,null,null,null,null,null,null,null,null,null,null,null,null,null,null,null,null,null,null,null,null,null,null,null,null,null,null,null,null,null,null,null,null,null,null,null,null,null,null,null,null,null,null,null,50,50,50,null,1,null,null,null,49,null,50,"(50)","(-)"]
["50(50)","Christoffer Cederholm","Tingsryd",118,null,12,1416,null,0,0,0,0,0,137,115,170,95,87,69,94,74,140,142,119,174,null,null,null,null,null,null,null,null,null,null,null,null,null,null,null,null,null,null,null,null,null,null,null,null,null,null,null,null,null,null,null,null,null,null,null,null,null,null,null,null,null,null,null,null,null,null,null,null,null,null,null,null,null,null,null,null,null,null,null,null,null,null,null,null,null,null,null,null,null,null,null,null,null,null,null,null,null,null,null,null,null,null,null,null,null,null,null,null,null,null,null,null,null,null,null,null,null,null,50,50,51,null,1,null,null,null,50,null,50,"(50)","(-)"]
["52(52)","Maire Johansson","Växjö Hsk",116.4,null,20,2328,null,0,0,0,0,0,104,111,108,209,158,113,103,154,93,80,115,104,148,112,120,88,85,100,122,101,null,null,null,null,null,null,null,null,null,null,null,null,null,null,null,null,null,null,null,null,null,null,null,null,null,null,null,null,null,null,null,null,null,null,null,null,null,null,null,null,null,null,null,null,null,null,null,null,null,null,null,null,null,null,null,null,null,null,null,null,null,null,null,null,null,null,null,null,null,null,null,null,null,null,null,null,null,null,null,null,null,null,null,null,null,null,null,null,null,null,52,52,52,null,1,null,null,null,51,null,52,"(52)","(-)"]
["53(53)","Maj-Britt Jarl","Växjö Hsk",115.33333333333333,null,12,1384,null,0,0,0,0,0,164,149,92,79,150,81,79,125,133,93,124,115,null,null,null,null,null,null,null,null,null,null,null,null,null,null,null,null,null,null,null,null,null,null,null,null,null,null,null,null,null,null,null,null,null,null,null,null,null,null,null,null,null,null,null,null,null,null,null,null,null,null,null,null,null,null,null,null,null,null,null,null,null,null,null,null,null,null,null,null,null,null,null,null,null,null,null,null,null,null,null,null,null,null,null,null,null,null,null,null,null,null,null,null,null,null,null,null,null,null,53,53,53,null,1,null,null,null,53,null,53,"(53)","(-)"]
["54(54)","Roy Dahlén","Dynapac",115.25,null,16,1844,null,0,0,0,0,0,119,137,107,113,111,69,178,86,110,86,104,122,191,140,93,78,null,null,null,null,null,null,null,null,null,null,null,null,null,null,null,null,null,null,null,null,null,null,null,null,null,null,null,null,null,null,null,null,null,null,null,null,null,null,null,null,null,null,null,null,null,null,null,null,null,null,null,null,null,null,null,null,null,null,null,null,null,null,null,null,null,null,null,null,null,null,null,null,null,null,null,null,null,null,null,null,null,null,null,null,null,null,null,null,null,null,null,null,null,null,54,54,54,null,1,null,null,null,109,null,54,"(54)","(-)"]
["55(55)","Bengt Fabbeke","Dynapac",112.72727272727273,null,11,1240,null,0,0,0,0,0,206,108,110,91,110,120,123,96,122,86,68,null,null,null,null,null,null,null,null,null,null,null,null,null,null,null,null,null,null,null,null,null,null,null,null,null,null,null,null,null,null,null,null,null,null,null,null,null,null,null,null,null,null,null,null,null,null,null,null,null,null,null,null,null,null,null,null,null,null,null,null,null,null,null,null,null,null,null,null,null,null,null,null,null,null,null,null,null,null,null,null,null,null,null,null,null,null,null,null,null,null,null,null,null,null,null,null,null,null,null,55,55,55,null,1,null,null,null,54,null,55,"(55)","(-)"]
["56(56)","Björn Hansson","Vaxholm Hsk",112.5,null,4,450,null,0,0,0,0,0,98,88,115,149,null,null,null,null,null,null,null,null,null,null,null,null,null,null,null,null,null,null,null,null,null,null,null,null,null,null,null,null,null,null,null,null,null,null,null,null,null,null,null,null,null,null,null,null,null,null,null,null,null,null,null,null,null,null,null,null,null,null,null,null,null,null,null,null,null,null,null,null,null,null,null,null,null,null,null,null,null,null,null,null,null,null,null,null,null,null,null,null,null,null,null,null,null,null,null,null,null,null,null,null,null,null,null,null,null,null,56,56,56,null,1,null,null,null,55,null,56,"(56)","(-)"]
["57(57)","Jan Petersson","Lanternan",112.35714285714286,null,28,3146,null,0,0,0,0,0,50,166,102,111,83,159,116,90,115,85,50,96,133,40,113,105,89,159,116,113,126,116,117,143,150,173,121,109,null,null,null,null,null,null,null,null,null,null,null,null,null,null,null,null,null,null,null,null,null,null,null,null,null,null,null,null,null,null,null,null,null,null,null,null,null,null,null,null,null,null,null,null,null,null,null,null,null,null,null,null,null,null,null,null,null,null,null,null,null,null,null,null,null,null,null,null,null,null,null,null,null,null,null,null,null,null,null,null,null,null,57,57,57,null,1,null,null,null,56,null,57,"(57)","(-)"]
["58(58)","Pascal Letter","Vaxholm Hsk",111.4,null,5,557,null,0,0,0,0,0,63,139,139,128,88,null,null,null,null,null,null,null,null,null,null,null,null,null,null,null,null,null,null,null,null,null,null,null,null,null,null,null,null,null,null,null,null,null,null,null,null,null,null,null,null,null,null,null,null,null,null,null,null,null,null,null,null,null,null,null,null,null,null,null,null,null,null,null,null,null,null,null,null,null,null,null,null,null,null,null,null,null,null,null,null,null,null,null,null,null,null,null,null,null,null,null,null,null,null,null,null,null,null,null,null,null,null,null,null,null,58,58,58,null,1,null,null,null,57,null,58,"(58)","(-)"]
["59(59)","Bela Bodi","Växjö Hsk",111.30769230769231,null,13,1447,null,0,0,0,0,0,85,58,149,68,115,81,105,122,131,102,134,171,126,null,null,null,null,null,null,null,null,null,null,null,null,null,null,null,null,null,null,null,null,null,null,null,null,null,null,null,null,null,null,null,null,null,null,null,null,null,null,null,null,null,null,null,null,null,null,null,null,null,null,null,null,null,null,null,null,null,null,null,null,null,null,null,null,null,null,null,null,null,null,null,null,null,null,null,null,null,null,null,null,null,null,null,null,null,null,null,null,null,null,null,null,null,null,null,null,null,59,59,59,null,1,null,null,null,58,null,59,"(59)","(-)"]
["60(60)","Kjell Åkesson","Lanternan",109.76470588235294,null,17,1866,null,0,0,0,0,0,108,93,62,116,120,139,138,98,115,69,104,99,130,100,132,146,97,null,null,null,null,null,null,null,null,null,null,null,null,null,null,null,null,null,null,null,null,null,null,null,null,null,null,null,null,null,null,null,null,null,null,null,null,null,null,null,null,null,null,null,null,null,null,null,null,null,null,null,null,null,null,null,null,null,null,null,null,null,null,null,null,null,null,null,null,null,null,null,null,null,null,null,null,null,null,null,null,null,null,null,null,null,null,null,null,null,null,null,null,null,60,60,60,null,1,null,null,null,59,null,60,"(60)","(-)"]
["61(61)","Christer Blomgren","Lanternan",109.63333333333334,null,30,3289,null,0,0,0,0,0,142,81,92,98,81,114,118,110,89,78,127,72,116,112,38,93,78,98,110,121,139,128,138,126,142,133,151,115,143,106,null,null,null,null,null,null,null,null,null,null,null,null,null,null,null,null,null,null,null,null,null,null,null,null,null,null,null,null,null,null,null,null,null,null,null,null,null,null,null,null,null,null,null,null,null,null,null,null,null,null,null,null,null,null,null,null,null,null,null,null,null,null,null,null,null,null,null,null,null,null,null,null,null,null,null,null,null,null,null,null,61,61,61,null,1,null,null,null,60,null,61,"(61)","(-)"]
[{"$f":"IF(H66=\"x\",DU66&\" (\"&EF66&\")\",DU66&\" (\"&DT66&\")\")","v":"62 (62)"},"Bo Petersson","Korpen Nybro",108.52941176470588,null,17,1845,null,0,0,0,0,0,149,97,63,101,143,83,138,104,108,91,140,147,165,108,47,57,104,null,null,null,null,null,null,null,null,null,null,null,null,null,null,null,null,null,null,null,null,null,null,null,null,null,null,null,null,null,null,null,null,null,null,null,null,null,null,null,null,null,null,null,null,null,null,null,null,null,null,null,null,null,null,null,null,null,null,null,null,null,null,null,null,null,null,null,null,null,null,null,null,null,null,null,null,null,null,null,null,null,null,null,null,null,null,null,null,null,null,null,null,null,62,62,62,null,1,null,null,null,61,null,62,"(62)","(-)"]
["63 (63)","Marcus Karlsson","Jämjö Hsk",107.96666666666667,null,30,3239,null,0,0,0,0,0,127,98,113,87,108,140,148,146,78,103,97,120,130,102,149,127,60,96,129,76,80,151,104,109,104,109,83,82,72,111,null,null,null,null,null,null,null,null,null,null,null,null,null,null,null,null,null,null,null,null,null,null,null,null,null,null,null,null,null,null,null,null,null,null,null,null,null,null,null,null,null,null,null,null,null,null,null,null,null,null,null,null,null,null,null,null,null,null,null,null,null,null,null,null,null,null,null,null,null,null,null,null,null,null,null,null,null,null,null,null,63,63,63,null,1,null,null,null,62,null,63,"(63)","(-)"]
["64 (64)","Mikael Grönskog","Sibbamåla",106.77777777777777,null,9,961,null,0,0,0,0,0,115,138,138,50,94,84,116,90,136,null,null,null,null,null,null,null,null,null,null,null,null,null,null,null,null,null,null,null,null,null,null,null,null,null,null,null,null,null,null,null,null,null,null,null,null,null,null,null,null,null,null,null,null,null,null,null,null,null,null,null,null,null,null,null,null,null,null,null,null,null,null,null,null,null,null,null,null,null,null,null,null,null,null,null,null,null,null,null,null,null,null,null,null,null,null,null,null,null,null,null,null,null,null,null,null,null,null,null,null,null,64,64,64,null,1,null,null,null,64,null,64,"(64)","(-)"]
["65 (65)","Bernt Olsson","Jämjö Hsk",{"$f":"IF(F69>0.5,(G69/F69),0)","v":106.39285714285714},null,{"$f":"COUNT(N69:BO69)","v":28},{"$f":"SUM(N69:BO69)","v":2979},null,{"$f":"COUNTIF(BQ69:DR69,2)","v":0},{"$f":"COUNTIF(BQ69:DR69,-2)","v":0},{"$f":"COUNTIF(BQ69:DR69,1)","v":0},{"$f":"COUNTIF(BQ69:DR69,-1)","v":0},{"$f":"IF(F69>0,(I69+K69)/(F69),0)","v":0},161,94,57,144,138,167,112,128,90,93,101,72,129,55,79,105,98,128,121,124,101,86,69,80,142,91,92,122,null,null,null,null,null,null,null,null,null,null,null,null,null,null,null,null,null,null,null,null,null,null,null,null,null,null,null,null,null,null,null,null,null,null,null,null,null,null,null,null,null,null,null,null,null,null,null,null,null,null,null,null,null,null,null,null,null,null,null,null,null,null,null,null,null,null,null,null,null,null,null,null,null,null,null,null,null,null,null,null,null,null,65,65,{"$f":"IF(DX69=1,ROW(65:65),\"-\")","v":65},null,1,null,null,null,65,null,{"$f":"IF(DX69=1,DU69,IF(DX69=\"\",DU69,\"\"))","v":65},{"$f":"IF(DX69=1,\"(\"&DT69&\")\",\"(\"&DV69&\")\")","v":"(65)"},"(-)"]
[{"$f":"IF(H70=\"x\",DU70&\" (\"&EF70&\")\",DU70&\" (\"&DT70&\")\")","v":"66 (69)"},"Kristian Jältsäter","Vaxholm Hsk",105.45161290322581,null,31,3269,null,0,0,0,0,0,98,36,142,128,90,73,135,68,118,117,125,96,105,63,62,109,109,97,144,134,85,63,129,158,102,99,89,142,88,142,123,null,null,null,null,null,null,null,null,null,null,null,null,null,null,null,null,null,null,null,null,null,null,null,null,null,null,null,null,null,null,null,null,null,null,null,null,null,null,null,null,null,null,null,null,null,null,null,null,null,null,null,null,null,null,null,null,null,null,null,null,null,null,null,null,null,null,null,null,null,null,null,null,null,null,null,null,null,null,null,69,66,66,null,1,null,null,null,66,null,66,"(69)","(-)"]
["67 (66)","Lukas Bern","Dynapac",105.4,null,5,527,null,0,0,0,0,0,107,133,90,123,74,null,null,null,null,null,null,null,null,null,null,null,null,null,null,null,null,null,null,null,null,null,null,null,null,null,null,null,null,null,null,null,null,null,null,null,null,null,null,null,null,null,null,null,null,null,null,null,null,null,null,null,null,null,null,null,null,null,null,null,null,null,null,null,null,null,null,null,null,null,null,null,null,null,null,null,null,null,null,null,null,null,null,null,null,null,null,null,null,null,null,null,null,null,null,null,null,null,null,null,null,null,null,null,null,null,66,67,67,null,1,null,null,null,67,null,67,"(66)","(-)"]
["68 (67)","Sebastian Israelsson","Sibbamåla",104.42857142857143,null,14,1462,null,0,0,0,0,0,97,113,119,97,145,76,85,88,123,135,90,98,105,91,null,null,null,null,null,null,null,null,null,null,null,null,null,null,null,null,null,null,null,null,null,null,null,null,null,null,null,null,null,null,null,null,null,null,null,null,null,null,null,null,null,null,null,null,null,null,null,null,null,null,null,null,null,null,null,null,null,null,null,null,null,null,null,null,null,null,null,null,null,null,null,null,null,null,null,null,null,null,null,null,null,null,null,null,null,null,null,null,null,null,null,null,null,null,null,null,67,68,68,null,1,null,null,null,68,null,68,"(67)","(-)"]
["69 (68)","Leif Sundahl","Carlskrona",104.2,null,10,1042,null,0,0,0,0,0,104,109,139,57,99,58,95,119,133,129,null,null,null,null,null,null,null,null,null,null,null,null,null,null,null,null,null,null,null,null,null,null,null,null,null,null,null,null,null,null,null,null,null,null,null,null,null,null,null,null,null,null,null,null,null,null,null,null,null,null,null,null,null,null,null,null,null,null,null,null,null,null,null,null,null,null,null,null,null,null,null,null,null,null,null,null,null,null,null,null,null,null,null,null,null,null,null,null,null,null,null,null,null,null,null,null,null,null,null,null,68,69,69,null,1,null,null,null,69,null,69,"(68)","(-)"]
["70 (70)","Lisbeth Blihd","Lanternan",104.10344827586206,null,29,3019,null,0,0,0,0,0,149,48,99,88,65,94,89,88,90,79,104,84,84,106,170,76,135,127,99,90,106,100,161,144,58,103,146,82,155,null,null,null,null,null,null,null,null,null,null,null,null,null,null,null,null,null,null,null,null,null,null,null,null,null,null,null,null,null,null,null,null,null,null,null,null,null,null,null,null,null,null,null,null,null,null,null,null,null,null,null,null,null,null,null,null,null,null,null,null,null,null,null,null,null,null,null,null,null,null,null,null,null,null,null,null,null,null,null,null,null,70,70,70,null,1,null,null,null,70,null,70,"(70)","(-)"]
["71 (71)","Tomas Lindahl","Korpen Åseda",102.4375,null,16,1639,null,0,0,0,0,0,121,124,78,79,56,142,91,83,85,83,133,124,100,110,77,153,null,null,null,null,null,null,null,null,null,null,null,null,null,null,null,null,null,null,null,null,null,null,null,null,null,null,null,null,null,null,null,null,null,null,null,null,null,null,null,null,null,null,null,null,null,null,null,null,null,null,null,null,null,null,null,null,null,null,null,null,null,null,null,null,null,null,null,null,null,null,null,null,null,null,null,null,null,null,null,null,null,null,null,null,null,null,null,null,null,null,null,null,null,null,71,{"$f":"IF(AND(D75=D74,D75=D73,D75=D72,D75=D71),ROW(67:67),IF(AND(D75=D74,D75=D73,D75=D72),ROW(68:68),IF(AND(D75=D74,D75=D73),ROW(69:69),IF(D75=D74,ROW(70:70),IF(D75>1,ROW(71:71),\"-\")))))","v":71},71,null,1,null,null,null,114,null,71,"(71)","(-)"]
["72 (72)","Martin Antic","Värends Hsk",101.57142857142857,null,21,2133,null,0,0,0,0,0,92,103,100,140,148,128,82,78,79,120,103,102,103,75,90,44,108,64,94,135,145,null,null,null,null,null,null,null,null,null,null,null,null,null,null,null,null,null,null,null,null,null,null,null,null,null,null,null,null,null,null,null,null,null,null,null,null,null,null,null,null,null,null,null,null,null,null,null,null,null,null,null,null,null,null,null,null,null,null,null,null,null,null,null,null,null,null,null,null,null,null,null,null,null,null,null,null,null,null,null,null,null,null,null,null,null,null,null,null,null,72,72,72,null,1,null,null,null,71,null,72,"(72)","(-)"]
["73 (73)","Kerstin Svensson","Växjö Hsk",100.72727272727273,null,22,2216,null,0,0,0,0,0,64,122,112,111,78,102,95,101,57,112,133,77,139,75,77,104,70,52,135,181,124,95,null,null,null,null,null,null,null,null,null,null,null,null,null,null,null,null,null,null,null,null,null,null,null,null,null,null,null,null,null,null,null,null,null,null,null,null,null,null,null,null,null,null,null,null,null,null,null,null,null,null,null,null,null,null,null,null,null,null,null,null,null,null,null,null,null,null,null,null,null,null,null,null,null,null,null,null,null,null,null,null,null,null,null,null,null,null,null,null,73,73,73,null,1,null,null,null,111,null,73,"(73)","(-)"]
["74 (74)","Klara Larsson","Värends Hsk",98.64,null,25,2466,null,0,0,0,0,0,67,105,115,124,106,93,146,119,116,125,81,127,61,85,139,77,65,65,55,142,69,164,92,63,65,null,null,null,null,null,null,null,null,null,null,null,null,null,null,null,null,null,null,null,null,null,null,null,null,null,null,null,null,null,null,null,null,null,null,null,null,null,null,null,null,null,null,null,null,null,null,null,null,null,null,null,null,null,null,null,null,null,null,null,null,null,null,null,null,null,null,null,null,null,null,null,null,null,null,null,null,null,null,null,null,null,null,null,null,null,74,74,74,null,1,null,null,null,72,null,74,"(74)","(-)"]
["75 (75)","Annika K. Milsten","Tingsryd",98,null,2,196,null,0,0,0,0,0,118,78,null,null,null,null,null,null,null,null,null,null,null,null,null,null,null,null,null,null,null,null,null,null,null,null,null,null,null,null,null,null,null,null,null,null,null,null,null,null,null,null,null,null,null,null,null,null,null,null,null,null,null,null,null,null,null,null,null,null,null,null,null,null,null,null,null,null,null,null,null,null,null,null,null,null,null,null,null,null,null,null,null,null,null,null,null,null,null,null,null,null,null,null,null,null,null,null,null,null,null,null,null,null,null,null,null,null,null,null,75,75,75,null,1,null,null,null,73,null,75,"(75)","(-)"]
["76 (76)","Christer Eriksson","Korpen Nybro",97.428571428571431,null,7,682,null,0,0,0,0,0,144,38,133,48,79,86,154,null,null,null,null,null,null,null,null,null,null,null,null,null,null,null,null,null,null,null,null,null,null,null,null,null,null,null,null,null,null,null,null,null,null,null,null,null,null,null,null,null,null,null,null,null,null,null,null,null,null,null,null,null,null,null,null,null,null,null,null,null,null,null,null,null,null,null,null,null,null,null,null,null,null,null,null,null,null,null,null,null,null,null,null,null,null,null,null,null,null,null,null,null,null,null,null,null,null,null,null,null,null,null,76,76,76,null,1,null,null,null,74,null,76,"(76)","(-)"]
["77 (77)","Ronny Lundberg","Lanternan",96.25,null,8,770,null,0,0,0,0,0,74,100,116,48,112,91,98,131,null,null,null,null,null,null,null,null,null,null,null,null,null,null,null,null,null,null,null,null,null,null,null,null,null,null,null,null,null,null,null,null,null,null,null,null,null,null,null,null,null,null,null,null,null,null,null,null,null,null,null,null,null,null,null,null,null,null,null,null,null,null,null,null,null,null,null,null,null,null,null,null,null,null,null,null,null,null,null,null,null,null,null,null,null,null,null,null,null,null,null,null,null,null,null,null,null,null,null,null,null,null,77,77,77,null,1,null,null,null,75,null,77,"(77)","(-)"]
["78 (78)","Lars-Åke Karlsson","Jämjö Hsk",96.142857142857139,null,7,673,null,0,0,0,0,0,93,105,115,45,93,112,110,null,null,null,null,null,null,null,null,null,null,null,null,null,null,null,null,null,null,null,null,null,null,null,null,null,null,null,null,null,null,null,null,null,null,null,null,null,null,null,null,null,null,null,null,null,null,null,null,null,null,null,null,null,null,null,null,null,null,null,null,null,null,null,null,null,null,null,null,null,null,null,null,null,null,null,null,null,null,null,null,null,null,null,null,null,null,null,null,null,null,null,null,null,null,null,null,null,null,null,null,null,null,null,78,78,78,null,1,null,null,null,76,null,78,"(78)","(-)"]
["79 (79)","Kerstin Petersen","Växjö Hsk",95.285714285714292,null,7,667,null,0,0,0,0,0,81,111,112,44,115,114,90,null,null,null,null,null,null,null,null,null,null,null,null,null,null,null,null,null,null,null,null,null,null,null,null,null,null,null,null,null,null,null,null,null,null,null,null,null,null,null,null,null,null,null,null,null,null,null,null,null,null,null,null,null,null,null,null,null,null,null,null,null,null,null,null,null,null,null,null,null,null,null,null,null,null,null,null,null,null,null,null,null,null,null,null,null,null,null,null,null,null,null,null,null,null,null,null,null,null,null,null,null,null,null,79,79,79,null,1,null,null,null,77,null,79,"(79)","(-)"]
["80 (80)","Lars-Erik Ottosson","Lanternan",94,null,2,188,null,0,0,0,0,0,73,115,null,null,null,null,null,null,null,null,null,null,null,null,null,null,null,null,null,null,null,null,null,null,null,null,null,null,null,null,null,null,null,null,null,null,null,null,null,null,null,null,null,null,null,null,null,null,null,null,null,null,null,null,null,null,null,null,null,null,null,null,null,null,null,null,null,null,null,null,null,null,null,null,null,null,null,null,null,null,null,null,null,null,null,null,null,null,null,null,null,null,null,null,null,null,null,null,null,null,null,null,null,null,null,null,null,null,null,null,80,80,80,null,1,null,null,null,78,null,80,"(80)","(-)"]
["81 (81)","Laila Johansson","Tingsryd",91.4,null,5,457,null,0,0,0,0,0,76,55,112,79,135,null,null,null,null,null,null,null,null,null,null,null,null,null,null,null,null,null,null,null,null,null,null,null,null,null,null,null,null,null,null,null,null,null,null,null,null,null,null,null,null,null,null,null,null,null,null,null,null,null,null,null,null,null,null,null,null,null,null,null,null,null,null,null,null,null,null,null,null,null,null,null,null,null,null,null,null,null,null,null,null,null,null,null,null,null,null,null,null,null,null,null,null,null,null,null,null,null,null,null,null,null,null,null,null,null,81,81,81,null,1,null,null,null,79,null,81,"(81)","(-)"]
["82 (82)","Julius Gneupel","Sibbamåla",91.2,null,5,456,null,0,0,0,0,0,117,64,54,114,107,null,null,null,null,null,null,null,null,null,null,null,null,null,null,null,null,null,null,null,null,null,null,null,null,null,null,null,null,null,null,null,null,null,null,null,null,null,null,null,null,null,null,null,null,null,null,null,null,null,null,null,null,null,null,null,null,null,null,null,null,null,null,null,null,null,null,null,null,null,null,null,null,null,null,null,null,null,null,null,null,null,null,null,null,null,null,null,null,null,null,null,null,null,null,null,null,null,null,null,null,null,null,null,null,null,82,82,82,null,1,null,null,null,80,null,82,"(82)","(-)"]
["83 (83)","Thomas Dahl","Växjö Hsk",90.6,null,10,906,null,0,0,0,0,0,46,105,98,45,83,95,118,95,92,129,null,null,null,null,null,null,null,null,null,null,null,null,null,null,null,null,null,null,null,null,null,null,null,null,null,null,null,null,null,null,null,null,null,null,null,null,null,null,null,null,null,null,null,null,null,null,null,null,null,null,null,null,null,null,null,null,null,null,null,null,null,null,null,null,null,null,null,null,null,null,null,null,null,null,null,null,null,null,null,null,null,null,null,null,null,null,null,null,null,null,null,null,null,null,null,null,null,null,null,null,83,83,83,null,1,null,null,null,81,null,83,"(83)","(-)"]
["84 (84)","Sandra Rydell","Värends Hsk",90.571428571428569,null,14,1268,null,0,0,0,0,0,91,105,76,64,75,93,126,107,109,111,81,106,53,71,null,null,null,null,null,null,null,null,null,null,null,null,null,null,null,null,null,null,null,null,null,null,null,null,null,null,null,null,null,null,null,null,null,null,null,null,null,null,null,null,null,null,null,null,null,null,null,null,null,null,null,null,null,null,null,null,null,null,null,null,null,null,null,null,null,null,null,null,null,null,null,null,null,null,null,null,null,null,null,null,null,null,null,null,null,null,null,null,null,null,null,null,null,null,null,null,84,84,84,null,1,null,null,null,82,null,84,"(84)","(-)"]
["85 (85)","Anders Karlsson","Värends Hsk",89.7,null,10,897,null,0,0,0,0,0,91,30,140,69,76,111,93,104,71,112,null,null,null,null,null,null,null,null,null,null,null,null,null,null,null,null,null,null,null,null,null,null,null,null,null,null,null,null,null,null,null,null,null,null,null,null,null,null,null,null,null,null,null,null,null,null,null,null,null,null,null,null,null,null,null,null,null,null,null,null,null,null,null,null,null,null,null,null,null,null,null,null,null,null,null,null,null,null,null,null,null,null,null,null,null,null,null,null,null,null,null,null,null,null,null,null,null,null,null,null,85,85,85,null,1,null,null,null,83,null,85,"(85)","(-)"]
["86 (86)","Åke Bergkvist","Tingsryd",88.612903225806448,null,31,2747,null,0,0,0,0,0,108,78,85,138,91,79,91,127,130,109,85,115,101,61,113,116,82,54,81,44,86,60,68,74,111,74,68,61,93,65,99,null,null,null,null,null,null,null,null,null,null,null,null,null,null,null,null,null,null,null,null,null,null,null,null,null,null,null,null,null,null,null,null,null,null,null,null,null,null,null,null,null,null,null,null,null,null,null,null,null,null,null,null,null,null,null,null,null,null,null,null,null,null,null,null,null,null,null,null,null,null,null,null,null,null,null,null,null,null,null,86,86,86,null,1,null,null,null,84,null,86,"(86)","(-)"]
["87 (87)","Peter Edlund","Dynapac",88.2,null,5,441,null,0,0,0,0,0,69,116,83,78,95,null,null,null,null,null,null,null,null,null,null,null,null,null,null,null,null,null,null,null,null,null,null,null,null,null,null,null,null,null,null,null,null,null,null,null,null,null,null,null,null,null,null,null,null,null,null,null,null,null,null,null,null,null,null,null,null,null,null,null,null,null,null,null,null,null,null,null,null,null,null,null,null,null,null,null,null,null,null,null,null,null,null,null,null,null,null,null,null,null,null,null,null,null,null,null,null,null,null,null,null,null,null,null,null,null,87,87,87,null,1,null,null,null,85,null,87,"(87)","(-)"]
["88 (88)","Lars-Rune Johansson","Jämjö Hsk",87.666666666666671,null,3,263,null,0,0,0,0,0,98,54,111,null,null,null,null,null,null,null,null,null,null,null,null,null,null,null,null,null,null,null,null,null,null,null,null,null,null,null,null,null,null,null,null,null,null,null,null,null,null,null,null,null,null,null,null,null,null,null,null,null,null,null,null,null,null,null,null,null,null,null,null,null,null,null,null,null,null,null,null,null,null,null,null,null,null,null,null,null,null,null,null,null,null,null,null,null,null,null,null,null,null,null,null,null,null,null,null,null,null,null,null,null,null,null,null,null,null,null,88,88,88,null,1,null,null,null,86,null,88,"(88)","(-)"]
["89 (89)","Bertil Westergren","Växjö Hsk",87.5,null,2,175,null,0,0,0,0,0,89,86,null,null,null,null,null,null,null,null,null,null,null,null,null,null,null,null,null,null,null,null,null,null,null,null,null,null,null,null,null,null,null,null,null,null,null,null,null,null,null,null,null,null,null,null,null,null,null,null,null,null,null,null,null,null,null,null,null,null,null,null,null,null,null,null,null,null,null,null,null,null,null,null,null,null,null,null,null,null,null,null,null,null,null,null,null,null,null,null,null,null,null,null,null,null,null,null,null,null,null,null,null,null,null,null,null,null,null,null,89,89,89,null,1,null,null,null,87,null,89,"(89)","(-)"]
["90 (90)","Lars Johannesson","Jämjö Hsk",86.625,null,8,693,null,0,0,0,0,0,59,58,38,107,133,97,45,156,null,null,null,null,null,null,null,null,null,null,null,null,null,null,null,null,null,null,null,null,null,null,null,null,null,null,null,null,null,null,null,null,null,null,null,null,null,null,null,null,null,null,null,null,null,null,null,null,null,null,null,null,null,null,null,null,null,null,null,null,null,null,null,null,null,null,null,null,null,null,null,null,null,null,null,null,null,null,null,null,null,null,null,null,null,null,null,null,null,null,null,null,null,null,null,null,null,null,null,null,null,null,90,90,90,null,1,null,null,null,88,null,90,"(90)","(-)"]
["91 (91)","Alf Svensson","Korpen Åseda",85.6,null,5,428,null,0,0,0,0,0,24,88,98,126,92,null,null,null,null,null,null,null,null,null,null,null,null,null,null,null,null,null,null,null,null,null,null,null,null,null,null,null,null,null,null,null,null,null,null,null,null,null,null,null,null,null,null,null,null,null,null,null,null,null,null,null,null,null,null,null,null,null,null,null,null,null,null,null,null,null,null,null,null,null,null,null,null,null,null,null,null,null,null,null,null,null,null,null,null,null,null,null,null,null,null,null,null,null,null,null,null,null,null,null,null,null,null,null,null,null,91,91,91,null,1,null,null,null,89,null,91,"(91)","(-)"]
["92 (92)","Pontus Strömkvist","Vaxholm Hsk",84,null,2,168,null,0,0,0,0,0,75,93,null,null,null,null,null,null,null,null,null,null,null,null,null,null,null,null,null,null,null,null,null,null,null,null,null,null,null,null,null,null,null,null,null,null,null,null,null,null,null,null,null,null,null,null,null,null,null,null,null,null,null,null,null,null,null,null,null,null,null,null,null,null,null,null,null,null,null,null,null,null,null,null,null,null,null,null,null,null,null,null,null,null,null,null,null,null,null,null,null,null,null,null,null,null,null,null,null,null,null,null,null,null,null,null,null,null,null,null,92,92,92,null,1,null,null,null,112,null,92,"(92)","(-)"]
["93 (93)","Kjell Rydh","Korpen Nybro",83,null,18,1494,null,0,0,0,0,0,76,99,86,62,71,77,73,102,41,95,50,121,161,72,68,138,50,52,null,null,null,null,null,null,null,null,null,null,null,null,null,null,null,null,null,null,null,null,null,null,null,null,null,null,null,null,null,null,null,null,null,null,null,null,null,null,null,null,null,null,null,null,null,null,null,null,null,null,null,null,null,null,null,null,null,null,null,null,null,null,null,null,null,null,null,null,null,null,null,null,null,null,null,null,null,null,null,null,null,null,null,null,null,null,null,null,null,null,null,null,93,93,93,null,1,null,null,null,90,null,93,"(93)","(-)"]
["94 (94)","Ann-Marie Larsson","Tingsryd",82.19047619047619,null,21,1726,null,0,0,0,0,0,42,79,79,65,31,93,111,89,146,116,78,70,56,82,103,129,62,53,69,116,57,null,null,null,null,null,null,null,null,null,null,null,null,null,null,null,null,null,null,null,null,null,null,null,null,null,null,null,null,null,null,null,null,null,null,null,null,null,null,null,null,null,null,null,null,null,null,null,null,null,null,null,null,null,null,null,null,null,null,null,null,null,null,null,null,null,null,null,null,null,null,null,null,null,null,null,null,null,null,null,null,null,null,null,null,null,null,null,null,null,94,94,94,null,1,null,null,null,91,null,94,"(94)","(-)"]
["95 (95)","Ulrika Rydell","Värends Hsk",81.5,null,14,1141,null,0,0,0,0,0,78,109,108,102,106,106,57,57,116,31,64,96,60,51,null,null,null,null,null,null,null,null,null,null,null,null,null,null,null,null,null,null,null,null,null,null,null,null,null,null,null,null,null,null,null,null,null,null,null,null,null,null,null,null,null,null,null,null,null,null,null,null,null,null,null,null,null,null,null,null,null,null,null,null,null,null,null,null,null,null,null,null,null,null,null,null,null,null,null,null,null,null,null,null,null,null,null,null,null,null,null,null,null,null,null,null,null,null,null,null,95,95,95,null,1,null,null,null,92,null,95,"(95)","(-)"]
["96 (96)","Irene Petersson","Lanternan",79.166666666666671,null,12,950,null,0,0,0,0,0,85,68,76,97,112,86,54,109,42,91,55,75,null,null,null,null,null,null,null,null,null,null,null,null,null,null,null,null,null,null,null,null,null,null,null,null,null,null,null,null,null,null,null,null,null,null,null,null,null,null,null,null,null,null,null,null,null,null,null,null,null,null,null,null,null,null,null,null,null,null,null,null,null,null,null,null,null,null,null,null,null,null,null,null,null,null,null,null,null,null,null,null,null,null,null,null,null,null,null,null,null,null,null,null,null,null,null,null,null,null,96,96,96,null,1,null,null,null,63,null,96,"(96)","(-)"]
["97 (97)","Helge Winberg","Vaxholm Hsk",{"$f":"IF(F101>0.5,(G101/F101),0)","v":77.666666666666671},null,{"$f":"COUNT(N101:BO101)","v":3},{"$f":"SUM(N101:BO101)","v":233},null,{"$f":"COUNTIF(BQ101:DR101,2)","v":0},{"$f":"COUNTIF(BQ101:DR101,-2)","v":0},{"$f":"COUNTIF(BQ101:DR101,1)","v":0},{"$f":"COUNTIF(BQ101:DR101,-1)","v":0},{"$f":"IF(F101>0,(I101+K101)/(F101),0)","v":0},74,98,61,null,null,null,null,null,null,null,null,null,null,null,null,null,null,null,null,null,null,null,null,null,null,null,null,null,null,null,null,null,null,null,null,null,null,null,null,null,null,null,null,null,null,null,null,null,null,null,null,null,null,null,null,null,null,null,null,null,null,null,null,null,null,null,null,null,null,null,null,null,null,null,null,null,null,null,null,null,null,null,null,null,null,null,null,null,null,null,null,null,null,null,null,null,null,null,null,null,null,null,null,null,null,null,null,null,null,null,97,97,{"$f":"IF(DX101=1,ROW(97:97),\"-\")","v":97},null,1,null,null,null,93,null,{"$f":"IF(DX101=1,DU101,IF(DX101=\"\",DU101,\"\"))","v":97},{"$f":"IF(DX101=1,\"(\"&DT101&\")\",\"(\"&DV101&\")\")","v":"(97)"},"(-)"]
["98 (98)","Andreas Gundersen","Vaxholm Hsk",76.666666666666671,null,3,230,null,0,0,0,0,0,74,74,82,null,null,null,null,null,null,null,null,null,null,null,null,null,null,null,null,null,null,null,null,null,null,null,null,null,null,null,null,null,null,null,null,null,null,null,null,null,null,null,null,null,null,null,null,null,null,null,null,null,null,null,null,null,null,null,null,null,null,null,null,null,null,null,null,null,null,null,null,null,null,null,null,null,null,null,null,null,null,null,null,null,null,null,null,null,null,null,null,null,null,null,null,null,null,null,null,null,null,null,null,null,null,null,null,null,null,null,98,98,98,null,1,null,null,null,94,null,98,"(98)","(-)"]
["99 (99)","Arne Blidh","Lanternan",75.357142857142861,null,28,2110,null,0,0,0,0,0,28,61,58,75,88,55,86,57,70,106,100,56,84,129,72,61,35,27,115,119,78,115,65,71,17,102,119,61,null,null,null,null,null,null,null,null,null,null,null,null,null,null,null,null,null,null,null,null,null,null,null,null,null,null,null,null,null,null,null,null,null,null,null,null,null,null,null,null,null,null,null,null,null,null,null,null,null,null,null,null,null,null,null,null,null,null,null,null,null,null,null,null,null,null,null,null,null,null,null,null,null,null,null,null,null,null,null,null,null,null,99,99,99,null,1,null,null,null,95,null,99,"(99)","(-)"]
["100 (108)","Victor Bengtsson","Vaxholm Hsk",74.400000000000006,null,5,372,null,0,0,0,0,0,64,14,96,129,69,null,null,null,null,null,null,null,null,null,null,null,null,null,null,null,null,null,null,null,null,null,null,null,null,null,null,null,null,null,null,null,null,null,null,null,null,null,null,null,null,null,null,null,null,null,null,null,null,null,null,null,null,null,null,null,null,null,null,null,null,null,null,null,null,null,null,null,null,null,null,null,null,null,null,null,null,null,null,null,null,null,null,null,null,null,null,null,null,null,null,null,null,null,null,null,null,null,null,null,null,null,null,null,null,null,108,100,100,null,1,null,null,null,96,null,100,"(108)","(-)"]
["101 (100)","Eva Åkesson","Lanternan",70.142857142857139,null,14,982,null,0,0,0,0,0,51,75,92,102,88,44,105,62,69,91,10,31,92,70,null,null,null,null,null,null,null,null,null,null,null,null,null,null,null,null,null,null,null,null,null,null,null,null,null,null,null,null,null,null,null,null,null,null,null,null,null,null,null,null,null,null,null,null,null,null,null,null,null,null,null,null,null,null,null,null,null,null,null,null,null,null,null,null,null,null,null,null,null,null,null,null,null,null,null,null,null,null,null,null,null,null,null,null,null,null,null,null,null,null,null,null,null,null,null,null,100,101,101,null,1,null,null,null,97,null,101,"(100)","(-)"]
["102 (101)","Gunnar Lundbeck","Tingsryd",69.769230769230774,null,26,1814,null,0,0,0,0,0,48,33,71,51,56,71,123,86,66,76,56,98,82,58,57,110,91,59,72,54,28,50,57,57,108,96,null,null,null,null,null,null,null,null,null,null,null,null,null,null,null,null,null,null,null,null,null,null,null,null,null,null,null,null,null,null,null,null,null,null,null,null,null,null,null,null,null,null,null,null,null,null,null,null,null,null,null,null,null,null,null,null,null,null,null,null,null,null,null,null,null,null,null,null,null,null,null,null,null,null,null,null,null,null,null,null,null,null,null,null,101,102,102,null,1,null,null,null,98,null,102,"(101)","(-)"]
["103 (102)","Karin Gullbrand","Värends Hsk",57.777777777777779,null,9,520,null,0,0,0,0,0,48,17,47,51,58,77,67,124,31,null,null,null,null,null,null,null,null,null,null,null,null,null,null,null,null,null,null,null,null,null,null,null,null,null,null,null,null,null,null,null,null,null,null,null,null,null,null,null,null,null,null,null,null,null,null,null,null,null,null,null,null,null,null,null,null,null,null,null,null,null,null,null,null,null,null,null,null,null,null,null,null,null,null,null,null,null,null,null,null,null,null,null,null,null,null,null,null,null,null,null,null,null,null,null,null,null,null,null,null,null,102,{"$f":"IF(AND(D107=D106,D107=D105,D107=D104,D107=D103),ROW(99:99),IF(AND(D107=D106,D107=D105,D107=D104),ROW(100:100),IF(AND(D107=D106,D107=D105),ROW(101:101),IF(D107=D106,ROW(102:102),IF(D107>1,ROW(103:103),\"-\")))))","v":103},103,null,1,null,null,null,99,null,103,"(102)","(-)"]
["104 (103)","Lana Galea","Tingsryd",57.5,null,2,115,null,0,0,0,0,0,50,65,null,null,null,null,null,null,null,null,null,null,null,null,null,null,null,null,null,null,null,null,null,null,null,null,null,null,null,null,null,null,null,null,null,null,null,null,null,null,null,null,null,null,null,null,null,null,null,null,null,null,null,null,null,null,null,null,null,null,null,null,null,null,null,null,null,null,null,null,null,null,null,null,null,null,null,null,null,null,null,null,null,null,null,null,null,null,null,null,null,null,null,null,null,null,null,null,null,null,null,null,null,null,null,null,null,null,null,null,103,104,104,null,1,null,null,null,100,null,104,"(103)","(-)"]
["105 (104)","Tommy Svensson","Värends Hsk",55.25,null,8,442,null,0,0,0,0,0,44,40,47,89,64,72,51,35,null,null,null,null,null,null,null,null,null,null,null,null,null,null,null,null,null,null,null,null,null,null,null,null,null,null,null,null,null,null,null,null,null,null,null,null,null,null,null,null,null,null,null,null,null,null,null,null,null,null,null,null,null,null,null,null,null,null,null,null,null,null,null,null,null,null,null,null,null,null,null,null,null,null,null,null,null,null,null,null,null,null,null,null,null,null,null,null,null,null,null,null,null,null,null,null,null,null,null,null,null,null,104,105,105,null,1,null,null,null,101,null,105,"(104)","(-)"]
["106 (105)","Hanna Karlberg","Jämjö Hsk",52,null,9,468,null,0,0,0,0,0,68,72,60,57,30,45,65,40,31,null,null,null,null,null,null,null,null,null,null,null,null,null,null,null,null,null,null,null,null,null,null,null,null,null,null,null,null,null,null,null,null,null,null,null,null,null,null,null,null,null,null,null,null,null,null,null,null,null,null,null,null,null,null,null,null,null,null,null,null,null,null,null,null,null,null,null,null,null,null,null,null,null,null,null,null,null,null,null,null,null,null,null,null,null,null,null,null,null,null,null,null,null,null,null,null,null,null,null,null,null,105,106,106,null,1,null,null,null,102,null,106,"(105)","(-)"]
["107 (106)","Mikael Klaving","Vaxholm Hsk",51.5,null,2,103,null,0,0,0,0,0,45,58,null,null,null,null,null,null,null,null,null,null,null,null,null,null,null,null,null,null,null,null,null,null,null,null,null,null,null,null,null,null,null,null,null,null,null,null,null,null,null,null,null,null,null,null,null,null,null,null,null,null,null,null,null,null,null,null,null,null,null,null,null,null,null,null,null,null,null,null,null,null,null,null,null,null,null,null,null,null,null,null,null,null,null,null,null,null,null,null,null,null,null,null,null,null,null,null,null,null,null,null,null,null,null,null,null,null,null,null,106,107,107,null,1,null,null,null,110,null,107,"(106)","(-)"]
["108 (107)","Christer Brincner","Värends Hsk",46.5,null,2,93,null,0,0,0,0,0,72,21,null,null,null,null,null,null,null,null,null,null,null,null,null,null,null,null,null,null,null,null,null,null,null,null,null,null,null,null,null,null,null,null,null,null,null,null,null,null,null,null,null,null,null,null,null,null,null,null,null,null,null,null,null,null,null,null,null,null,null,null,null,null,null,null,null,null,null,null,null,null,null,null,null,null,null,null,null,null,null,null,null,null,null,null,null,null,null,null,null,null,null,null,null,null,null,null,null,null,null,null,null,null,null,null,null,null,null,null,107,108,108,null,1,null,null,null,103,null,108,"(107)","(-)"]
["109 (109)","Hans Johansson","Korpen Nybro",34,null,5,170,null,0,0,0,0,0,21,34,37,35,43,null,null,null,null,null,null,null,null,null,null,null,null,null,null,null,null,null,null,null,null,null,null,null,null,null,null,null,null,null,null,null,null,null,null,null,null,null,null,null,null,null,null,null,null,null,null,null,null,null,null,null,null,null,null,null,null,null,null,null,null,null,null,null,null,null,null,null,null,null,null,null,null,null,null,null,null,null,null,null,null,null,null,null,null,null,null,null,null,null,null,null,null,null,null,null,null,null,null,null,null,null,null,null,null,null,109,109,109,null,1,null,null,null,104,null,109,"(109)","(-)"]
["110 (110)","Kent Svensson","Lanternan",32,null,4,128,null,0,0,0,0,0,55,14,33,26,null,null,null,null,null,null,null,null,null,null,null,null,null,null,null,null,null,null,null,null,null,null,null,null,null,null,null,null,null,null,null,null,null,null,null,null,null,null,null,null,null,null,null,null,null,null,null,null,null,null,null,null,null,null,null,null,null,null,null,null,null,null,null,null,null,null,null,null,null,null,null,null,null,null,null,null,null,null,null,null,null,null,null,null,null,null,null,null,null,null,null,null,null,null,null,null,null,null,null,null,null,null,null,null,null,null,110,110,110,null,1,null,null,null,105,null,110,"(110)","(-)"]
["- (-)","Ulrika Strandahl","Växjö",0,null,0,0,null,0,0,0,0,0,null,null,null,null,null,null,null,null,null,null,null,null,null,null,null,null,null,null,null,null,null,null,null,null,null,null,null,null,null,null,null,null,null,null,null,null,null,null,null,null,null,null,null,null,null,null,null,null,null,null,null,null,null,null,null,null,null,null,null,null,null,null,null,null,null,null,null,null,null,null,null,null,null,null,null,null,null,null,null,null,null,null,null,null,null,null,null,null,null,null,null,null,null,null,null,null,null,null,null,null,null,null,null,null,null,null,null,null,null,null,"-","-",111,null,1,null,null,null,106,null,"-","(-)","(-)"]
["111 (111)","Solveig Brincner","Värends Hsk",0,null,0,0,null,0,0,0,0,0,null,null,null,null,null,null,null,null,null,null,null,null,null,null,null,null,null,null,null,null,null,null,null,null,null,null,null,null,null,null,null,null,null,null,null,null,null,null,null,null,null,null,null,null,null,null,null,null,null,null,null,null,null,null,null,null,null,null,null,null,null,null,null,null,null,null,null,null,null,null,null,null,null,null,null,null,null,null,null,null,null,null,null,null,null,null,null,null,null,null,null,null,null,null,null,null,null,null,null,null,null,null,null,null,null,null,null,null,null,null,111,111,112,null,1,null,null,null,107,null,111,"(111)","(-)"]
["111 (111)",null,null,0,null,0,0,null,0,0,0,0,0,null,null,null,null,null,null,null,null,null,null,null,null,null,null,null,null,null,null,null,null,null,null,null,null,null,null,null,null,null,null,null,null,null,null,null,null,null,null,null,null,null,null,null,null,null,null,null,null,null,null,null,null,null,null,null,null,null,null,null,null,null,null,null,null,null,null,null,null,null,null,null,null,null,null,null,null,null,null,null,null,null,null,null,null,null,null,null,null,null,null,null,null,null,null,null,null,null,null,null,null,null,null,null,null,null,null,null,null,null,null,111,111,113,null,1,null,null,null,108,null,111,"(111)","(-)"]
["111 (111)",null,null,0,null,0,0,null,0,0,0,0,0,null,null,null,null,null,null,null,null,null,null,null,null,null,null,null,null,null,null,null,null,null,null,null,null,null,null,null,null,null,null,null,null,null,null,null,null,null,null,null,null,null,null,null,null,null,null,null,null,null,null,null,null,null,null,null,null,null,null,null,null,null,null,null,null,null,null,null,null,null,null,null,null,null,null,null,null,null,null,null,null,null,null,null,null,null,null,null,null,null,null,null,null,null,null,null,null,null,null,null,null,null,null,null,null,null,null,null,null,null,null,111,111,114,null,1,null,null,null,109,null,111,"(111)","(-)"]
["111 (111)",null,null,0,null,0,0,null,0,0,0,0,0,null,null,null,null,null,null,null,null,null,null,null,null,null,null,null,null,null,null,null,null,null,null,null,null,null,null,null,null,null,null,null,null,null,null,null,null,null,null,null,null,null,null,null,null,null,null,null,null,null,null,null,null,null,null,null,null,null,null,null,null,null,null,null,null,null,null,null,null,null,null,null,null,null,null,null,null,null,null,null,null,null,null,null,null,null,null,null,null,null,null,null,null,null,null,null,null,null,null,null,null,null,null,null,null,null,null,null,null,null,null,111,111,115,null,1,null,null,null,112,null,111,"(111)","(-)"]
["112 (112)",null,null,0,null,0,0,null,0,0,0,0,0,null,null,null,null,null,null,null,null,null,null,null,null,null,null,null,null,null,null,null,null,null,null,null,null,null,null,null,null,null,null,null,null,null,null,null,null,null,null,null,null,null,null,null,null,null,null,null,null,null,null,null,null,null,null,null,null,null,null,null,null,null,null,null,null,null,null,null,null,null,null,null,null,null,null,null,null,null,null,null,null,null,null,null,null,null,null,null,null,null,null,null,null,null,null,null,null,null,null,null,null,null,null,null,null,null,null,null,null,null,null,112,112,116,null,1,null,null,null,110,null,112,"(112)","(-)"]
["113 (113)",null,null,0,null,0,0,null,0,0,0,0,0,null,null,null,null,null,null,null,null,null,null,null,null,null,null,null,null,null,null,null,null,null,null,null,null,null,null,null,null,null,null,null,null,null,null,null,null,null,null,null,null,null,null,null,null,null,null,null,null,null,null,null,null,null,null,null,null,null,null,null,null,null,null,null,null,null,null,null,null,null,null,null,null,null,null,null,null,null,null,null,null,null,null,null,null,null,null,null,null,null,null,null,null,null,null,null,null,null,null,null,null,null,null,null,null,null,null,null,null,null,null,113,{"$f":"IF(AND(D121=D120,D121=D119,D121=D118,D121=D117),ROW(113:113),IF(AND(D121=D120,D121=D119,D121=D118),ROW(114:114),IF(AND(D121=D120,D121=D119),ROW(115:115),IF(D121=D120,ROW(116:116),IF(D121>1,ROW(117:117),\"-\")))))","v":113},{"$f":"IF(DX121=1,ROW(117:117),\"-\")","v":117},null,1,null,null,null,111,null,{"$f":"IF(DX121=1,DU121,IF(DX121=\"\",DU121,\"\"))","v":113},{"$f":"IF(DX121=1,\"(\"&DT121&\")\",\"(\"&DV121&\")\")","v":"(113)"},"(-)"]
["114 (114)",null,null,0,null,0,0,null,0,0,0,0,0,null,null,null,null,null,null,null,null,null,null,null,null,null,null,null,null,null,null,null,null,null,null,null,null,null,null,null,null,null,null,null,null,null,null,null,null,null,null,null,null,null,null,null,null,null,null,null,null,null,null,null,null,null,null,null,null,null,null,null,null,null,null,null,null,null,null,null,null,null,null,null,null,null,null,null,null,null,null,null,null,null,null,null,null,null,null,null,null,null,null,null,null,null,null,null,null,null,null,null,null,null,null,null,null,null,null,null,null,null,null,114,{"$f":"IF(AND(D122=D121,D122=D120,D122=D119,D122=D118),ROW(114:114),IF(AND(D122=D121,D122=D120,D122=D119),ROW(115:115),IF(AND(D122=D121,D122=D120),ROW(116:116),IF(D122=D121,ROW(117:117),IF(D122>1,ROW(118:118),\"-\")))))","v":114},{"$f":"IF(DX122=1,ROW(118:118),\"-\")","v":118},null,1,null,null,null,113,null,{"$f":"IF(DX122=1,DU122,IF(DX122=\"\",DU122,\"\"))","v":114},{"$f":"IF(DX122=1,\"(\"&DT122&\")\",\"(\"&DV122&\")\")","v":"(114)"},"(-)"]
["115 (115)",null,null,0,null,0,0,null,0,0,0,0,0,null,null,null,null,null,null,null,null,null,null,null,null,null,null,null,null,null,null,null,null,null,null,null,null,null,null,null,null,null,null,null,null,null,null,null,null,null,null,null,null,null,null,null,null,null,null,null,null,null,null,null,null,null,null,null,null,null,null,null,null,null,null,null,null,null,null,null,null,null,null,null,null,null,null,null,null,null,null,null,null,null,null,null,null,null,null,null,null,null,null,null,null,null,null,null,null,null,null,null,null,null,null,null,null,null,null,null,null,null,null,115,{"$f":"IF(AND(D123=D122,D123=D121,D123=D120,D123=D119),ROW(115:115),IF(AND(D123=D122,D123=D121,D123=D120),ROW(116:116),IF(AND(D123=D122,D123=D121),ROW(117:117),IF(D123=D122,ROW(118:118),IF(D123>1,ROW(119:119),\"-\")))))","v":115},{"$f":"IF(DX123=1,ROW(119:119),\"-\")","v":119},null,1,null,null,null,113,null,{"$f":"IF(DX123=1,DU123,IF(DX123=\"\",DU123,\"\"))","v":115},{"$f":"IF(DX123=1,\"(\"&DT123&\")\",\"(\"&DV123&\")\")","v":"(115)"},"(-)"]